account_party,address,code,date,document_number,expense_code_name,expense_code_name_short,id,party_cell,party_cell_code,party_cell_geoobject,purpose,source_bank_account_number,source_bank_account_type,sum,target_legal_personality,target_legal_personality_code,target_type
АПУ,"Київ, вулиця Михайла Грушевського, 1Д",70,2016-12-31,17234,Банківські послуги,Інші витрати,367441,Кропивницька міська організація,40628111,Кіровоградська область,комісія банку,26004052926232,current,165.28,"ПАТ КБ ""Приватбанк""",14360570,юридична особа
АПУ,"Київ, вулиця Михайла Грушевського, 1Д",83,2016-12-30,1014,"Виплати працівникам (не зарплата): лікарняні, вагітності, відрядження, компенсації ","Заробітна плата, лікарняні, вагітності, відрядження, компенсації",368561,Центральний офіс,34763401,Україна,інші не заборонені законом витрати (#5168742025274253 ІПН 2637211852 Виплата заборгованості за авансовими звітами),26009052641121,current,10000.00,"ПАТ КБ ""Приватбанк""",14360570,юридична особа
АПУ,"Київ, вулиця Михайла Грушевського, 1Д",70,2016-12-30,163221,Банківські послуги,Інші витрати,367438,Одеська обласна організація,37279902,Одеська область,інші не заборонені законом витрати (комісія за виконання платежів в національній валюті),26005054325961,current,90.40,"ПАТ КБ ""Приватбанк""",14360570,юридична особа
АПУ,"Одеська область, Одеса, вулиця Базарна, 17",70,2016-12-30,1.91869526E+087,Банківські послуги,Інші витрати,367364,Овідіопольська районна організація,39909834,Одеська область,інші не заборонені законом витрати (Списання щомісячної плати за обслуговування тарифного пакету),26000300084521,current,35.00,"Одеська обласна філія АТ ""Ощадбанк""",00328845,юридична особа
АПУ,"Рівненська область, Рівне",76,2016-12-30,О1230УКУ8С,Послуги зв’язку,Послуги зв’язку,367331,Рівненська районна організація,35038970,Рівненська область,матеріальні витрати та оплата послуг за інтернет,26002054724863,current,102.00,Сіренко Максим Валерійович,2796006370,фізична особа
АПУ,,49,2016-12-30,722,Публікування матеріалів у друкованих ЗМІ,Реклама в друкованих ЗМІ,366582,Запорізька обласна організація,34975613,Запорізька область,"Розм. реклами у друк.засобах мас.інформ (за послуги 3 публікації в газеті,зг.рах.№53 від 28/12/16.)",26006055720257,current,800.00,Прокопов С Ю,3165411379,фізична особа
АПУ,"Київ, вулиця Михайла Грушевського, 1Д",70,2016-12-30,ОЛбезЬеіур,Банківські послуги,Інші витрати,366013,Токмацька районна організація,40080008,Запорізька область,Комісія за відкриття банківського рахунку,26003055728296,current,100.00,"ПАТ КБ ""Приватбанк""",14360570,юридична особа
АПУ,"Київ, вулиця Михайла Грушевського, 1Д",70,2016-12-30,30270798,Банківські послуги,Інші витрати,365714,Центральний офіс,34763401,Україна,інші не заборонені законом витрати (Списання комісії по рахунку 26007263919800 АН за ведення поточ рахунку за період з 30.11.2016 по 31.12.2016 зг.Дог. №2639198 від 30.12.2009 без ПДВ),26009052641121,current,209.00,"ПАТ КБ ""Приватбанк""",14360570,юридична особа
АПУ,"Дніпропетровська область, Кривий Ріг, вулиця Чкалова, 44",70,2016-12-30,153812075,Банківські послуги,Інші витрати,365562,Криворізька районна організація,40267750,Дніпропетровська область,матеріальні витрати та оплата послуг (банківські послуги),26005300544524,current,99.00,"Дніпропетровська обласна філія АТ ""Ощадбанк""",09305480,юридична особа
АПУ,"Дніпропетровська область, Кривий Ріг, вулиця Чкалова, 44",70,2016-12-30,153787910,Банківські послуги,Інші витрати,365561,Криворізька районна організація,40267750,Дніпропетровська область,матеріальні витрати та оплата послуг (банківські послуги),26005300544524,current,2.00,"Дніпропетровська обласна філія АТ ""Ощадбанк""",09305480,юридична особа
АПУ,"Київ, вулиця Ковпака, 29",70,2016-12-30,141840.2871,Банківські послуги,Інші витрати,365512,Вінницька обласна організація,35111112,Вінницька область,Інші не забороненні законом витрати (погашення абонплати за ірудень),26003000249520,current,150.00,"ПАТ ""Укрсоцбанк""",00039019,юридична особа
АПУ,"Київ, вулиця Михайла Грушевського, 1Д",70,2016-12-30,1230Ь08РА,Банківські послуги,Інші витрати,365480,Центральний офіс,34763401,Україна,Інші не заборонені законом витрати (Комісія за поповнення карток для виплат та нецільові платежі),26009052641121,current,25.00,"ПАТ КБ ""Приватбанк""",14360570,юридична особа
АПУ,"Чернігівська область, Чернігів, проспект Миру, 19",70,2016-12-30,105009134,Банківські послуги,Інші витрати,365279,Бахмацька районна організація,39979341,Чернігівська область,інші не заборонені законом витрати (Коміс. за розрах.обсл.рахунку з 01-12-?016тто 31-12-2016 Без НДС),26000300021430,current,60.00,"Чернігівська обласна філія АТ ""Ощадбанк""",09353504,юридична особа
АПУ,"Рівненська область, Рівне",74,2016-12-29,184,"Придбання канцтоварів, паперу, інших предметів і матеріалів, а також госп товари",Придбання канцтоварів та госп. товарів,368595,Рівненська обласна організація,35103253,Рівненська область,госпвитрати,26002054724863-2,current,55.00,Стретович Світлана Юріївна,,фізична особа
АПУ,"Київ, вулиця Михайла Грушевського, 1Д",83,2016-12-29,1013,"Виплати працівникам (не зарплата): лікарняні, вагітності, відрядження, компенсації ","Заробітна плата, лікарняні, вагітності, відрядження, компенсації",368560,Центральний офіс,34763401,Україна,інші не заборонені законом витрати (#5168742025274253 ІПН 2637211852 Виплата заборгованості за авансовими звітами),26009052641121,current,750.00,"ПАТ КБ ""Приватбанк""",14360570,юридична особа
АПУ,"Київ, вулиця Михайла Грушевського, 1Д",83,2016-12-29,1012,"Виплати працівникам (не зарплата): лікарняні, вагітності, відрядження, компенсації ","Заробітна плата, лікарняні, вагітності, відрядження, компенсації",368559,Центральний офіс,34763401,Україна,інші не заборонені законом витрати (#4149497859393995 ШН 3050304007 Виплата заборгованості за авансовими звітами),26009052641121,current,750.00,"ПАТ КБ ""Приватбанк""",14360570,юридична особа
АПУ,"Київ, вулиця Михайла Грушевського, 1Д",83,2016-12-29,1011,"Виплати працівникам (не зарплата): лікарняні, вагітності, відрядження, компенсації ","Заробітна плата, лікарняні, вагітності, відрядження, компенсації",368558,Центральний офіс,34763401,Україна,інші не заборонені законом витрати (#4149497854421296 ІПН 2974415984 Виплата заборгованості за авансовими звітами),26009052641121,current,750.00,"ПАТ КБ ""Приватбанк""",14360570,юридична особа
АПУ,"Київ, вулиця Михайла Грушевського, 1Д",83,2016-12-29,1010,"Виплати працівникам (не зарплата): лікарняні, вагітності, відрядження, компенсації ","Заробітна плата, лікарняні, вагітності, відрядження, компенсації",368557,Центральний офіс,34763401,Україна,інші не заборонені законом витрати (#5168742025274238 ІПН 3120800144 Виплата заборгованості за авансовими звітами),26009052641121,current,300.00,"ПАТ КБ ""Приватбанк""",14360570,юридична особа
АПУ,"Київ, вулиця Михайла Грушевського, 1Д",83,2016-12-29,1009,"Виплати працівникам (не зарплата): лікарняні, вагітності, відрядження, компенсації ","Заробітна плата, лікарняні, вагітності, відрядження, компенсації",368556,Центральний офіс,34763401,Україна,інші не заборонені законом витрати (#5168742025274477 ІПН 3041116987 Виплата заборгованості за авансовими звітами),26009052641121,current,300.00,"ПАТ КБ ""Приватбанк""",14360570,юридична особа
АПУ,"Київ, вулиця Михайла Грушевського, 1Д",83,2016-12-29,1007,"Виплати працівникам (не зарплата): лікарняні, вагітності, відрядження, компенсації ","Заробітна плата, лікарняні, вагітності, відрядження, компенсації",368555,Центральний офіс,34763401,Україна,витрати на соціальну допомогу (благод.допом ога зг.листа N2 від 26.12.2016),26009052641121,current,8000.00,"ПАТ КБ ""Приватбанк""",14360570,юридична особа
АПУ,,61,2016-12-29,471,Військовий збір,Податкові платежі,368194,Хмельницька обласна організація,38968240,Хмельницька область,"сплачені податки та збори (Силача 1,5% військового збору з 311 за грудень 2016р)",26003010007435,current,64.96,УДКСУ у м. Хмельницькому,38045529,юридична особа
АПУ,"Хмельницька область, Хмельницький, вулиця Героїв Майдану, 12",62,2016-12-29,469,Сплата ЄСВ,Податкові платежі,368129,Хмельницька обласна організація,38968240,Хмельницька область,сплачені податки та збори (Сплата 22% ЄСВ з ЗП за грудень 2016р),26003010007435,current,952.76,ДПІ у м. Хмельницькому,39564228,юридична особа
АПУ,,62,2016-12-29,271,Сплата ЄСВ,Податкові платежі,368113,Полтавська обласна організація,34874174,Полтавська область,"сплачені податки та збори 36008, м. Полтава, вул. 1 (101,;34874174;ЄСВ Європейська, 155 нарах/утриман 1 роботодавцем з 1 зарплати за 12.2016р.)",26009054622601,current,677.48,ДПІ у м. Полтава ГУ ДФС у Полтавській області,39680655,юридична особа
АПУ,"Полтавська область, Полтава, вулиця Шевченка, 1",63,2016-12-29,а272,Податок на доходи,Податкові платежі,368088,Полтавська обласна організація,34874174,Полтавська область,"сплачені податки та збори вул. Шевченка, 1,м. І ;;34874174;війсь Полтава, 3601овий збір з зарплати зе 12.2016р.)",26009054622601,current,46.19,УДКСУ у м. Полтаві,38019510,юридична особа
АПУ,"Хмельницька область, Хмельницький, вулиця Проскурівська, 56",63,2016-12-29,470,Податок на доходи,Податкові платежі,368057,Хмельницька обласна організація,38968240,Хмельницька область,сплачені податки та збори ( Сплата ПДФО 18% з ЗП за грудень 2016р),26003010007435,current,655.51,УДКСУ у м. Хмельницькому,38045529,юридична особа
АПУ,"Полтавська область, Полтава, вулиця Шевченка, 1",63,2016-12-29,270,Податок на доходи,Податкові платежі,368044,Полтавська обласна організація,34874174,Полтавська область,"сплачені податки та вул. Шевченка, 1, м. збори Полтава, 3601|(101;;34874174,ПДФС з зарплати за 12.2016р.",26009054622601,current,554.30,УДКСУ у м. Полтаві,38019510,юридична особа
АПУ,,84,2016-12-29,269,"Заробітна плата, премії","Заробітна плата, лікарняні, вагітності, відрядження, компенсації",367802,Полтавська обласна організація,34874174,Полтавська область,"Заробітна плата (Зарплата за 12.2016р., податки сплачені повністю)",26009054622601,current,1708.92,Срібна Ірина Сергіївна,,фізична особа
АПУ,,84,2016-12-29,223,"Заробітна плата, премії","Заробітна плата, лікарняні, вагітності, відрядження, компенсації",367790,Полтавська обласна організація,34874174,Полтавська область,Заробітна плата (Федченко А Г. Фінансув для надан заст ос мат забезп (вагіт та полог) заяв від 09.11.16 _)_,26009054622601,current,6192.90,Федченко Анна Григорівна,,фізична особа
АПУ,"Київ, вулиця Євгена Коновальця, 32Г",53,2016-12-29,110,Витрати на розміщення зовнішньої реклами,Зовнішня реклама,367624,Київська обласна організація,35032539,Київська область,матеріальні витрати та оплата послуг (послуги по розміщенню рекламного зображення згідно договору ИПМ-2709 від 20.12.2016),26006052746076,current,247417.20,"ТОВ ""Преміум Медіа Груп""",34716807,юридична особа
АПУ,"Житомирська область, Хорошівський район, Нова Борова, вулиця Іршанська, 2",69,2016-12-29,14,Організація заходів та інші організаційні послуги,Організація заходів та інші організаційні послуги,367578,Житомирська обласна організація,35021328,Житомирська область,публічні заходи (Доплата за організацію концерту по рах. N13 від 27.12.2016 р. Без ПДВ),26001060520970,current,10000.00,Полторакіна Н О,3064505423,фізична особа
АПУ,"Одеська область, Одеса, вулиця Краснова, 6/1",70,2016-12-29,рко863,Банківські послуги,Інші витрати,367567,Хмельницька обласна організація,38968240,Хмельницька область,інші нсзаборонсні законом витрати (Послуги банку),26003010007435,current,36.10,"АБ ""Південний""",20953647,юридична особа
АПУ,"Київ, вулиця Миколи Лєскова, 9",70,2016-12-29,бн688,Банківські послуги,Інші витрати,367554,Ширяївська районна організація,36909245,Одеська область,інші не заборонені законом витрати (комісія за користування пакетом послуг),26005495447,current,100.00,"АТ ""Райффайзен банк Аваль""",14305909,юридична особа
АПУ,"Київ, вулиця Миколи Лєскова, 9",70,2016-12-29,бн687,Банківські послуги,Інші витрати,367553,Ширяївська районна організація,36909245,Одеська область,інші не заборонені законом витрати (комісія за вихідні перекази в нац. валюті на паперових носіях ),26005495447,current,480.00,"АТ ""Райффайзен банк Аваль""",14305909,юридична особа
АПУ,"Київ, вулиця Миколи Лєскова, 9",70,2016-12-29,бн686,Банківські послуги,Інші витрати,367552,Ширяївська районна організація,36909245,Одеська область,інші не заборонені законом витрати (комісія за вихідні перекази в нац. валюті на паперових носіях ),26005495447,current,60.00,"АТ ""Райффайзен банк Аваль""",14305909,юридична особа
АПУ,"Київ, вулиця Миколи Лєскова, 9",70,2016-12-29,6577,Банківські послуги,Інші витрати,367507,Мелітопольська районна організація,40564163,Запорізька область,"інші не заборонені законом витрати (Комісія за користування пакетом послуг з 29,11,16 по 28,12.16.)",26004534622,current,90.00,"АТ ""Райффайзен банк Аваль""",14305909,юридична особа
АПУ,"Одеська область, Одеса, вулиця Краснова, 6/1",70,2016-12-29,473550,Банківські послуги,Інші витрати,367497,Хмельницька обласна організація,38968240,Хмельницька область,інші незаборопені законом втрати (Послуг и банку),26003010007435,current,52.00,"АБ ""Південний""",20953647,юридична особа
АПУ,"Київ, вулиця Михайла Грушевського, 1Д",70,2016-12-29,15А1200094215,Банківські послуги,Інші витрати,367436,Полтавська обласна організація,34874174,Полтавська область,інші не заборонені законом витрати (оплата комісії за касове обслуговування по Полтавська обл. ПО АПУ. без ПДВ.),26009054622601,current,4.27,"ПАТ КБ ""Приватбанк""",14360570,юридична особа
АПУ,"Київ, вулиця Михайла Грушевського, 1Д",70,2016-12-29,122915рйх83,Банківські послуги,Інші витрати,367391,Одеська обласна організація,37279902,Одеська область,інші не заборонені законом витрати (комісія за виконання платежів в національній валюті),26005054325961,current,8.00,"ПАТ КБ ""Приватбанк""",14360570,юридична особа
АПУ,"Київ, вулиця Михайла Грушевського, 1Д",70,2016-12-29,122915рйх82,Банківські послуги,Інші витрати,367390,Одеська обласна організація,37279902,Одеська область,інші не заборонені законом витрати (комісія за виконання платежів в національній валюті),26005054325961,current,1.60,"ПАТ КБ ""Приватбанк""",14360570,юридична особа
АПУ,"Київ, вулиця Михайла Грушевського, 1Д",72,2016-12-29,1008,"Придбання, ремонт офісної техніки та програмного забезпечення (Бухгалтерські програми, Ліга.закон, домени)",Придбання офісної техніки та програмного забезпечення,367249,Центральний офіс,34763401,Україна,послуги зв'язку (за послуги хостингу зг.рах.Ш-3014882 від 22.12.2016),26009052641121,current,1136.00,"ПАТ КБ ""Приватбанк""",14360570,юридична особа
АПУ,"Хмельницька область, Чемеровецький район, Чемерівці, вулиця Пирогова, 1",79,2016-12-29,472,"Оренда будинків і приміщень та експлуатаційні витрати (прибирання, страхування орендованих будинків, охорона, сигналізація, ремонт, вивіз сміття, тощо)",Оренда нерухомості,367090,Хмельницька обласна організація,38968240,Хмельницька область,"оренда приміщення (будинку,офіса)(За оренду нриміщеннялистопад-грудень зг. Рах-факт№ 118,1 19 від 01.12.2016р. Без ПДВ)",26003010007435,current,1210.00,Купріянчук М С,,фізична особа
АПУ,"Хмельницька область, Хмельницький, вулиця Свободи, 70",79,2016-12-29,465,"Оренда будинків і приміщень та експлуатаційні витрати (прибирання, страхування орендованих будинків, охорона, сигналізація, ремонт, вивіз сміття, тощо)",Оренда нерухомості,367087,Хмельницька обласна організація,38968240,Хмельницька область,"оренда приміщення (За комунальні послуги листопад, грудень зг рах№343, 375 від 26.12.2016р Без ПДВ)",26003010007435,current,6204.13,"Департамент агропромислового розвитку, екології та природних ресурсів Хмельницької обласної державної адміністрації",33709631,юридична особа
АПУ,"Хмельницька область, Хмельницький, вулиця Свободи, 70",79,2016-12-29,464,"Оренда будинків і приміщень та експлуатаційні витрати (прибирання, страхування орендованих будинків, охорона, сигналізація, ремонт, вивіз сміття, тощо)",Оренда нерухомості,367086,Хмельницька обласна організація,38968240,Хмельницька область,"оренда приміщення (будинку,офіса) (Орендна плата за листопад-грудень зг рах№359 від 16.12.2016р Без ПДВ",26003010007435,current,15587.82,"Департамент агропромислового розвитку, екології та природних ресурсів Хмельницької обласної державної адміністрації",33709631,юридична особа
АПУ,"Одеська область, Одеса, Миколаївська дорога, 187",79,2016-12-29,162,"Оренда будинків і приміщень та експлуатаційні витрати (прибирання, страхування орендованих будинків, охорона, сигналізація, ремонт, вивіз сміття, тощо)",Оренда нерухомості,366986,Одеська обласна організація,37279902,Одеська область,"оренда приміщення (будинку, офіса, квартири)",26005054325961,current,800.00,"ТОВ ""Балтаінтерсервіс""",25050909,юридична особа
АПУ,"Київ, вулиця Михайла Грушевського, 1Д",79,2016-12-29,1006,"Оренда будинків і приміщень та експлуатаційні витрати (прибирання, страхування орендованих будинків, охорона, сигналізація, ремонт, вивіз сміття, тощо)",Оренда нерухомості,366932,Центральний офіс,34763401,Україна,"оренда приміщення (будинку, офіса, квартири)(часткова оплата за оренду за грудень зг.рах736 від 20.12.2016)",26009052641121,current,30000.00,"ПАТ КБ ""Приватбанк""",14360570,юридична особа
АПУ,"Запорізька область, Запоріжжя, Південне шосе, 6, 9",74,2016-12-29,721,"Придбання канцтоварів, паперу, інших предметів і матеріалів, а також госп товари",Придбання канцтоварів та госп. товарів,366851,Запорізька обласна організація,34975613,Запорізька область,"Матер.внтрати та оплата послуг (за прод.нифр.друку на папері, зг.рах.№СФ-000028/0 від 28/12/16.)",26006055720257,current,640.00,"ТОВ ""Прогресдизайн""",37408196,юридична особа
АПУ,"Запорізька область, Мелітополь",49,2016-12-29,720,Публікування матеріалів у друкованих ЗМІ,Реклама в друкованих ЗМІ,366580,Запорізька обласна організація,34975613,Запорізька область,"Розм.реклами у друк.засобах мас.інформ (за друк.посл.в газеті, ін..стор.в ""МВ""№0053 від 28/12/16р.рах.№РА 0249 від 26/12/16.)",26006055720257,current,1494.00,"ТОВ ""Рекламне агентство МВ-Плюс""",32963103,юридична особа
АПУ,"Хмельницька область, Хмельницький, проспект Миру, 59",49,2016-12-29,473,Публікування матеріалів у друкованих ЗМІ,Реклама в друкованих ЗМІ,366552,Хмельницька обласна організація,38968240,Хмельницька область,"розміщення реклами у друкованих засобах масової інформації (За новорічне вітання іграх №162 від 29, і 2.16, без ПДВ)",26003010007435,current,484.00,"ПП ""Медіа-центр ""Подільські вісті""",21313714,юридична особа
АПУ,"Київська обл., Іванківський район, Іванків, вулиця Поліська, 2",49,2016-12-29,115,Публікування матеріалів у друкованих ЗМІ,Реклама в друкованих ЗМІ,366446,Київська обласна організація,35032539,Київська область,Розміщення реклами у друкованих засобах масової інформації (за опублікування обяв згідно рахунку N199 від 22.12.2016),26006052746076,current,4000.00,"РГ ""Трибуна праці""",02473263,юридична особа
АПУ,"Київська обл., Васильків, вулиця Грушевського, 15",49,2016-12-29,114,Публікування матеріалів у друкованих ЗМІ,Реклама в друкованих ЗМІ,366445,Київська обласна організація,35032539,Київська область,Розміщення реклами у друкованих засобах масової інформації (за рекламний матеріал згідно рахунку N301 від 20 грудня 2016 року),26006052746076,current,4000.00,"Васильківська міськрайонна громадсько-політична газета ""Життя і слово""",02473352,юридична особа
АПУ,"Київська обл., Миронівський район, Миронівка, вулиця Соборності, 60",49,2016-12-29,113,Публікування матеріалів у друкованих ЗМІ,Реклама в друкованих ЗМІ,366444,Київська обласна організація,35032539,Київська область,Розміщення реклами у друкованих засобах масової інформації (за статтю згідно рахунку N297 від 22 грудня 2016),26006052746076,current,2548.20,"ПП ""Редакція газети ""Миронівський край""",02473292,юридична особа
АПУ,"Київська обл., Богуславський район, Богуслав, вулиця Миколаївська, 30",49,2016-12-29,112,Публікування матеріалів у друкованих ЗМІ,Реклама в друкованих ЗМІ,366443,Київська обласна організація,35032539,Київська область,Розміщення реклами у друкованих засобах масової інформації (за розміщення матеріалу згідно рахунку N666),26006052746076,current,1820.00,"РГ ""Вісті Богуславщини""",02473228,юридична особа
АПУ,"Київська обл., Кагарлицький район, Кагарлик, вулиця Незалежності, 1",49,2016-12-29,111,Публікування матеріалів у друкованих ЗМІ,Реклама в друкованих ЗМІ,366441,Київська обласна організація,35032539,Київська область,Розміщення реклами у друкованих засобах масової інформації (за розміщення матеріалу згідно рахунку N1195),26006052746076,current,3182.40,"ПП ""Інформаційно-рекламне бюро ""Відкриті комунікації""",02473381,юридична особа
АПУ,"Харківська область, Харків",51,2016-12-29,,Оплата ефірного часу на ТБ,Телереклама,366407,Чугуївська районна організація,33867150,Харківська область,розм. Реклами на телебаченні,26004052209164,current,7700.00,"ТОВ ""Компанія АТН""",24270655,юридична особа
АПУ,"Харківська область, Харків, вулиця Римарська, 23А",51,2016-12-29,,Оплата ефірного часу на ТБ,Телереклама,366406,Чугуївська районна організація,33867150,Харківська область,розм. Реклами на телебаченні,26004052209164,current,5000.00,"ПрАТ ""Регіональна телемовна компанія ""Тоніс-Центр""",14059592,юридична особа
АПУ,,51,2016-12-29,466,Оплата ефірного часу на ТБ,Телереклама,366357,Хмельницька обласна організація,38968240,Хмельницька область,"розміщення реклами на телебаченні (За трансляцію сюжету новорічного вітання зг.рах СФ-120,38 від 26,12,16 Без ПДВ)",26003010007435,current,2000.00,Малий Володимир Іванович,,фізична особа
АПУ,"Одеська область, Одеса, Кленова вулиця, 2а, оф. 24 Н",51,2016-12-29,161,Оплата ефірного часу на ТБ,Телереклама,366330,Одеська обласна організація,37279902,Одеська область,розміщення реклами на телебаченні (За розміщення інф. матеріалів),26005054325961,current,4000.00,"ТОВ ""ТНФОРМАЦТЙН Е АГЕНТСТВО ""МЕДТА-ТНФОРМ""",34108219,юридична особа
АПУ,"Київ, вулиця Михайла Грушевського, 1Д",70,2016-12-29,ОАбсіЬІсІІр,Банківські послуги,Інші витрати,366008,Рівненська районна організація,35038970,Рівненська область,"утримання місцевих організацій партії Комісія за відкриття банківського рахунку, згідно з відкритою офертою банку N б/н від 28.11.2016 та тарифів банку, без ПДВ",26002054724863,current,100.00,"ПАТ КБ ""Приватбанк""",14360570,юридична особа
АПУ,"Київ, вулиця Михайла Грушевського, 1Д",70,2016-12-29,І2291ЛР95У,Банківські послуги,Інші витрати,365976,Запорізька обласна організація,34975613,Запорізька область,Інші не заборонені законом витрати(коміс.за викон.банк.шіатеж),26006055720257,current,3.00,"ПАТ КБ ""Приватбанк""",14360570,юридична особа
АПУ,"Київ, вулиця Миколи Лєскова, 9",70,2016-12-29,290,Банківські послуги,Інші витрати,365703,Камʼянська районна організація,35051991,Черкаська область,Комісія,26005500138,current,100.00,"АТ ""Райффайзен банк Аваль""",14305909,юридична особа
АПУ,"Київ, вулиця Миколи Лєскова, 9",70,2016-12-29,289,Банківські послуги,Інші витрати,365701,Камʼянська районна організація,35051991,Черкаська область,Комісія,26005500138,current,40.00,"АТ ""Райффайзен банк Аваль""",14305909,юридична особа
АПУ,"Київ, вулиця Михайла Грушевського, 1Д",70,2016-12-29,261,Банківські послуги,Інші витрати,365674,Чугуївська районна організація,33867150,Харківська область,інші не заборонені законом витрати,26004052209164,current,3.00,"ПАТ КБ ""Приватбанк""",14360570,юридична особа
АПУ,"Київ, вулиця Михайла Грушевського, 1Д",70,2016-12-29,260,Банківські послуги,Інші витрати,365673,Чугуївська районна організація,33867150,Харківська область,інші не заборонені законом витрати,26004052209164,current,3.00,"ПАТ КБ ""Приватбанк""",14360570,юридична особа
АПУ,"Київ, вулиця Михайла Грушевського, 1Д",70,2016-12-29,229ЬЗІУР,Банківські послуги,Інші витрати,365644,Полтавська обласна організація,34874174,Полтавська область,"інші не заборонені законом витрати вул. Набережна (Комісія за виконання Іеремоги, 50, м. Дніпро, платежів в національній 49094, Україна/м. валюті згідно з Полтава, вул. відкритою офертою Великотирнівська, 35/2 банку б/н від 07.09.2015 та тарифів банку.Без ПДВ.)",26009054622601,current,3.00,"ПАТ КБ ""Приватбанк""",14360570,юридична особа
АПУ,"Київ, вулиця Михайла Грушевського, 1Д",70,2016-12-29,220,Банківські послуги,Інші витрати,365635,Рівненська обласна організація,35103253,Рівненська область,комісія,26002054724863-2,current,0.14,"ПАТ КБ ""Приватбанк""",14360570,юридична особа
АПУ,"Київ, вулиця Михайла Грушевського, 1Д",70,2016-12-29,16С2700008,Банківські послуги,Інші витрати,365591,Чернівецька обласна організація,35096655,Чернівецька область,Інші не заборонені витрати,26002051503022,current,7.68,"ПАТ КБ ""Приватбанк""",14360570,юридична особа
АПУ,"Київ, вулиця Михайла Грушевського, 1Д",70,2016-12-29,1229ЬЗІУУУ,Банківські послуги,Інші витрати,365478,Полтавська обласна організація,34874174,Полтавська область,"інші не заборонені законом витрати вул. Набережна (Комісія за виконання Перемоги, 50, м. Дніпро; платежів в національній 49094, Україна/м. валюті згідно з Полтава, вул. відкритою офертою Великотирнівська, 35/2 банку б/н від 07.09.2015 та тарифів | банку.Без ПДВ.)",26009054622601,current,3.00,"ПАТ КБ ""Приватбанк""",14360570,юридична особа
АПУ,"Київ, вулиця Михайла Грушевського, 1Д",70,2016-12-29,1229Ь2И1РА,Банківські послуги,Інші витрати,365477,Центральний офіс,34763401,Україна,Інші не заборонені законом витрати (Комісія за поповнення карток для виплат та нецільові платежі),26009052641121,current,0.75,"ПАТ КБ ""Приватбанк""",14360570,юридична особа
АПУ,"Київ, вулиця Михайла Грушевського, 1Д",70,2016-12-29,1229Ь02ШУ,Банківські послуги,Інші витрати,365476,Центральний офіс,34763401,Україна,"Інші не заборонені законом витрати (Комісія за виконання платежів в національній валюті, згідно з відкритою офертою банку N б/н від 20.01.2015 та тарифів банку, без ПДВ.)",26009052641121,current,3.00,"ПАТ КБ ""Приватбанк""",14360570,юридична особа
АПУ,"Київ, вулиця Михайла Грушевського, 1Д",70,2016-12-29,1229Ь02УРУ,Банківські послуги,Інші витрати,365475,Центральний офіс,34763401,Україна,"Інші не заборонені законом витрати (Комісія за виконання платежів в національній валюті, згідно з відкритою офертою банку N б/н від 20.01.2015 та тарифів банку, без ПДВ.)",26009052641121,current,3.00,"ПАТ КБ ""Приватбанк""",14360570,юридична особа
АПУ,"Київ, вулиця Михайла Грушевського, 1Д",70,2016-12-29,1229БЗІХ6У,Банківські послуги,Інші витрати,365474,Полтавська обласна організація,34874174,Полтавська область,"інші не заборонені законом витрати вул. Набережна (Комісія за виконання Перемоги, 50, м. Дніпро, платежів в національній 49094, Україна/м. валюті згідно з Полтава, вул. відкритою офертою Великотирнівська, 35/2 банку б/н від 07.09.2015 та тарифів | банку.Без ПДВ.)",26009054622601,current,3.00,"ПАТ КБ ""Приватбанк""",14360570,юридична особа
АПУ,"Київ, вулиця Михайла Грушевського, 1Д",70,2016-12-29,1229Б3КБ9А,Банківські послуги,Інші витрати,365473,Центральний офіс,34763401,Україна,Інші не заборонені законом витрати (Комісія за поповнення карток для виплат та нецільові платежі),26009052641121,current,1.88,"ПАТ КБ ""Приватбанк""",14360570,юридична особа
АПУ,"Київ, вулиця Михайла Грушевського, 1Д",70,2016-12-29,1229Б3КБ8А,Банківські послуги,Інші витрати,365472,Центральний офіс,34763401,Україна,Інші не заборонені законом витрати (Комісія за поповнення карток для виплат та нецільові платежі),26009052641121,current,1.88,"ПАТ КБ ""Приватбанк""",14360570,юридична особа
АПУ,"Київ, вулиця Михайла Грушевського, 1Д",70,2016-12-29,1229Б3ГТКА,Банківські послуги,Інші витрати,365471,Центральний офіс,34763401,Україна,Інші не заборонені законом витрати (Комісія за поповнення карток для виплат та нецільові платежі),26009052641121,current,0.75,"ПАТ КБ ""Приватбанк""",14360570,юридична особа
АПУ,"Київ, вулиця Михайла Грушевського, 1Д",70,2016-12-29,1229Б36А3У,Банківські послуги,Інші витрати,365470,Київська обласна організація,35032539,Київська область,"інші не заборонені законом витрати (Комісія за виконання платежів в національній валюті, згідно з відкритою офертою банку N б/н від 02.09.2015 та тарифів банку, без ПДВ.)",26006052746076,current,3.00,"ПАТ КБ ""Приватбанк""",14360570,юридична особа
АПУ,"Київ, вулиця Михайла Грушевського, 1Д",70,2016-12-29,1229Б3409У,Банківські послуги,Інші витрати,365469,Київська обласна організація,35032539,Київська область,"інші не заборонені законом витрати (Комісія за виконання платежів в національній валюті, згідно з відкритою офертою банку N б/н від 02.09.2015 та тарифів банку, без ПДВ.)",26006052746076,current,3.00,"ПАТ КБ ""Приватбанк""",14360570,юридична особа
АПУ,"Київ, вулиця Михайла Грушевського, 1Д",70,2016-12-29,1229Б33НЕУ,Банківські послуги,Інші витрати,365468,Київська обласна організація,35032539,Київська область,"інші не заборонені законом витрати (Комісія за виконання платежів в національній валюті, згідно з відкритою офертою банку N б/н від 02.09.2015 та тарифів банку, без ПДВ.)",26006052746076,current,3.00,"ПАТ КБ ""Приватбанк""",14360570,юридична особа
АПУ,"Київ, вулиця Михайла Грушевського, 1Д",70,2016-12-29,1229Б321УУ,Банківські послуги,Інші витрати,365467,Київська обласна організація,35032539,Київська область,"інші не заборонені законом витрати (Комісія за виконання платежів в національній валюті, згідно з відкритою офертою банку N б/н від 02.09.2015 та тарифів банку, без ПДВ.)",26006052746076,current,3.00,"ПАТ КБ ""Приватбанк""",14360570,юридична особа
АПУ,"Київ, вулиця Михайла Грушевського, 1Д",70,2016-12-29,1229Б31УРА,Банківські послуги,Інші витрати,365466,Центральний офіс,34763401,Україна,Інші не заборонені законом витрати (Комісія за поповнення карток для виплат та нецільові платежі),26009052641121,current,1.88,"ПАТ КБ ""Приватбанк""",14360570,юридична особа
АПУ,"Київ, вулиця Михайла Грушевського, 1Д",70,2016-12-29,1229Б2Х26У,Банківські послуги,Інші витрати,365465,Київська обласна організація,35032539,Київська область,"інші не заборонені законом витрати (Комісія за виконання платежів в національній валюті, згідно з відкритою офертою банку N б/н від 02.09.2015 та тарифів банку, без ПДВ.)",26006052746076,current,3.00,"ПАТ КБ ""Приватбанк""",14360570,юридична особа
АПУ,"Київ, вулиця Михайла Грушевського, 1Д",70,2016-12-29,1229Б2УУ?У,Банківські послуги,Інші витрати,365464,Запорізька обласна організація,34975613,Запорізька область,інші не заборонені законом витрати,26006055720257,current,3.00,"ПАТ КБ ""Приватбанк""",14360570,юридична особа
АПУ,"Київ, вулиця Михайла Грушевського, 1Д",70,2016-12-29,122915рйу,Банківські послуги,Інші витрати,365463,Одеська обласна організація,37279902,Одеська область,інші не заборонені законом витрати (комісія за виконання платежів в національній валюті),26005054325961,current,3.00,"ПАТ КБ ""Приватбанк""",14360570,юридична особа
АПУ,"Київ, вулиця Михайла Грушевського, 1Д",70,2016-12-29,122915р%,Банківські послуги,Інші витрати,365462,Одеська обласна організація,37279902,Одеська область,інші не заборонені законом витрати (комісія за виконання платежів в національній валюті),26005054325961,current,3.00,"ПАТ КБ ""Приватбанк""",14360570,юридична особа
АПУ,"Київ, вулиця Михайла Грушевського, 1Д",70,2016-12-29,1227І39ШРУ,Банківські послуги,Інші витрати,365455,Сумська обласна організація,34932761,Сумська область,інші незаборонені законом витрати /комісія за виконання платежів /,26001055008647,current,3.00,"ПАТ КБ ""Приватбанк""",14360570,юридична особа
АПУ,"Рівненська область, Рівне",69,2016-12-28,,Організація заходів та інші організаційні послуги,Організація заходів та інші організаційні послуги,368771,Рівненська обласна організація,35103253,Рівненська область,публічні заходи (за подарунки),26002054724863-2,current,10000.00,Фурманець Віталій Миколайович,2644613974,фізична особа
АПУ,"Чернівецька область, Чернівці, вулиця Кобилянської, 11",61,2016-12-28,54,Військовий збір,Податкові платежі,368198,Чернівецька обласна організація,35096655,Чернівецька область,"Військовий збір із з/п за грудень 2016р. 1,5%",26002051503022,current,57.27,УДКСУ у м. Чернівці,37978173,юридична особа
АПУ,,62,2016-12-28,55,Сплата ЄСВ,Податкові платежі,368134,Чернівецька обласна організація,35096655,Чернівецька область,"ЄСВ нараховане на з/п за грудень 2016р, 22%",26002051503022,current,840.00,ДПІ в м.Чернівцях ГУДФС у Черн.обл.,39579145,юридична особа
АПУ,"Чернівецька область, Чернівці, вулиця Кобилянської, 11",63,2016-12-28,53,Податок на доходи,Податкові платежі,368061,Чернівецька обласна організація,35096655,Чернівецька область,Податок з доходів фізичних осіб із з/п за грудень 2016р. 18%,26002051503022,current,687.27,УДКСУ у м. Чернівці,37978173,юридична особа
АПУ,"Чернівецька область, Чернівці, вулиця Сімовича, 14, 4",84,2016-12-28,60,"Заробітна плата, премії","Заробітна плата, лікарняні, вагітності, відрядження, компенсації",367862,Чернівецька обласна організація,35096655,Чернівецька область,Вилата заробітної плати,26002051503022,current,3073.64,Івасюк Руслана Іванівна,2705012344,фізична особа
АПУ,"Житомирська область, Хорошівський район, Нова Борова, вулиця Іршанська, 2",69,2016-12-28,ІЗ,Організація заходів та інші організаційні послуги,Організація заходів та інші організаційні послуги,367615,Житомирська обласна організація,35021328,Житомирська область,публічні заходи (Часткова оплата за організацію концерту по рах. N13 від 27.12.2016 р. Без ПДВ),26001060520970,current,20000.00,Полторакіна Н О,3064505423,фізична особа
АПУ,"Чернівецька область, Чернівці, вулиця Івана Гонти, 20",69,2016-12-28,58,Організація заходів та інші організаційні послуги,Організація заходів та інші організаційні послуги,367588,Чернівецька обласна організація,35096655,Чернівецька область,Оплата рахунку-фактури від 24.11.16р. За оренду конференцзалу,26002051503022,current,400.00,"Громадська організація ""Справа Кольпінга в Україні""",26075679,юридична особа
АПУ,"Одеська область, Одеса, вулиця Краснова, 6/1",70,2016-12-28,рко862,Банківські послуги,Інші витрати,367566,Хмельницька обласна організація,38968240,Хмельницька область,інші пезаборонені законом витрати (Послуги банку),26003010007435,current,137.00,"АБ ""Південний""",20953647,юридична особа
АПУ,"Донецька область, Краматорськ, вулиця Сіверська, 54",70,2016-12-28,3475,Банківські послуги,Інші витрати,367484,Красноармійська районна організація,40258180,Донецька область,Абонплата та комісія за обсл.рахунку,26009300903842,current,207.00,"Донецька обласна філія АТ ""Ощадбанк""",00335106,юридична особа
АПУ,"Київ, вулиця Михайла Грушевського, 1Д",70,2016-12-28,217300,Банківські послуги,Інші витрати,367465,Рівненська обласна організація,35103253,Рівненська область,комісія,26002054724863-2,current,0.14,"ПАТ КБ ""Приватбанк""",14360570,юридична особа
АПУ,"Чернівецька область, Чернівці, вулиця Івана Гонти, 20",79,2016-12-28,56,"Оренда будинків і приміщень та експлуатаційні витрати (прибирання, страхування орендованих будинків, охорона, сигналізація, ремонт, вивіз сміття, тощо)",Оренда нерухомості,367103,Чернівецька обласна організація,35096655,Чернівецька область,оренда приміщення (офіса) (Оплата рахунку-фактури від 31.10.16р. Згідно договору оренди нежитлових приміщень №ГО011016 від 01.10.16р. ) Орендна плата за листопад,26002051503022,current,1690.00,"Громадська організація ""Справа Кольпінга в Україні""",26075679,юридична особа
АПУ,"Київ, вулиця Михайла Грушевського, 1Д",43,2016-12-28,С1228К04АМ,Інші витрати,Інші витрати,366907,Рівненська районна організація,35038970,Рівненська область,матеріальні витрати та оплата послуг Оплата за товари та послуги 28.12.2016 12:51:59 по картці 5169330510328195,26002054724863,current,1043.00,"ПАТ КБ ""Приватбанк""",14360570,юридична особа
АПУ,"Чернівецька область, Чернівці, вулиця Івана Гонти, 20",43,2016-12-28,59,Інші витрати,Інші витрати,366802,Чернівецька обласна організація,35096655,Чернівецька область,Оплата рахунку-фактури від 29.11.16р.,26002051503022,current,644.60,"Громадська організація ""Справа Кольпінга в Україні""",26075679,юридична особа
АПУ,м. Кропивницький,43,2016-12-28,127,Інші витрати,Інші витрати,366745,Кіровоградська обласна організація,36978104,Кіровоградська область,Матеріальні витрати,26007052918872,current,9919.20,"ТОВ ""Імекс ЛТД""",13768524,юридична особа
АПУ,"Київ, вулиця Михайла Грушевського, 1Д",70,2016-12-28,Б15А120009,Банківські послуги,Інші витрати,365968,Полтавська обласна організація,34874174,Полтавська область,"інші не заборонені вул. Набережна 1 законом витрати Перемоги, 50, м. Дніпро, Іоплата комісії за касов 49094, Україна/м. 1 обслуговування по Полтава, вул. Полтавська обл. ПО Великотирнівська, 35/2 1 дду без ПДВ.)",26009054622601,current,4.07,"ПАТ КБ ""Приватбанк""",14360570,юридична особа
АПУ,"Одеська область, Одеса, вулиця Краснова, 6/1",70,2016-12-28,5558550,Банківські послуги,Інші витрати,365758,Одеська міська організація,40560001,Одеська область,матеріальні витрати та оплата послуг (Оплата ведення рахунку),26007010020883,current,50.00,"АБ ""Південний""",20953647,юридична особа
АПУ,"Одеська область, Одеса, вулиця Краснова, 6/1",70,2016-12-28,5558518,Банківські послуги,Інші витрати,365757,Одеська міська організація,40560001,Одеська область,матеріальні витрати та оплата послуг (Оплата РКО),26007010020883,current,40.00,"АБ ""Південний""",20953647,юридична особа
АПУ,"Київ, вулиця Миколи Лєскова, 9",70,2016-12-28,5,Банківські послуги,Інші витрати,365748,Мелітопольська районна організація,40564163,Запорізька область,"інші не заборонені законом витрати (Комісія за користування пакетом послуг з 29,09,16 по 27,10,16.)",26004534622,current,90.00,"АТ ""Райффайзен банк Аваль""",14305909,юридична особа
АПУ,"Київ, вулиця Михайла Грушевського, 1Д",70,2016-12-28,219,Банківські послуги,Інші витрати,365634,Рівненська обласна організація,35103253,Рівненська область,комісія,26002054724863-2,current,3.00,"ПАТ КБ ""Приватбанк""",14360570,юридична особа
АПУ,"Київ, вулиця Михайла Грушевського, 1Д",70,2016-12-28,218,Банківські послуги,Інші витрати,365633,Рівненська обласна організація,35103253,Рівненська область,комісія,26002054724863-2,current,0.33,"ПАТ КБ ""Приватбанк""",14360570,юридична особа
АПУ,"Київ, вулиця Михайла Грушевського, 1Д",70,2016-12-28,1228Б367БУ,Банківські послуги,Інші витрати,365461,Чернівецька обласна організація,35096655,Чернівецька область,Інші не заборонені витрати,26002051503022,current,3.00,"ПАТ КБ ""Приватбанк""",14360570,юридична особа
АПУ,"Київ, вулиця Михайла Грушевського, 1Д",70,2016-12-28,1228Б3220У,Банківські послуги,Інші витрати,365460,Чернівецька обласна організація,35096655,Чернівецька область,Інші не заборонені витрати,26002051503022,current,3.00,"ПАТ КБ ""Приватбанк""",14360570,юридична особа
АПУ,"Київ, вулиця Михайла Грушевського, 1Д",70,2016-12-28,1228Б2ТКРУ,Банківські послуги,Інші витрати,365459,Чернівецька обласна організація,35096655,Чернівецька область,Інші не заборонені витрати,26002051503022,current,3.00,"ПАТ КБ ""Приватбанк""",14360570,юридична особа
АПУ,"Київ, вулиця Михайла Грушевського, 1Д",70,2016-12-28,1228Б2ИС4У,Банківські послуги,Інші витрати,365458,Чернівецька обласна організація,35096655,Чернівецька область,Інші не заборонені витрати,26002051503022,current,3.00,"ПАТ КБ ""Приватбанк""",14360570,юридична особа
АПУ,"Київ, вулиця Михайла Грушевського, 1Д",70,2016-12-28,1228Б2И99У,Банківські послуги,Інші витрати,365457,Чернівецька обласна організація,35096655,Чернівецька область,Інші не заборонені витрати,26002051503022,current,3.00,"ПАТ КБ ""Приватбанк""",14360570,юридична особа
АПУ,"Київ, вулиця Михайла Грушевського, 1Д",70,2016-12-28,1228Б225КУ,Банківські послуги,Інші витрати,365456,Чернівецька обласна організація,35096655,Чернівецька область,Інші не заборонені витрати,26002051503022,current,3.00,"ПАТ КБ ""Приватбанк""",14360570,юридична особа
АПУ,"Рівненська область, Рівне",74,2016-12-27,182,"Придбання канцтоварів, паперу, інших предметів і матеріалів, а також госп товари",Придбання канцтоварів та госп. товарів,368594,Рівненська обласна організація,35103253,Рівненська область,госпвитрати,26002054724863-2,current,130.92,Стретович Світлана Юріївна,,фізична особа
АПУ,"Сумська область, Суми, проспект Тараса Шевченка, 24, 17",74,2016-12-27,173,"Придбання канцтоварів, паперу, інших предметів і матеріалів, а також госп товари",Придбання канцтоварів та госп. товарів,368593,Сумська обласна організація,34932761,Сумська область,матеріальні витрати та оплата послуг/за плівку,26001055008647,current,1246.00,Курʼякова Н О,2960411780,фізична особа
АПУ,"Полтавська область, Полтава, вулиця Шевченка, 1",61,2016-12-27,268,Військовий збір,Податкові платежі,368179,Полтавська обласна організація,34874174,Полтавська область,"сплачені податки та збори вул. Шевченка, 1, м. (іоі;;34874174;військ Полтава, 3601овий збір з зарплати за 12.2016р.)",26009054622601,current,18.26,УДКСУ у м. Полтаві,38019510,юридична особа
АПУ,,62,2016-12-27,267,Сплата ЄСВ,Податкові платежі,368112,Полтавська обласна організація,34874174,Полтавська область,"сплачені податки та збори 36008, м. Полтава, вул. (101;;34874174;ЄСВ Європейська, 155 нарах/утриман роботодавцем з зарплати за 12.2016р.)",26009054622601,current,267.85,ДПІ у м. Полтава ГУ ДФС у Полтавській області,39680655,юридична особа
АПУ,"Полтавська область, Полтава, вулиця Шевченка, 1",63,2016-12-27,269,Податок на доходи,Податкові платежі,368043,Полтавська обласна організація,34874174,Полтавська область,"сплачені податки та вул. Шевченка, 1, м. збори Полтава, 3601|(101;;34874174,ПДФС Із зарплати за 12.2016р.)",26009054622601,current,343.17,УДКСУ у м. Полтаві,38019510,юридична особа
АПУ,,84,2016-12-27,270,"Заробітна плата, премії","Заробітна плата, лікарняні, вагітності, відрядження, компенсації",367805,Полтавська обласна організація,34874174,Полтавська область,"Заробітна плата (Зарплата за 12.2016р., податки сплачені повністю)",26009054622601,current,811.03,Луценко Олена Іванівна,,фізична особа
АПУ,,84,2016-12-27,270,"Заробітна плата, премії","Заробітна плата, лікарняні, вагітності, відрядження, компенсації",367804,Полтавська обласна організація,34874174,Полтавська область,"Заробітна плата (Зарплата за 12.2016р., податки сплачені повністю)",26009054622601,current,815.07,Дружиніна Любов Володимирівна,,фізична особа
АПУ,"Київ, вулиця Михайла Грушевського, 1Д",70,2016-12-27,216296,Банківські послуги,Інші витрати,367464,Рівненська обласна організація,35103253,Рівненська область,комісія,26002054724863-2,current,10.50,"ПАТ КБ ""Приватбанк""",14360570,юридична особа
АПУ,"Київ, вулиця Михайла Грушевського, 1Д",72,2016-12-27,1005,"Придбання, ремонт офісної техніки та програмного забезпечення (Бухгалтерські програми, Ліга.закон, домени)",Придбання офісної техніки та програмного забезпечення,367358,Центральний офіс,34763401,Україна,"матеріальні витрати та оплата послуг (оплата винагороди за надан.права викор. обєкт. інтелект. власн. -Програмн.продукції ""Ипі8еп4ег"" зг.рах.Ш73359 від",26009052641121,current,500.00,"ПАТ КБ ""Приватбанк""",14360570,юридична особа
АПУ,"Полтавська область, Полтава, вулиця Міщенка, 2",49,2016-12-27,268,Публікування матеріалів у друкованих ЗМІ,Реклама в друкованих ЗМІ,366484,Полтавська обласна організація,34874174,Полтавська область,"розміщення реклами у друкованих засобах масової інформації (за опублікув стат по )ах№586 від 21.12.2016, без ПДВ.)",26009054622601,current,2700.00,"РГ ""Село Полтавське""",13956310,юридична особа
АПУ,"Рівненська область, Рівне",49,2016-12-27,10,Публікування матеріалів у друкованих ЗМІ,Реклама в друкованих ЗМІ,366434,Рівненська районна організація,35038970,Рівненська область,матеріальні витрати та оплата послуг за публікацію платних матеріалів,26002054724863,current,250.00,"РГ ""Слово і час""",02474831,юридична особа
АПУ,"Сумська область, Суми, вулиця Харківська, 4",51,2016-12-27,176,Оплата ефірного часу на ТБ,Телереклама,366183,Сумська обласна організація,34932761,Сумська область,матеріальні витрати та оплата послуг/за виготовлення та передачу телепродукції/,26001055008647,current,16200.00,"ТОВ ""Телерадіокомпанія ""Академ TV""",32185841,юридична особа
АПУ,"Луганська область, Сєвєродонецьк, проспект Радянський",58,2016-12-27,17,"Виготовлення друкованих матеріалів (плакатів, листівок, буклетів та інших агітаційних матеріалів)",Друкована агітація,366089,Луганська обласна організація,37287520,Луганська область,"- пропагандистська діяльність (інформаційна, рекламна, видавнича, поліграфічна), у тому числі: видавнича діяльність Оплата за печатку зг рах 284 Від 06 12 2016р Без ПДВ",26007053717461,current,1520.00,Цвєтний Ігор Володимирович,2695207514,фізична особа
АПУ,"Київ, вулиця Михайла Грушевського, 1Д",70,2016-12-27,5А1200094,Банківські послуги,Інші витрати,365773,Полтавська обласна організація,34874174,Полтавська область,інші не заборонені законом витрати оплата комісії за касове обслуговування по Полтавська обл. ПО АПУ. без ПДВ.),26009054622601,current,120.00,"ПАТ КБ ""Приватбанк""",14360570,юридична особа
АПУ,"Київ, вулиця Михайла Грушевського, 1Д",70,2016-12-27,227БЗТ0ІУ,Банківські послуги,Інші витрати,365642,Полтавська обласна організація,34874174,Полтавська область,"інші не заборонені законом витрати вул. Набережна (Комісія за виконання їеремоги, 50, м. Дніпро, платежів в національній 49094, Україна/м. валюті згідно з Полтава, вул. відкритою офертою Великотирнівська, 35/2 банку б/н від 07.09.2015 та тарифів банку.Без ПДВ.)",26009054622601,current,3.00,"ПАТ КБ ""Приватбанк""",14360570,юридична особа
АПУ,"Київ, вулиця Михайла Грушевського, 1Д",70,2016-12-27,215,Банківські послуги,Інші витрати,365631,Рівненська обласна організація,35103253,Рівненська область,комісія,26002054724863-2,current,0.33,"ПАТ КБ ""Приватбанк""",14360570,юридична особа
АПУ,"Київ, вулиця Михайла Грушевського, 1Д",70,2016-12-27,1227БЗТ0ІХ,Банківські послуги,Інші витрати,365454,Полтавська обласна організація,34874174,Полтавська область,"інші не заборонені законом витрати вул. Набережна (Комісія за виконання Перемоги, 50, м. Дніпро, платежів в національній 49094, Україна/м. валюті в післяоперац Полтава, вул. час згідно з відкритою Великотирнівська, 35/2 офертою банку б/н від 07.09.2015 та тарифів банку.Без ПДВ.)",26009054622601,current,5.40,"ПАТ КБ ""Приватбанк""",14360570,юридична особа
АПУ,"Київ, вулиця Михайла Грушевського, 1Д",70,2016-12-27,1227БЗОЕСУ,Банківські послуги,Інші витрати,365453,Полтавська обласна організація,34874174,Полтавська область,інші не заборонені законом витрати (Комісія за виконання платежів в національні валюті згідно з відкритою офертою банку б/н від 07.09.2015 та тарифів банку.Без ПДВ.),26009054622601,current,3.00,"ПАТ КБ ""Приватбанк""",14360570,юридична особа
АПУ,"Київ, вулиця Михайла Грушевського, 1Д",70,2016-12-27,1227БЗОЕКУ,Банківські послуги,Інші витрати,365452,Полтавська обласна організація,34874174,Полтавська область,інші не заборонені законом витрати (Комісія за виконання платежів в національній валюті згідно з відкритою офертою банку б/н від 07.09.2015 та тарифів банку.Без ПДВ.),26009054622601,current,3.00,"ПАТ КБ ""Приватбанк""",14360570,юридична особа
АПУ,"Київ, вулиця Михайла Грушевського, 1Д",70,2016-12-27,1227БЗОЕВУ,Банківські послуги,Інші витрати,365451,Полтавська обласна організація,34874174,Полтавська область,інші не заборонені законом витрати (Комісія за виконання платежів в національній валюті згідно з відкритою офертою банку б/н від 07.09.2015 та тарифів банку.Без ПДВ.),26009054622601,current,3.00,"ПАТ КБ ""Приватбанк""",14360570,юридична особа
АПУ,"Київ, вулиця Михайла Грушевського, 1Д",70,2016-12-27,1227Б1БОСУ,Банківські послуги,Інші витрати,365450,Центральний офіс,34763401,Україна,"27.12.2016) Інші не заборонені законом витрати (Комісія за виконання платежів в національній валюті, згідно з відкритою офертою банку N б/н від 20.01.2015 та тарифів банку, без ПДВ.)",26009052641121,current,3.00,"ПАТ КБ ""Приватбанк""",14360570,юридична особа
АПУ,,83,2016-12-26,266,"Виплати працівникам (не зарплата): лікарняні, вагітності, відрядження, компенсації ","Заробітна плата, лікарняні, вагітності, відрядження, компенсації",368608,Полтавська обласна організація,34874174,Полтавська область,інші не заборонені законом витрати (Відрядні Дружиніна відповідно до наказу),26009054622601,current,240.00,Дружиніна Любов Володимирівна,,фізична особа
АПУ,,83,2016-12-26,265,"Виплати працівникам (не зарплата): лікарняні, вагітності, відрядження, компенсації ","Заробітна плата, лікарняні, вагітності, відрядження, компенсації",368607,Полтавська обласна організація,34874174,Полтавська область,інші не заборонені законом витрати (Відрядні Дружиніна відповідно до наказу),26009054622601,current,240.00,Дружиніна Любов Володимирівна,,фізична особа
АПУ,"Рівненська область, Рівне, вулиця Яворницького, 34",63,2016-12-26,,Податок на доходи,Податкові платежі,368301,Рівненська обласна організація,35103253,Рівненська область,податки та збори,26002054724863-2,current,939.57,ГУ ДКСУ у Рівненській області,38012714,юридична особа
АПУ,"Рівненська область, Рівне, вулиця Яворницького, 34",63,2016-12-26,,Податок на доходи,Податкові платежі,368300,Рівненська обласна організація,35103253,Рівненська область,податки та збори,26002054724863-2,current,78.31,ГУ ДКСУ у Рівненській області,38012714,юридична особа
АПУ,"Рівненська область, Рівне",62,2016-12-26,,Сплата ЄСВ,Податкові платежі,368299,Рівненська обласна організація,35103253,Рівненська область,податки та збори,26002054724863-2,current,1148.38,ДПІ у м. Рівне ГУ ДФС в Рівненській області,39550744,юридична особа
АПУ,"Рівненська область, Рівне",84,2016-12-26,181,"Заробітна плата, премії","Заробітна плата, лікарняні, вагітності, відрядження, компенсації",367771,Рівненська обласна організація,35103253,Рівненська область,зарплата за грудень 2016р,26002054724863-2,current,536.30,Форсюк Інна Леонідівна,,фізична особа
АПУ,"Рівненська область, Рівне",84,2016-12-26,181,"Заробітна плата, премії","Заробітна плата, лікарняні, вагітності, відрядження, компенсації",367770,Рівненська обласна організація,35103253,Рівненська область,зарплата за грудень 2016р,26002054724863-2,current,771.00,Стретович Світлана Юріївна,,фізична особа
АПУ,"Рівненська область, Рівне",84,2016-12-26,181,"Заробітна плата, премії","Заробітна плата, лікарняні, вагітності, відрядження, компенсації",367769,Рівненська обласна організація,35103253,Рівненська область,зарплата за грудень 2016р,26002054724863-2,current,1133.57,Подорожній Юрій Анатолійович,,фізична особа
АПУ,"Рівненська область, Рівне",84,2016-12-26,181,"Заробітна плата, премії","Заробітна плата, лікарняні, вагітності, відрядження, компенсації",367768,Рівненська обласна організація,35103253,Рівненська область,зарплата за грудень 2016р,26002054724863-2,current,425.75,Панащук Микола Васильович,,фізична особа
АПУ,"Рівненська область, Рівне",84,2016-12-26,181,"Заробітна плата, премії","Заробітна плата, лікарняні, вагітності, відрядження, компенсації",367767,Рівненська обласна організація,35103253,Рівненська область,зарплата за грудень 2016р,26002054724863-2,current,725.29,Козачук Наталія Євгенівна,,фізична особа
АПУ,"Рівненська область, Рівне",84,2016-12-26,181,"Заробітна плата, премії","Заробітна плата, лікарняні, вагітності, відрядження, компенсації",367766,Рівненська обласна організація,35103253,Рівненська область,зарплата за грудень 2016р,26002054724863-2,current,610.00,Динік Світлана Анатоліївна,,фізична особа
АПУ,"Київ, вулиця Михайла Грушевського, 1Д",70,2016-12-26,212294,Банківські послуги,Інші витрати,367463,Рівненська обласна організація,35103253,Рівненська область,комісія,26002054724863-2,current,3.00,"ПАТ КБ ""Приватбанк""",14360570,юридична особа
АПУ,"Одеська область, Одеса, вулиця Жуковського. 39, 1",79,2016-12-26,пд05,"Оренда будинків і приміщень та експлуатаційні витрати (прибирання, страхування орендованих будинків, охорона, сигналізація, ремонт, вивіз сміття, тощо)",Оренда нерухомості,367356,Одеська міська організація,40560001,Одеська область,матеріальні витрати та оплата послуг (за комунальні послуги за грудень 2016),26007010020883,current,1300.00,Гнатюк Юрій Юрійович,2006101555,фізична особа
АПУ,"Одеська область, Одеса, вулиця Жуковського. 39, 1",79,2016-12-26,пд06,"Оренда будинків і приміщень та експлуатаційні витрати (прибирання, страхування орендованих будинків, охорона, сигналізація, ремонт, вивіз сміття, тощо)",Оренда нерухомості,367184,Одеська міська організація,40560001,Одеська область,оренда приміщення (за оренду офіса за січень 2016),26007010020883,current,13130.00,Гнатюк Юрій Юрійович,2006101555,фізична особа
АПУ,"Кіровоградська область, Кропивницький",79,2016-12-26,124,"Оренда будинків і приміщень та експлуатаційні витрати (прибирання, страхування орендованих будинків, охорона, сигналізація, ремонт, вивіз сміття, тощо)",Оренда нерухомості,366953,Кіровоградська обласна організація,36978104,Кіровоградська область,Оренда,26007052918872,current,3570.59,Федерація професійних спілок Кіровоградської області,02606119,юридична особа
АПУ,"Київська обл., Києво-Святошинський район, Вишневе, вулиця Промислова, 5",79,2016-12-26,109,"Оренда будинків і приміщень та експлуатаційні витрати (прибирання, страхування орендованих будинків, охорона, сигналізація, ремонт, вивіз сміття, тощо)",Оренда нерухомості,366938,Київська обласна організація,35032539,Київська область,оренда приміщення (орендна плата згідно рахунку-фактури ИЦК-0005/01 від 19 грудня 2016),26006052746076,current,400.00,"ТОВ ""ІНВЕСТИЦІЙНА ГРУПА ""ЦК-ГЛОБАЛ""",33911120,юридична особа
АПУ,м. Кропивницький,43,2016-12-26,126,Інші витрати,Інші витрати,366744,Кіровоградська обласна організація,36978104,Кіровоградська область,Оплата послуг,26007052918872,current,72.22,Управління містобудування та архітектури Кіровогадської міськради,02498694,юридична особа
АПУ,м. Кропивницький,43,2016-12-26,125,Інші витрати,Інші витрати,366743,Кіровоградська обласна організація,36978104,Кіровоградська область,Оплата послуг,26007052918872,current,1514.00,Тарасова Ірина Юріївна,2780705142,фізична особа
АПУ,"Київська обл., Бородянський район, Бородянка",49,2016-12-26,108,Публікування матеріалів у друкованих ЗМІ,Реклама в друкованих ЗМІ,366439,Київська обласна організація,35032539,Київська область,Розміщення реклами у друкованих засобах масової інформації (за опублікування обяви у газеті N102 згідно рахунку N265 від 21 грудня 2016),26006052746076,current,2930.00,"РГ ""Вперед""",02473406,юридична особа
АПУ,"Київ, вулиця Михайла Грушевського, 1Д",49,2016-12-26,1004,Публікування матеріалів у друкованих ЗМІ,Реклама в друкованих ЗМІ,366437,Центральний офіс,34763401,Україна,розміщення реклами у друкованих засобах масової інформації (за матеріал в газеті зг.рах/М238 від 24.11.2016),26009052641121,current,5000.00,"ПАТ КБ ""Приватбанк""",14360570,юридична особа
АПУ,"Київ, вулиця Михайла Грушевського, 1Д",49,2016-12-26,1003,Публікування матеріалів у друкованих ЗМІ,Реклама в друкованих ЗМІ,366436,Центральний офіс,34763401,Україна,розміщення реклами у друкованих засобах масової інформації (за матеріали в газеті зг.рах.Ж37 від 24.11.2016),26009052641121,current,800.00,"ПАТ КБ ""Приватбанк""",14360570,юридична особа
АПУ,"Київ, вулиця Михайла Грушевського, 1Д",49,2016-12-26,1002,Публікування матеріалів у друкованих ЗМІ,Реклама в друкованих ЗМІ,366435,Центральний офіс,34763401,Україна,розміщення реклами у друкованих засобах масової інформації (за вітання в газеті зг.рах.Ж34 від 16.11.2016),26009052641121,current,500.00,"ПАТ КБ ""Приватбанк""",14360570,юридична особа
АПУ,,51,2016-12-26,171,Оплата ефірного часу на ТБ,Телереклама,366331,Сумська обласна організація,34932761,Сумська область,матеріальні витрати та оплата послуг/за послуги по виготовленню та трансляції в телеефірі/,26001055008647,current,10000.00,"ТОВ ""Телерадіокомпанія ""Академ TV""",32185841,юридична особа
АПУ,"Вінницька область, Тростянецький район, Тростянець",70,2016-12-26,566САТ1163610005,Банківські послуги,Інші витрати,365765,Тростянецька районна організація,39936863,Вінницька область,Інші не заборонені законом витрати (сплата комісії юридичних осіб за РКО),61103900195009,current,15.00,"ПАТ КБ ""Правекс-банк""",14360920,юридична особа
АПУ,"Київ, вулиця Михайла Грушевського, 1Д",70,2016-12-26,214,Банківські послуги,Інші витрати,365630,Рівненська обласна організація,35103253,Рівненська область,комісія,26002054724863-2,current,3.00,"ПАТ КБ ""Приватбанк""",14360570,юридична особа
АПУ,"Київ, вулиця Михайла Грушевського, 1Д",70,2016-12-26,213,Банківські послуги,Інші витрати,365628,Рівненська обласна організація,35103253,Рівненська область,комісія,26002054724863-2,current,3.00,"ПАТ КБ ""Приватбанк""",14360570,юридична особа
АПУ,"Київ, вулиця Михайла Грушевського, 1Д",70,2016-12-26,1226ЬЗНСгА,Банківські послуги,Інші витрати,365449,Полтавська обласна організація,34874174,Полтавська область,інші не заборонені законом витрати (комісія за поповнення карток для виплат та нецільов платеж по Полтавська обл. ПО АПУ. без ПДВ.),26009054622601,current,0.60,"ПАТ КБ ""Приватбанк""",14360570,юридична особа
АПУ,"Київ, вулиця Михайла Грушевського, 1Д",70,2016-12-26,1226Ь209Х¥,Банківські послуги,Інші витрати,365448,Київська обласна організація,35032539,Київська область,"інші не заборонені законом витрати (Комісія за виконання платежів в національній валюті, згідно з відкритою офертою банку N б/н від 02.09.2015 та тарифів банку, без ПДВ.)",26006052746076,current,3.00,"ПАТ КБ ""Приватбанк""",14360570,юридична особа
АПУ,"Київ, вулиця Михайла Грушевського, 1Д",70,2016-12-26,1226БЗНООА,Банківські послуги,Інші витрати,365447,Полтавська обласна організація,34874174,Полтавська область,інші не заборонені законом витрати ( комісія за поповнення карток для виплат та нецільов платеж по Полтавська обл. ПО АПУ. без ПДВ.),26009054622601,current,0.60,"ПАТ КБ ""Приватбанк""",14360570,юридична особа
АПУ,"Київ, вулиця Михайла Грушевського, 1Д",70,2016-12-26,1226Б2К8МУ,Банківські послуги,Інші витрати,365446,Київська обласна організація,35032539,Київська область,"інші не заборонені законом витрати (Комісія за виконання платежів в національній валюті, згідно з відкритою офертою банку N б/н від 02.09.2015 та тарифів банку, без ПДВ.)",26006052746076,current,3.00,"ПАТ КБ ""Приватбанк""",14360570,юридична особа
АПУ,"Київ, вулиця Михайла Грушевського, 1Д",70,2016-12-26,1226Б2ИАБУ,Банківські послуги,Інші витрати,365445,Центральний офіс,34763401,Україна,"Інші не заборонені законом витрати (Комісія за виконання платежів в національній валюті, згідно з відкритою офертою банку N б/н від 20.01.2015 та тарифів банку, без ПДВ.)",26009052641121,current,3.00,"ПАТ КБ ""Приватбанк""",14360570,юридична особа
АПУ,"Київ, вулиця Михайла Грушевського, 1Д",70,2016-12-26,1226Б2И9РУ,Банківські послуги,Інші витрати,365444,Центральний офіс,34763401,Україна,"Інші не заборонені законом витрати (Комісія за виконання платежів в національній валюті, згідно з відкритою офертою банку N б/н від 20.01.2015 та тарифів банку, без ПДВ.)",26009052641121,current,3.00,"ПАТ КБ ""Приватбанк""",14360570,юридична особа
АПУ,"Київ, вулиця Михайла Грушевського, 1Д",70,2016-12-26,1226Б2И9ИУ,Банківські послуги,Інші витрати,365443,Центральний офіс,34763401,Україна,"Інші не заборонені законом витрати (Комісія за виконання платежів в національній валюті, згідно з відкритою офертою банку N б/н від 20.01.2015 та тарифів банку, без ПДВ.)",26009052641121,current,3.00,"ПАТ КБ ""Приватбанк""",14360570,юридична особа
АПУ,"Київ, вулиця Михайла Грушевського, 1Д",70,2016-12-24,211292,Банківські послуги,Інші витрати,367462,Рівненська обласна організація,35103253,Рівненська область,комісія,26002054724863-2,current,0.63,"ПАТ КБ ""Приватбанк""",14360570,юридична особа
АПУ,"Кіровоградська область, Маловисківський район, Мала Виска",43,2016-12-24,бн,Інші витрати,Інші витрати,366906,Кропивницька міська організація,40628111,Кіровоградська область,матеріальні витрати,26004052926232,current,3700.00,Барнас Раїса Петрівна,2283621648,фізична особа
АПУ,"Рівненська область, Рівне",83,2016-12-23,176,"Виплати працівникам (не зарплата): лікарняні, вагітності, відрядження, компенсації ","Заробітна плата, лікарняні, вагітності, відрядження, компенсації",368007,Рівненська обласна організація,35103253,Рівненська область,відрядження,26002054724863-2,current,250.00,Козачук Наталія Євгенівна,,фізична особа
АПУ,"Київ, вулиця Михайла Грушевського, 1Д",69,2016-12-23,202,Організація заходів та інші організаційні послуги,Організація заходів та інші організаційні послуги,367583,Центральний офіс,34763401,Україна,"проведення з'їздів, партійних конференцій, загальних зборів (доплата за оренду приміщення зг.договору",26009052641121,current,44500.00,"ПАТ КБ ""Приватбанк""",14360570,юридична особа
АПУ,"Дніпропетровська область, Дніпро́, Челябінська вулиця, 1",79,2016-12-23,89630,"Оренда будинків і приміщень та експлуатаційні витрати (прибирання, страхування орендованих будинків, охорона, сигналізація, ремонт, вивіз сміття, тощо)",Оренда нерухомості,367532,Криворізька районна організація,40267750,Дніпропетровська область,матеріальні витрати та оплата послуг (компенсація за використання послуги електроенергія),26005300544524,current,78.21,"ТОВ ""АБВ-КОМБІ""",30816192,юридична особа
АПУ,"Дніпропетровська область, Дніпро́, Челябінська вулиця, 1",79,2016-12-23,90,"Оренда будинків і приміщень та експлуатаційні витрати (прибирання, страхування орендованих будинків, охорона, сигналізація, ремонт, вивіз сміття, тощо)",Оренда нерухомості,367164,Криворізька районна організація,40267750,Дніпропетровська область,оренда приміщення (оплата офісу Криворізької РПО Аграрної партії),26005300544524,current,3803.00,"ТОВ ""АБВ-КОМБІ""",30816192,юридична особа
АПУ,"Чернівецька область, Чернівці, вулиця Південно-Кільцева, 29",72,2016-12-23,50,"Придбання, ремонт офісної техніки та програмного забезпечення (Бухгалтерські програми, Ліга.закон, домени)",Придбання офісної техніки та програмного забезпечення,366778,Чернівецька обласна організація,35096655,Чернівецька область,"Оплата рахунку-фактури. МПС001534 від 13.12.16р. заправка картриджа, профілактика принтера",26002051503022,current,1795.00,"ПП ""Прінт Сервіс""",38289534,юридична особа
АПУ,"Дніпропетровська область, Кривий Ріг, вулиця Алмазна",80,2016-12-23,87,"Транспортні послуги (квитки, пасажирські перевезення і т.д.)","Транспортні послуги (квитки, пасажирські перевезення і т.д.)",366705,Криворізька районна організація,40267750,Дніпропетровська область,матеріальні витрати та оплата послуг (транспортні послуги),26005300544524,current,600.00,Артюх Сергій Іванович,,фізична особа
АПУ,"Чернівецька область, Хотинський район, Хотин, вулиця Незалежності, 44",49,2016-12-23,52,Публікування матеріалів у друкованих ЗМІ,Реклама в друкованих ЗМІ,366553,Чернівецька обласна організація,35096655,Чернівецька область,Оплата рахунку-фактури №128 від 13.10.16р. За створення та розміщення інформаційної продукції,26002051503022,current,690.00,"ПП ""Медіа-центр ""Хотинські вісті""",02476333,юридична особа
АПУ,"Дніпропетровська область, Кривий Ріг",74,2016-12-23,88,"Придбання канцтоварів, паперу, інших предметів і матеріалів, а також госп товари",Придбання канцтоварів та госп. товарів,366283,Криворізька районна організація,40267750,Дніпропетровська область,матеріальні витрати та оплата послуг (канцтовари),26005300544524,current,329.16,Труцуненко Світлана Михайлівна,2602915322,фізична особа
АПУ,"Херсонська область, Великоолександрівський район, Велика Олександрівка, провулок Сергія Лазо",58,2016-12-23,86,"Виготовлення друкованих матеріалів (плакатів, листівок, буклетів та інших агітаційних матеріалів)",Друкована агітація,366144,Криворізька районна організація,40267750,Дніпропетровська область,матеріальні витрати та оплата послуг (розробка та друк поліграфічної продукції),26005300544524,current,9120.00,Маринченко Сергій Володимирович,3086200550,фізична особа
АПУ,"Чернівецька область, Чернівці, Львівський провулок, 1",58,2016-12-23,51,"Виготовлення друкованих матеріалів (плакатів, листівок, буклетів та інших агітаційних матеріалів)",Друкована агітація,366114,Чернівецька обласна організація,35096655,Чернівецька область,Оплата рахунку №46 від 19.12.16 за поліграфічні послуги,26002051503022,current,4000.00,Місікевич С А,2304012576,фізична особа
АПУ,"Київ, вулиця Михайла Грушевського, 1Д",70,2016-12-23,24780995,Банківські послуги,Інші витрати,365662,Центральний офіс,34763401,Україна,інші не заборонені законом витрати (Списання комісії по рахунку 26007263919800 АН за за платежі за рахунок надходж на протязі операц дня зг.Дог.,26009052641121,current,41.55,"ПАТ КБ ""Приватбанк""",14360570,юридична особа
АПУ,"Київ, вулиця Михайла Грушевського, 1Д",70,2016-12-23,210,Банківські послуги,Інші витрати,365627,Рівненська обласна організація,35103253,Рівненська область,комісія,26002054724863-2,current,0.63,"ПАТ КБ ""Приватбанк""",14360570,юридична особа
АПУ,"Київ, вулиця Михайла Грушевського, 1Д",70,2016-12-23,1578131304,Банківські послуги,Інші витрати,365579,Центральний офіс,34763401,Україна,інші не заборонені законом витрати (Списання комісії по рахунку 26007263919800 АН за зовнішній платіж СЕП ССП зг.Дог. №2639198 від 30.12.2009 без ПДВ),26009052641121,current,1.50,"ПАТ КБ ""Приватбанк""",14360570,юридична особа
АПУ,"Київ, вулиця Михайла Грушевського, 1Д",70,2016-12-23,1223Б334БУ,Банківські послуги,Інші витрати,365442,Чернівецька обласна організація,35096655,Чернівецька область,Інші не заборонені витрати,26002051503022,current,3.00,"ПАТ КБ ""Приватбанк""",14360570,юридична особа
АПУ,"Київ, вулиця Михайла Грушевського, 1Д",70,2016-12-23,1223Б2У20У,Банківські послуги,Інші витрати,365441,Чернівецька обласна організація,35096655,Чернівецька область,Інші не заборонені витрати,26002051503022,current,3.00,"ПАТ КБ ""Приватбанк""",14360570,юридична особа
АПУ,"Харківська область, Харків, вулиця Пермська, 27, кв. 47-48",43,2016-12-22,,Інші витрати,Інші витрати,368777,Чугуївська районна організація,33867150,Харківська область,матеріальні витрати та оплата послуг,26004052209164,current,10030.02,"ТОВ ""ПКШОП групп""",35348350,юридична особа
АПУ,"Київ, вулиця Михайла Грушевського, 1Д",74,2016-12-22,201,"Придбання канцтоварів, паперу, інших предметів і матеріалів, а також госп товари",Придбання канцтоварів та госп. товарів,368310,Центральний офіс,34763401,Україна,матеріальні витрати та оплата послуг (за ноутбук зг.рах. №298 від 22.12.2016р),26009052641121,current,8160.00,"ПАТ КБ ""Приватбанк""",14360570,юридична особа
АПУ,"Рівненська область, Рівне",79,2016-12-22,9632,"Оренда будинків і приміщень та експлуатаційні витрати (прибирання, страхування орендованих будинків, охорона, сигналізація, ремонт, вивіз сміття, тощо)",Оренда нерухомості,367534,Рівненська районна організація,35038970,Рівненська область,утримання місцевих організацій партії за відшкодування витрат на водопостачання та вивіз сміття П.Могили,26002054724863,current,17.17,КП Управління майновим комплексом,35597574,юридична особа
АПУ,"Одеська область, Одеса",72,2016-12-22,163,"Придбання, ремонт офісної техніки та програмного забезпечення (Бухгалтерські програми, Ліга.закон, домени)",Придбання офісної техніки та програмного забезпечення,367359,Одеська обласна організація,37279902,Одеська область,придбання нематеріальних активів (За оновлення ПЗ Медок),26005054325961,current,1380.00,ТРОЦЕНКО ВОЛОДИМИР КОСТЯНТИНОВИЧ,2565601673,фізична особа
АПУ,"Сумська область, Білопільський район, Миколаївка",79,2016-12-22,168,"Оренда будинків і приміщень та експлуатаційні витрати (прибирання, страхування орендованих будинків, охорона, сигналізація, ремонт, вивіз сміття, тощо)",Оренда нерухомості,367348,Сумська обласна організація,34932761,Сумська область,матеріальні витрати та оплата послуг/відшкоду вання витрат по електроенергії/,26001055008647,current,94.80,Миколаївська селищна рада,04390083,юридична особа
АПУ,"Київ, вулиця Михайла Грушевського, 1Д",79,2016-12-22,200,"Оренда будинків і приміщень та експлуатаційні витрати (прибирання, страхування орендованих будинків, охорона, сигналізація, ремонт, вивіз сміття, тощо)",Оренда нерухомості,367008,Центральний офіс,34763401,Україна,"оренда приміщення (будинку, офіса, квартири) (орендна плата за листопад зг.рах. №666 від 22.11.2016р)",26009052641121,current,93573.18,"ПАТ КБ ""Приватбанк""",14360570,юридична особа
АПУ,"Сумська область, Білопільський район, Миколаївка",79,2016-12-22,167,"Оренда будинків і приміщень та експлуатаційні витрати (прибирання, страхування орендованих будинків, охорона, сигналізація, ремонт, вивіз сміття, тощо)",Оренда нерухомості,366987,Сумська обласна організація,34932761,Сумська область,матеріальні витрати та оплата посуг/орендна плата/,26001055008647,current,460.00,Миколаївська селищна рада,04390083,юридична особа
АПУ,"Одеська область, Одеса, вулиця Середньофонтанська, 16",79,2016-12-22,160,"Оренда будинків і приміщень та експлуатаційні витрати (прибирання, страхування орендованих будинків, охорона, сигналізація, ремонт, вивіз сміття, тощо)",Оренда нерухомості,366985,Одеська обласна організація,37279902,Одеська область,"оренда приміщення (будинку, офіса, квартири)",26005054325961,current,6000.00,"СУЛП ""Альтіс-ЛТД""-СД",,юридична особа
АПУ,"Київ, вулиця Михайла Грушевського, 1Д",79,2016-12-22,1000,"Оренда будинків і приміщень та експлуатаційні витрати (прибирання, страхування орендованих будинків, охорона, сигналізація, ремонт, вивіз сміття, тощо)",Оренда нерухомості,366931,Центральний офіс,34763401,Україна,"оренда приміщення (будинку, офіса, квартири)(відшкодуванн я комун.послуг за листопад зг.рах/М666/1 від 22.11.2016)",26009052641121,current,11399.77,"ПАТ КБ ""Приватбанк""",14360570,юридична особа
АПУ,"Київ, вулиця Михайла Грушевського, 1Д",80,2016-12-22,СЛ222ТУ1Н$,"Транспортні послуги (квитки, пасажирські перевезення і т.д.)","Транспортні послуги (квитки, пасажирські перевезення і т.д.)",366717,Луганська обласна організація,37287520,Луганська область,матеріальні витрати та оплата послуг ( покупка ЖД билетов 22/12/2016. заявка в платежной системе 675294313 5 1),26007053717461,current,399.02,"ПАТ КБ ""Приватбанк""",14360570,юридична особа
АПУ,"Полтавська область, Полтава, вулиця Європейська, 57",80,2016-12-22,264,"Транспортні послуги (квитки, пасажирські перевезення і т.д.)","Транспортні послуги (квитки, пасажирські перевезення і т.д.)",366671,Полтавська обласна організація,34874174,Полтавська область,"матеріальні витрати та оплата послуг (організац перевезен відправлень по рах№/0-032204 від 20.12.2016, у т.ч. ПДВ)",26009054622601,current,108.00,"ТОВ ""Нова пошта""",31316718,юридична особа
АПУ,"Харківська область, Харків",49,2016-12-22,,Публікування матеріалів у друкованих ЗМІ,Реклама в друкованих ЗМІ,366641,Чугуївська районна організація,33867150,Харківська область,розм реклами у друкованих ЗМІ,26004052209164,current,2160.00,"ПрАТ ""Время""",14100461,юридична особа
АПУ,"Харківська область, Красноградський район, Красноград",51,2016-12-22,,Оплата ефірного часу на ТБ,Телереклама,366405,Чугуївська районна організація,33867150,Харківська область,розм. Реклами на телебаченні,26004052209164,current,1700.00,"Телерадіокомпанія Красноградщини ""Центр""",34237021,юридична особа
АПУ,"Вінницька область, Вінниця, вулиця Чехова, 12",58,2016-12-22,165,"Виготовлення друкованих матеріалів (плакатів, листівок, буклетів та інших агітаційних матеріалів)",Друкована агітація,366087,Одеська обласна організація,37279902,Одеська область,"пропагандистська діяльність (інформаційна, рекламна, видавнича, поліграфічна)",26005054325961,current,13000.00,"ТОВ ""Прес корпорейшн лімітед""",32168763,юридична особа
АПУ,"Вінницька область, Вінниця, вулиця Чехова, 12",58,2016-12-22,164,"Виготовлення друкованих матеріалів (плакатів, листівок, буклетів та інших агітаційних матеріалів)",Друкована агітація,366086,Одеська обласна організація,37279902,Одеська область,"пропагандистська діяльність (інформаційна, рекламна, видавнича, поліграфічна)",26005054325961,current,19008.80,"ТОВ ""Прес корпорейшн лімітед""",32168763,юридична особа
АПУ,"Київ, вулиця Михайла Грушевського, 1Д",70,2016-12-22,259,Банківські послуги,Інші витрати,365671,Чугуївська районна організація,33867150,Харківська область,інші не заборонені законом витрати,26004052209164,current,3.00,"ПАТ КБ ""Приватбанк""",14360570,юридична особа
АПУ,"Київ, вулиця Михайла Грушевського, 1Д",70,2016-12-22,258,Банківські послуги,Інші витрати,365670,Чугуївська районна організація,33867150,Харківська область,інші не заборонені законом витрати,26004052209164,current,3.00,"ПАТ КБ ""Приватбанк""",14360570,юридична особа
АПУ,"Київ, вулиця Михайла Грушевського, 1Д",70,2016-12-22,1577822897,Банківські послуги,Інші витрати,365578,Центральний офіс,34763401,Україна,інші не заборонені законом витрати (Списання комісії по рахунку 26007263919800 АН за зовнішній платіж СЕП ССП зг.Дог. №2639198 від 30.12.2009 без ПДВ),26009052641121,current,1.50,"ПАТ КБ ""Приватбанк""",14360570,юридична особа
АПУ,"Київ, вулиця Михайла Грушевського, 1Д",70,2016-12-22,1577822896,Банківські послуги,Інші витрати,365577,Центральний офіс,34763401,Україна,інші не заборонені законом витрати (Списання комісії по рахунку 26007263919800 АН за зовнішній платіж СЕП ССП зг.Дог. №2639198 від 30.12.2009 без ПДВ),26009052641121,current,1.50,"ПАТ КБ ""Приватбанк""",14360570,юридична особа
АПУ,"Київ, вулиця Михайла Грушевського, 1Д",70,2016-12-22,1222Ь20К8У,Банківські послуги,Інші витрати,365440,Центральний офіс,34763401,Україна,"Інші не заборонені законом витрати (Комісія за виконання платежів в національній валюті, згідно з відкритою офертою банку N б/н від 20.01.2015 та тарифів банку, без ПДВ.)",26009052641121,current,3.00,"ПАТ КБ ""Приватбанк""",14360570,юридична особа
АПУ,"Київ, вулиця Михайла Грушевського, 1Д",70,2016-12-22,1222МК9БУ,Банківські послуги,Інші витрати,365439,Сумська обласна організація,34932761,Сумська область,інші незаборонені законом витрати /комісія за виконання платежів /,26001055008647,current,3.00,"ПАТ КБ ""Приватбанк""",14360570,юридична особа
АПУ,"Київ, вулиця Михайла Грушевського, 1Д",70,2016-12-22,12221П845У,Банківські послуги,Інші витрати,365438,Полтавська обласна організація,34874174,Полтавська область,інші не заборонені законом витрати (Комісія за виконання платежів в національній валюті згідно з відкритою офертою банку б/н від 07.09.2015 та тарифів банку.Без ПДВ.),26009054622601,current,3.00,"ПАТ КБ ""Приватбанк""",14360570,юридична особа
АПУ,"Київ, вулиця Михайла Грушевського, 1Д",70,2016-12-22,12221Л.І7.ІУ,Банківські послуги,Інші витрати,365437,Сумська обласна організація,34932761,Сумська область,інші незаборонені законом витрати /комісія за виконання платежів /,26001055008647,current,3.00,"ПАТ КБ ""Приватбанк""",14360570,юридична особа
АПУ,"Київ, вулиця Михайла Грушевського, 1Д",70,2016-12-22,122213у4Ьх,Банківські послуги,Інші витрати,365436,Одеська обласна організація,37279902,Одеська область,інші не заборонені законом витрати (комісія за виконання платежів в національній валюті),26005054325961,current,26.00,"ПАТ КБ ""Приватбанк""",14360570,юридична особа
АПУ,"Київ, вулиця Михайла Грушевського, 1Д",70,2016-12-22,122213у4Ьу,Банківські послуги,Інші витрати,365435,Одеська обласна організація,37279902,Одеська область,інші не заборонені законом витрати (комісія за виконання платежів в національній валюті),26005054325961,current,3.00,"ПАТ КБ ""Приватбанк""",14360570,юридична особа
АПУ,"Київ, вулиця Михайла Грушевського, 1Д",70,2016-12-22,122213у4ех,Банківські послуги,Інші витрати,365434,Одеська обласна організація,37279902,Одеська область,інші не заборонені законом витрати (комісія за виконання платежів в національній валюті),26005054325961,current,12.00,"ПАТ КБ ""Приватбанк""",14360570,юридична особа
АПУ,"Київ, вулиця Михайла Грушевського, 1Д",70,2016-12-22,122213у4еу,Банківські послуги,Інші витрати,365433,Одеська обласна організація,37279902,Одеська область,інші не заборонені законом витрати (комісія за виконання платежів в національній валюті),26005054325961,current,3.00,"ПАТ КБ ""Приватбанк""",14360570,юридична особа
АПУ,"Київ, вулиця Михайла Грушевського, 1Д",70,2016-12-22,122212шу,Банківські послуги,Інші витрати,365432,Одеська обласна організація,37279902,Одеська область,інші не заборонені законом витрати (комісія за виконання платежів в національній валюті),26005054325961,current,3.00,"ПАТ КБ ""Приватбанк""",14360570,юридична особа
АПУ,"Київ, вулиця Михайла Грушевського, 1Д",70,2016-12-22,1222121р50у,Банківські послуги,Інші витрати,365431,Одеська обласна організація,37279902,Одеська область,інші не заборонені законом витрати (комісія за виконання платежів в національній валюті),26005054325961,current,3.00,"ПАТ КБ ""Приватбанк""",14360570,юридична особа
АПУ,"Рівненська область, Рівне",77,2016-12-21,8,"Оренда, ремонт та обслуговування автомобілів","Оренда, ремонт та обслуговування автомобілів",368018,Рівненська районна організація,35038970,Рівненська область,матеріальні витрати та оплата послуг за посвідчення договору найму (оренди) транспортного засобу,26002054724863,current,600.00,Самсонюк Ф П,2772401794,фізична особа
АПУ,"Київ, вулиця Михайла Грушевського, 1Д",69,2016-12-21,999,Організація заходів та інші організаційні послуги,Організація заходів та інші організаційні послуги,367614,Центральний офіс,34763401,Україна,"проведення з їздів, партійних конференцій, загальних зборів (за чищення килимів зг.рах.Ю4 від 19 12.2.016)",26009052641121,current,12600.00,"ПАТ КБ ""Приватбанк""",14360570,юридична особа
АПУ,"Київ, вулиця Михайла Грушевського, 1Д",70,2016-12-21,209290,Банківські послуги,Інші витрати,367461,Рівненська обласна організація,35103253,Рівненська область,комісія,26002054724863-2,current,3.00,"ПАТ КБ ""Приватбанк""",14360570,юридична особа
АПУ,"Рівненська область, Рівне",58,2016-12-21,,"Виготовлення друкованих матеріалів (плакатів, листівок, буклетів та інших агітаційних матеріалів)",Друкована агітація,366179,Рівненська обласна організація,35103253,Рівненська область,за листівки,26002054724863-2,current,1381.63,Опанасик В Л,2811509296,фізична особа
АПУ,"Сумська область, Суми, Іллінська вулиця, 97",58,2016-12-21,166,"Виготовлення друкованих матеріалів (плакатів, листівок, буклетів та інших агітаційних матеріалів)",Друкована агітація,366088,Сумська обласна організація,34932761,Сумська область,матеріальні витрати та оплата послуг/за спецвипуск/,26001055008647,current,1877.10,"ТОВ ""Медіа-Центр ""Вперед""",02475173,юридична особа
АПУ,"Київ, вулиця Михайла Грушевського, 1Д",70,2016-12-21,1221Ь3023¥,Банківські послуги,Інші витрати,365430,Рівненська районна організація,35038970,Рівненська область,"утримання місцевих організацій партії Комісія за виконання платежів в національній валюті, згідно з відкритою офертою банку N б/н від 28.11.2016 та тарифів банку, без ПДВ.",26002054724863,current,3.00,"ПАТ КБ ""Приватбанк""",14360570,юридична особа
АПУ,"Київ, вулиця Михайла Грушевського, 1Д",70,2016-12-21,1221Ь06ТІУ,Банківські послуги,Інші витрати,365429,Сумська обласна організація,34932761,Сумська область,інші незаборонені законом вт рати /комісія за виконання платежів /,26001055008647,current,3.00,"ПАТ КБ ""Приватбанк""",14360570,юридична особа
АПУ,"Запорізька область, Токмак",43,2016-12-20,2,Інші витрати,Інші витрати,368599,Токмацька районна організація,40080008,Запорізька область,Благодійні внески,26003055728296,current,2000.00,Токмацька райорганізація ветеранів України,24907408,юридична особа
АПУ,"Київ, вулиця Михайла Грушевського, 1Д",61,2016-12-20,998,Військовий збір,Податкові платежі,368225,Центральний офіс,34763401,Україна,"сплачені податки і збори (101;34763401;сплата військового збору 1,5 % за грудень 2016р.;;;)",26009052641121,current,165.00,"ПАТ КБ ""Приватбанк""",14360570,юридична особа
АПУ,"Київ, вулиця Михайла Грушевського, 1Д",62,2016-12-20,997,Сплата ЄСВ,Податкові платежі,368159,Центральний офіс,34763401,Україна,сплачені податки та збори (101;34763401;сплата нарахування ЄСВ 22% за грудень 2016р.;;;),26009052641121,current,2500.00,"ПАТ КБ ""Приватбанк""",14360570,юридична особа
АПУ,"Київ, вулиця Михайла Грушевського, 1Д",63,2016-12-20,996,Податок на доходи,Податкові платежі,368087,Центральний офіс,34763401,Україна,сплачені податки і збори (101;34763401;сплата ПДФО за грудень 2016р.;;;),26009052641121,current,2000.00,"ПАТ КБ ""Приватбанк""",14360570,юридична особа
АПУ,"Київ, вулиця Михайла Грушевського, 1Д",84,2016-12-20,994,"Заробітна плата, премії","Заробітна плата, лікарняні, вагітності, відрядження, компенсації",368001,Центральний офіс,34763401,Україна,заробітна плата (Зарплата за декабрь 2016г.),26009052641121,current,1250.00,"ПАТ КБ ""Приватбанк""",14360570,юридична особа
АПУ,"Київ, вулиця Михайла Грушевського, 1Д",84,2016-12-20,994,"Заробітна плата, премії","Заробітна плата, лікарняні, вагітності, відрядження, компенсації",368000,Центральний офіс,34763401,Україна,заробітна плата (Зарплата за декабрь 2016г.),26009052641121,current,1750.00,"ПАТ КБ ""Приватбанк""",14360570,юридична особа
АПУ,"Київ, вулиця Михайла Грушевського, 1Д",84,2016-12-20,994_3,"Заробітна плата, премії","Заробітна плата, лікарняні, вагітності, відрядження, компенсації",367999,Центральний офіс,34763401,Україна,заробітна плата (Зарплата за декабрь 2016г.),26009052641121,current,1500.00,"ПАТ КБ ""Приватбанк""",14360570,юридична особа
АПУ,"Київ, вулиця Михайла Грушевського, 1Д",84,2016-12-20,994_2,"Заробітна плата, премії","Заробітна плата, лікарняні, вагітності, відрядження, компенсації",367998,Центральний офіс,34763401,Україна,заробітна плата (Зарплата за декабрь 2016г.),26009052641121,current,1500.00,"ПАТ КБ ""Приватбанк""",14360570,юридична особа
АПУ,"Київ, вулиця Михайла Грушевського, 1Д",84,2016-12-20,994_1,"Заробітна плата, премії","Заробітна плата, лікарняні, вагітності, відрядження, компенсації",367997,Центральний офіс,34763401,Україна,заробітна плата (Зарплата за декабрь 2016г.),26009052641121,current,1500.00,"ПАТ КБ ""Приватбанк""",14360570,юридична особа
АПУ,"Київ, вулиця Михайла Грушевського, 1Д",84,2016-12-20,994,"Заробітна плата, премії","Заробітна плата, лікарняні, вагітності, відрядження, компенсації",367996,Центральний офіс,34763401,Україна,заробітна плата (Зарплата за декабрь 2016г.),26009052641121,current,1500.00,"ПАТ КБ ""Приватбанк""",14360570,юридична особа
АПУ,"Київ, бульвар Тараса Шевченка, 18",76,2016-12-20,91,Послуги зв’язку,Послуги зв’язку,367324,Чернігівська обласна організація,35030222,Чернігівська область,послуги зв’язку (Абонплата за телекомунікаційні послуги за листопад 2016р зг рахунок-акт N7400000001858100.11.2016 від 30.11.2016р. У т.ч. ПДВ - 20 % 28.75 грн),26006051410803,current,172.50,"Чернігівська філія ПАТ ""Укртелеком""",01189425,юридична особа
АПУ,"Чернігівська область, Чернігів",79,2016-12-20,92,"Оренда будинків і приміщень та експлуатаційні витрати (прибирання, страхування орендованих будинків, охорона, сигналізація, ремонт, вивіз сміття, тощо)",Оренда нерухомості,367170,Чернігівська обласна організація,35030222,Чернігівська область,"оренда приміщення (Відшкодування витрат на утримання приміщень, ел.енергії, опалення за листопад зг рахунка фактури ИСФ-0001886 від ЗО листопада 2016о. в т.ч. ПДВ 380.20 гон.)",26006051410803,current,2281.18,"КП ""Діловий центр""",33469496,юридична особа
АПУ,"Рівненська область, Рівне",49,2016-12-20,7,Публікування матеріалів у друкованих ЗМІ,Реклама в друкованих ЗМІ,366574,Рівненська районна організація,35038970,Рівненська область,матеріальні витрати та оплата послуг оплата за інформпослуги,26002054724863,current,204.00,"КП ""РГ ""Сім днів"" РМР",21081712,юридична особа
АПУ,"Полтавська область, Полтава, вулиця Маршала Бірюзова, 47Б",74,2016-12-20,263,"Придбання канцтоварів, паперу, інших предметів і матеріалів, а також госп товари",Придбання канцтоварів та госп. товарів,366239,Полтавська обласна організація,34874174,Полтавська область,"матеріальні витрати та оплата послуг товари офісного призначення по рах№1434 від 14.12.2016, у т.ч. ПДВ)",26009054622601,current,808.00,"ТОВ ""Торговельна компанія ""ЮЛІЄ",24389020,юридична особа
АПУ,"Київ, Дніпровська набережна, 26К, 74",58,2016-12-20,107,"Виготовлення друкованих матеріалів (плакатів, листівок, буклетів та інших агітаційних матеріалів)",Друкована агітація,366054,Київська обласна організація,35032539,Київська область,інші не заборонені законом витрати (за газету),26006052746076,current,11725.00,Дядичко Олена Петрівна,2947403284,фізична особа
АПУ,"Київ, вулиця Михайла Грушевського, 1Д",70,2016-12-20,995,Банківські послуги,Інші витрати,365857,Центральний офіс,34763401,Україна,Інші не заборонені законом витрати (Комиссия РКО от зарплати за декабрь 2016г.),26009052641121,current,22.50,"ПАТ КБ ""Приватбанк""",14360570,юридична особа
АПУ,"Полтавська область, Полтава, вулиця Соборності, 63",70,2016-12-20,80516530,Банківські послуги,Інші витрати,365818,Хорольська районна організація,34170816,Полтавська область,"інші не заборонені законом витрати (за надання довідок, виписок з рахунків, сплата комісії згідно тарифу.без ПДВ.)",26008010880172,current,0.25,"Полтавська обласна філія АТ ""Ощадбанк""",09331508,юридична особа
АПУ,"Київ, вулиця Михайла Грушевського, 1Д",70,2016-12-20,1220Ь39КЄУ,Банківські послуги,Інші витрати,365428,Центральний офіс,34763401,Україна,"Інші не заборонені законом витрати (Комісія за виконання платежів в національній валюті, згідно з відкритою офертою банку N б/н від 20.01.2015 та тарифів банку, без ПДВ.)",26009052641121,current,3.00,"ПАТ КБ ""Приватбанк""",14360570,юридична особа
АПУ,"Київ, вулиця Михайла Грушевського, 1Д",70,2016-12-20,1220Ь39ИХУ,Банківські послуги,Інші витрати,365427,Центральний офіс,34763401,Україна,"Інші не заборонені законом витрати (Комісія за виконання платежів в національній валюті, згідно з відкритою офертою банку N б/н від 20.01.2015 та тарифів банку, без ПДВ.)",26009052641121,current,3.00,"ПАТ КБ ""Приватбанк""",14360570,юридична особа
АПУ,"Київ, вулиця Михайла Грушевського, 1Д",70,2016-12-20,1220Ь39ВУ,Банківські послуги,Інші витрати,365426,Центральний офіс,34763401,Україна,"Інші не заборонені законом витрати (Комісія за виконання платежів в національній валюті, згідно з відкритою офертою банку N б/н від 20.01.2015 та тарифів банку, без ПДВ.)",26009052641121,current,3.00,"ПАТ КБ ""Приватбанк""",14360570,юридична особа
АПУ,"Київ, вулиця Михайла Грушевського, 1Д",70,2016-12-20,1220Ь2С8К¥,Банківські послуги,Інші витрати,365425,Токмацька районна організація,40080008,Запорізька область,Комісія за виконання платежів в національній валюті,26003055728296,current,3.00,"ПАТ КБ ""Приватбанк""",14360570,юридична особа
АПУ,"Київ, вулиця Михайла Грушевського, 1Д",70,2016-12-20,1220БЗУУ0У,Банківські послуги,Інші витрати,365424,Полтавська обласна організація,34874174,Полтавська область,інші не заборонені законом витрати (Комісія за виконання платежів в національній валюті згідно з відкритою офертою банку б/н від 07.09.2015 та тарифів банку.Без ПДВ.),26009054622601,current,3.00,"ПАТ КБ ""Приватбанк""",14360570,юридична особа
АПУ,"Київ, вулиця Михайла Грушевського, 1Д",70,2016-12-20,1220Б351ХУ,Банківські послуги,Інші витрати,365423,Чернігівська обласна організація,35030222,Чернігівська область,"інші не заборонені законом витрати (Комісія за виконання платежів в національній валюті, згідно з відкритою офертою банку N б/н від 15.04.2015 та тарифів банку, без ПДВ.)",26006051410803,current,3.00,"ПАТ КБ ""Приватбанк""",14360570,юридична особа
АПУ,"Київ, вулиця Михайла Грушевського, 1Д",70,2016-12-20,1220Б3492У,Банківські послуги,Інші витрати,365422,Чернігівська обласна організація,35030222,Чернігівська область,"інші не заборонені законом витрати (Комісія за виконання платежів в національній валюті, згідно з відкритою офертою банку N б/н від 15.04.2015 та тарифів банку, без ПДВ.)",26006051410803,current,3.00,"ПАТ КБ ""Приватбанк""",14360570,юридична особа
АПУ,"Вінницька область, Вінниця, вулиця Генерала Арабея, 3",76,2016-12-19,315,Послуги зв’язку,Послуги зв’язку,367278,Вінницька обласна організація,35111112,Вінницька область,"матеріальні витрати та оплата послуг (оплата за телеком послуги згідно рахунку № 154/а, від 15 12 70]6р . в т ч ПДВ)",26003000249520,current,755.15,"Вінницька обласна ДЮСШ ""Колос""",20097757,юридична особа
АПУ,"Одеська область, Одеса, вулиця Генерала Петрова, 54, 102",58,2016-12-19,162,"Виготовлення друкованих матеріалів (плакатів, листівок, буклетів та інших агітаційних матеріалів)",Друкована агітація,366084,Одеська обласна організація,37279902,Одеська область,"пропагандистська діяльність (інформаційна, рекламна, видавнича, поліграфічна)",26005054325961,current,11071.80,Герцегович І Н,2256708516,фізична особа
АПУ,"Київ, вулиця Михайла Грушевського, 1Д",70,2016-12-17,208,Банківські послуги,Інші витрати,365625,Рівненська обласна організація,35103253,Рівненська область,комісія,26002054724863-2,current,13.25,"ПАТ КБ ""Приватбанк""",14360570,юридична особа
АПУ,"Рівненська область, Рівне, вулиця Яворницького, 34",63,2016-12-16,,Податок на доходи,Податкові платежі,368298,Рівненська обласна організація,35103253,Рівненська область,податки та збори,26002054724863-2,current,1185.08,ГУ ДКСУ у Рівненській області,38012714,юридична особа
АПУ,"Рівненська область, Рівне, вулиця Яворницького, 34",63,2016-12-16,,Податок на доходи,Податкові платежі,368297,Рівненська обласна організація,35103253,Рівненська область,податки та збори,26002054724863-2,current,98.75,ГУ ДКСУ у Рівненській області,38012714,юридична особа
АПУ,"Рівненська область, Рівне",62,2016-12-16,,Сплата ЄСВ,Податкові платежі,368296,Рівненська обласна організація,35103253,Рівненська область,податки та збори,26002054724863-2,current,1448.44,ДПІ у м. Рівне ГУ ДФС в Рівненській області,39550744,юридична особа
АПУ,"Рівненська область, Рівне",84,2016-12-16,174,"Заробітна плата, премії","Заробітна плата, лікарняні, вагітності, відрядження, компенсації",367761,Рівненська обласна організація,35103253,Рівненська область,зарплата за грудень 2016р,26002054724863-2,current,800.00,Форсюк Інна Леонідівна,,фізична особа
АПУ,"Рівненська область, Рівне",84,2016-12-16,174,"Заробітна плата, премії","Заробітна плата, лікарняні, вагітності, відрядження, компенсації",367760,Рівненська обласна організація,35103253,Рівненська область,зарплата за грудень 2016р,26002054724863-2,current,1000.00,Стретович Світлана Юріївна,,фізична особа
АПУ,"Рівненська область, Рівне",84,2016-12-16,174,"Заробітна плата, премії","Заробітна плата, лікарняні, вагітності, відрядження, компенсації",367759,Рівненська обласна організація,35103253,Рівненська область,зарплата за грудень 2016р,26002054724863-2,current,1000.00,Подорожній Юрій Анатолійович,,фізична особа
АПУ,"Рівненська область, Рівне",84,2016-12-16,174,"Заробітна плата, премії","Заробітна плата, лікарняні, вагітності, відрядження, компенсації",367758,Рівненська обласна організація,35103253,Рівненська область,зарплата за грудень 2016р,26002054724863-2,current,500.00,Панащук Микола Васильович,,фізична особа
АПУ,"Рівненська область, Рівне",84,2016-12-16,174,"Заробітна плата, премії","Заробітна плата, лікарняні, вагітності, відрядження, компенсації",367757,Рівненська обласна організація,35103253,Рівненська область,зарплата за грудень 2016р,26002054724863-2,current,1000.00,Козачук Наталія Євгенівна,,фізична особа
АПУ,"Рівненська область, Рівне",84,2016-12-16,174,"Заробітна плата, премії","Заробітна плата, лікарняні, вагітності, відрядження, компенсації",367756,Рівненська обласна організація,35103253,Рівненська область,зарплата за грудень 2016р,26002054724863-2,current,1000.00,Динік Світлана Анатоліївна,,фізична особа
АПУ,"Київ, вулиця Михайла Грушевського, 1Д",69,2016-12-16,993,Організація заходів та інші організаційні послуги,Організація заходів та інші організаційні послуги,367613,Центральний офіс,34763401,Україна,"проведення з’їздів, партійних конференцій, загальних зборів (за електроенергію",26009052641121,current,1324.00,"ПАТ КБ ""Приватбанк""",14360570,юридична особа
АПУ,"Київ, вулиця Михайла Грушевського, 1Д",70,2016-12-16,207288,Банківські послуги,Інші витрати,367460,Рівненська обласна організація,35103253,Рівненська область,комісія,26002054724863-2,current,3.00,"ПАТ КБ ""Приватбанк""",14360570,юридична особа
АПУ,"Київ, вулиця Михайла Грушевського, 1Д",70,2016-12-16,205286,Банківські послуги,Інші витрати,367459,Рівненська обласна організація,35103253,Рівненська область,комісія,26002054724863-2,current,3.00,"ПАТ КБ ""Приватбанк""",14360570,юридична особа
АПУ,"Київ, вулиця Михайла Грушевського, 1Д",70,2016-12-16,204283,Банківські послуги,Інші витрати,367458,Рівненська обласна організація,35103253,Рівненська область,комісія,26002054724863-2,current,0.44,"ПАТ КБ ""Приватбанк""",14360570,юридична особа
АПУ,"Київ, вулиця Михайла Грушевського, 1Д",70,2016-12-16,15А1200094214,Банківські послуги,Інші витрати,367435,Полтавська обласна організація,34874174,Полтавська область,інші не заборонені законом витрати (оплата комісії за касове обслуговування по Полтавська обл. ПО АПУ. без ПДВ.),26009054622601,current,5.99,"ПАТ КБ ""Приватбанк""",14360570,юридична особа
АПУ,"Одеська область, Теплодар",79,2016-12-16,164,"Оренда будинків і приміщень та експлуатаційні витрати (прибирання, страхування орендованих будинків, охорона, сигналізація, ремонт, вивіз сміття, тощо)",Оренда нерухомості,367347,Одеська обласна організація,37279902,Одеська область,інші не заборонені законом витрати (За теплоенергію),26005054325961,current,474.67,"КП ""ОДЕСЬКА ТЕПЛОЕЛЕКТРОЦЕНТРАЛЬ №2""",05519847,юридична особа
АПУ,"Київ, вулиця Михайла Грушевського, 1Д",76,2016-12-16,991,Послуги зв’язку,Послуги зв’язку,367329,Центральний офіс,34763401,Україна,послуги зв’язку (за користування послугою Інтернет зг.рах.Ш935 від 21.11.2016),26009052641121,current,2400.00,"ПАТ КБ ""Приватбанк""",14360570,юридична особа
АПУ,"Харківська область, Чугуїв, вулиця Старонікольська, 35А",49,2016-12-16,,Публікування матеріалів у друкованих ЗМІ,Реклама в друкованих ЗМІ,366640,Чугуївська районна організація,33867150,Харківська область,зозміщення реклами у друкованих ЗМІ,26004052209164,current,348.00,"ТОВ ""7 інформ""",02476511,юридична особа
АПУ,"Київ, вулиця Михайла Грушевського, 1Д",74,2016-12-16,992,"Придбання канцтоварів, паперу, інших предметів і матеріалів, а також госп товари",Придбання канцтоварів та госп. товарів,366290,Центральний офіс,34763401,Україна,матеріальні витрати та оплата послуг (за журнал зг.рах/М2081 від 08.12.2016),26009052641121,current,499.00,"ПАТ КБ ""Приватбанк""",14360570,юридична особа
АПУ,"Вінницька область, Вінниця, Хмельницьке шосе, 2",74,2016-12-16,314,"Придбання канцтоварів, паперу, інших предметів і матеріалів, а також госп товари",Придбання канцтоварів та госп. товарів,366249,Вінницька обласна організація,35111112,Вінницька область,матеріальні витрати та оплата послуг (Оплата та канцтовари зг рах №809 від 73 1 1.16 без ПДВ),26003000249520,current,371.10,Бацальова Тетяна Юріївна,2646708325,фізична особа
АПУ,"Київ, вулиця Михайла Грушевського, 1Д",70,2016-12-16,257,Банківські послуги,Інші витрати,365669,Чугуївська районна організація,33867150,Харківська область,інші не заборонені законом витрати,26004052209164,current,3.00,"ПАТ КБ ""Приватбанк""",14360570,юридична особа
АПУ,"Київ, вулиця Михайла Грушевського, 1Д",70,2016-12-16,206,Банківські послуги,Інші витрати,365624,Рівненська обласна організація,35103253,Рівненська область,комісія,26002054724863-2,current,3.00,"ПАТ КБ ""Приватбанк""",14360570,юридична особа
АПУ,"Київ, вулиця Михайла Грушевського, 1Д",70,2016-12-16,1216Б3БСТУ,Банківські послуги,Інші витрати,365420,Центральний офіс,34763401,Україна,"Інші не заборонені законом витрати (Комісія за виконання платежів в національній валюті, згідно з відкритою офертою банку N б/н від 20.01.2015 та тарифів банку, без ПДВ.)",26009052641121,current,3.00,"ПАТ КБ ""Приватбанк""",14360570,юридична особа
АПУ,"Київ, вулиця Михайла Грушевського, 1Д",70,2016-12-16,1216Б3.1МХУ,Банківські послуги,Інші витрати,365419,Центральний офіс,34763401,Україна,"Інші не заборонені законом витрати (Комісія за виконання платежів в національній валюті, згідно з відкритою офертою банку N б/н від 20.01.2015 та тарифів банку, без ПДВ.)",26009052641121,current,3.00,"ПАТ КБ ""Приватбанк""",14360570,юридична особа
АПУ,"Рівненська область, Рівне",43,2016-12-15,6,Інші витрати,Інші витрати,368653,Рівненська районна організація,35038970,Рівненська область,матеріальні витрати та оплата послуг оплата за новорічний костюм,26002054724863,current,1250.00,Корнійчук Віра Антонівна,2226509068,фізична особа
АПУ,"Рівненська область, Рівне",74,2016-12-15,170,"Придбання канцтоварів, паперу, інших предметів і матеріалів, а також госп товари",Придбання канцтоварів та госп. товарів,368592,Рівненська обласна організація,35103253,Рівненська область,госпвитрати,26002054724863-2,current,176.48,Козачук Наталія Євгенівна,,фізична особа
АПУ,"Сумська область, Суми, вулиця Троїцька, 8",60,2016-12-15,158,Інші податки,Податкові платежі,368228,Сумська обласна організація,34932761,Сумська область,інші незаборонені законом витрати/реєстра ція змін/,26001055008647,current,140.00,УДКСУ у м. Суми,37970593,юридична особа
АПУ,"Полтавська область, Полтава, вулиця Шевченка, 1",61,2016-12-15,258,Військовий збір,Податкові платежі,368178,Полтавська обласна організація,34874174,Полтавська область,сплачені податки та збори (101 ;;34874174;військ овий збір з зарплати за 12.2016р.),26009054622601,current,42.34,УДКСУ у м. Полтаві,38019510,юридична особа
АПУ,"Полтавська область, Полтава, вулиця Європейська, 155",62,2016-12-15,260,Сплата ЄСВ,Податкові платежі,368111,Полтавська обласна організація,34874174,Полтавська область,сплачені податки та збори (101 ;;34874174;ЄСВ нарах/утриман роботодавцем з зарплати за 12.2016р.),26009054622601,current,620.95,ДПІ у м. Полтава ГУ ДФС у Полтавській області,39680655,юридична особа
АПУ,"Полтавська область, Полтава, вулиця Шевченка, 1",63,2016-12-15,259,Податок на доходи,Податкові платежі,368041,Полтавська обласна організація,34874174,Полтавська область,сплачені податки та збори (Ю1;;34874174;ПДФО з зарплати за 12.2016р.),26009054622601,current,384.03,УДКСУ у м. Полтаві,38019510,юридична особа
АПУ,"Київ, вулиця Зодчих, 40, 124",82,2016-12-15,106,"Гонорари, в тому числі за надані консультаційні послуги","Гонорари, в тому числі за надані консультаційні послуги",368003,Київська обласна організація,35032539,Київська область,Матеріальні витрати та оплата послуг (за бухгалтерське обслуговування згідно рахунку-фактури Ф-0000087),26006052746076,current,4000.00,Єремеєва Ольга Віталіївна,2675719226,фізична особа
АПУ,,84,2016-12-15,261,"Заробітна плата, премії","Заробітна плата, лікарняні, вагітності, відрядження, компенсації",367801,Полтавська обласна організація,34874174,Полтавська область,"Заробітна плата (Зарплата за 12.2016р., податки сплачені повністю)",26009054622601,current,770.03,Срібна Ірина Сергіївна,,фізична особа
АПУ,,84,2016-12-15,261,"Заробітна плата, премії","Заробітна плата, лікарняні, вагітності, відрядження, компенсації",367800,Полтавська обласна організація,34874174,Полтавська область,"Заробітна плата Зарплата за 12.2016р., податки сплачені повністю)",26009054622601,current,811.04,Луценко Олена Іванівна,,фізична особа
АПУ,,84,2016-12-15,261,"Заробітна плата, премії","Заробітна плата, лікарняні, вагітності, відрядження, компенсації",367799,Полтавська обласна організація,34874174,Полтавська область,"Заробітна плата (Зарплата за 12.2016р., податки сплачені повністю)",26009054622601,current,815.06,Дружиніна Любов Володимирівна,,фізична особа
АПУ,"Полтавська область, Полтава, вулиця Ватутіна, 9",53,2016-12-15,262,Витрати на розміщення зовнішньої реклами,Зовнішня реклама,367655,Полтавська обласна організація,34874174,Полтавська область,"розміщення зовнішньої політичної реклами (розміщення та тех обслуг зовн реклам по рах№0395 від 14.12.16, V т ч ТТГІВЇ",26009054622601,current,7120.00,"ТОВ ""ОЛЛАН""",22518246,юридична особа
АПУ,"Запорізька область, Запоріжжя, вулиця Незалежної України, 6, 88",69,2016-12-15,717,Організація заходів та інші організаційні послуги,Організація заходів та інші організаційні послуги,367596,Запорізька обласна організація,34975613,Запорізька область,"Проведення з’їздів,партконфер., загльних зборів (за орган.та пров. інф.конферен., зг.рах.№1512-000001 від І5/12/16р.)",26006055720257,current,28800.00,ТОВ Агрохімсервіс,31522332,юридична особа
АПУ,"Кіровоградська область, Кропивницький",79,2016-12-15,123,"Оренда будинків і приміщень та експлуатаційні витрати (прибирання, страхування орендованих будинків, охорона, сигналізація, ремонт, вивіз сміття, тощо)",Оренда нерухомості,366952,Кіровоградська обласна організація,36978104,Кіровоградська область,Оренда,26007052918872,current,152.72,Федерація професійних спілок Кіровоградської області,02606119,юридична особа
АПУ,,58,2016-12-15,163,"Виготовлення друкованих матеріалів (плакатів, листівок, буклетів та інших агітаційних матеріалів)",Друкована агітація,366085,Сумська обласна організація,34932761,Сумська область,матеріальні ви грати та оплата послуг/за спецвипуск/,26001055008647,current,5500.00,"ТОВ ""Медіа-Центр ""Вперед""",02475173,юридична особа
АПУ,"Сумська область, Суми, проспект Тараса Шевченка, 24, 17",58,2016-12-15,159,"Виготовлення друкованих матеріалів (плакатів, листівок, буклетів та інших агітаційних матеріалів)",Друкована агітація,366079,Сумська обласна організація,34932761,Сумська область,матеріальні витрати та оплата послуг/за листівки та макет /,26001055008647,current,315.00,Курʼякова Н О,2960411780,фізична особа
АПУ,"Київ, вулиця Михайла Грушевського, 1Д",70,2016-12-15,203,Банківські послуги,Інші витрати,365623,Рівненська обласна організація,35103253,Рівненська область,комісія,26002054724863-2,current,0.44,"ПАТ КБ ""Приватбанк""",14360570,юридична особа
АПУ,"Київ, вулиця Михайла Грушевського, 1Д",70,2016-12-15,12І5ІЛ8УІІУ,Банківські послуги,Інші витрати,365493,Запорізька обласна організація,34975613,Запорізька область,Інші не заборонені законом витрати(коміе.за викон.банк.платеж),26006055720257,current,3.00,"ПАТ КБ ""Приватбанк""",14360570,юридична особа
АПУ,"Київ, вулиця Михайла Грушевського, 1Д",70,2016-12-15,1215ЬООЗСУ,Банківські послуги,Інші витрати,365418,Полтавська обласна організація,34874174,Полтавська область,(Комісія за виконання платежів в національній валюті згідно з відкритою офертою банку б/н від,26009054622601,current,3.00,"ПАТ КБ ""Приватбанк""",14360570,юридична особа
АПУ,"Київ, вулиця Михайла Грушевського, 1Д",70,2016-12-15,1215ЬОНМОУ,Банківські послуги,Інші витрати,365417,Сумська обласна організація,34932761,Сумська область,інші незаборонені законом витрати /комісія за виконання платежів /,26001055008647,current,3.00,"ПАТ КБ ""Приватбанк""",14360570,юридична особа
АПУ,"Київ, вулиця Михайла Грушевського, 1Д",70,2016-12-15,1215Ь4ІЕ1У,Банківські послуги,Інші витрати,365416,Київська обласна організація,35032539,Київська область,"інші не заборонені законом витрати (Комісія за виконання платежів в національній валюті, згідно з відкритою офертою банку N б/н від 02.09.2015 та тарифів банку, без ПДВ.)",26006052746076,current,3.00,"ПАТ КБ ""Приватбанк""",14360570,юридична особа
АПУ,"Київ, вулиця Михайла Грушевського, 1Д",70,2016-12-15,1215Ь0Х9V,Банківські послуги,Інші витрати,365415,Полтавська обласна організація,34874174,Полтавська область,(Комісія за виконання платежів в національній валюті згідно з відкритою офертою банку б/н від,26009054622601,current,3.00,"ПАТ КБ ""Приватбанк""",14360570,юридична особа
АПУ,"Київ, вулиця Михайла Грушевського, 1Д",70,2016-12-15,1215Е0І191У,Банківські послуги,Інші витрати,365414,Сумська обласна організація,34932761,Сумська область,інші незаборонені законом витрати/комісія за переказ коштів/,26001055008647,current,3.00,"ПАТ КБ ""Приватбанк""",14360570,юридична особа
АПУ,"Київ, вулиця Михайла Грушевського, 1Д",70,2016-12-15,1215БООРКV,Банківські послуги,Інші витрати,365413,Полтавська обласна організація,34874174,Полтавська область,(Комісія за виконання платежів в національній валюті згідно з відкритою офертою банку б/н від,26009054622601,current,3.00,"ПАТ КБ ""Приватбанк""",14360570,юридична особа
АПУ,"Київ, вулиця Михайла Грушевського, 1Д",70,2016-12-15,1215Б0У22V,Банківські послуги,Інші витрати,365412,Полтавська обласна організація,34874174,Полтавська область,(Комісія за виконання платежів в національній валюті згідно з відкритою офертою банку б/н від,26009054622601,current,3.00,"ПАТ КБ ""Приватбанк""",14360570,юридична особа
АПУ,"Київ, вулиця Михайла Грушевського, 1Д",70,2016-12-15,12151.0Х22У,Банківські послуги,Інші витрати,365411,Сумська обласна організація,34932761,Сумська область,інші незаборонені закоом втрати/комісія за переказ коштів/,26001055008647,current,3.00,"ПАТ КБ ""Приватбанк""",14360570,юридична особа
АПУ,"Рівненська область, Рівне",74,2016-12-14,4,"Придбання канцтоварів, паперу, інших предметів і матеріалів, а також госп товари",Придбання канцтоварів та госп. товарів,368628,Рівненська районна організація,35038970,Рівненська область,"матеріальні витрати та оплата послуг оплата за цукерки - гостинна хатка, святкова цукерка",26002054724863,current,3338.00,ТОВ,37511771,юридична особа
АПУ,"Київ, вулиця Михайла Грушевського, 1Д",60,2016-12-14,990,Інші податки,Податкові платежі,368243,Центральний офіс,34763401,Україна,інші не заборонені законом витрати (за держ.реєстрацію симовліки політ.партії),26009052641121,current,96.00,"ПАТ КБ ""Приватбанк""",14360570,юридична особа
АПУ,"Черкаська область, Кам'янський район, Кам'янка",79,2016-12-14,,"Оренда будинків і приміщень та експлуатаційні витрати (прибирання, страхування орендованих будинків, охорона, сигналізація, ремонт, вивіз сміття, тощо)",Оренда нерухомості,367357,Камʼянська районна організація,35051991,Черкаська область,сплата за опалення та електроенергію,26005500138,current,352.82,Камʼянське районне споживче товариство,01773939,юридична особа
АПУ,"Київ, бульвар Тараса Шевченка, 18",76,2016-12-14,,Послуги зв’язку,Послуги зв’язку,367343,Камʼянська районна організація,35051991,Черкаська область,послуги звязку,26005500138,current,191.24,"ПАТ ""Укртелеком""",21560766,юридична особа
АПУ,"Черкаська область, Кам'янський район, Кам'янка",79,2016-12-14,,"Оренда будинків і приміщень та експлуатаційні витрати (прибирання, страхування орендованих будинків, охорона, сигналізація, ремонт, вивіз сміття, тощо)",Оренда нерухомості,367223,Камʼянська районна організація,35051991,Черкаська область,оренда приміщення,26005500138,current,500.00,"СТ ""Нерухомість""",36774829,юридична особа
АПУ,"Чернівецька область, Сторожинецький район, Сторожинець",49,2016-12-14,63321699,Публікування матеріалів у друкованих ЗМІ,Реклама в друкованих ЗМІ,366565,Сторожинецька районна організація,35132766,Чернівецька область,Публікування агітаційних матеріалів,811111,current,3697.50,"Редакція газети ""Рідний край""",02476391,юридична особа
АПУ,"Київ, вулиця Миколи Лєскова, 9",70,2016-12-14,288,Банківські послуги,Інші витрати,365700,Камʼянська районна організація,35051991,Черкаська область,Комісія,26005500138,current,100.00,"АТ ""Райффайзен банк Аваль""",14305909,юридична особа
АПУ,"Київ, вулиця Миколи Лєскова, 9",70,2016-12-14,287,Банківські послуги,Інші витрати,365699,Камʼянська районна організація,35051991,Черкаська область,Комісія,26005500138,current,62.72,"АТ ""Райффайзен банк Аваль""",14305909,юридична особа
АПУ,"Київ, вулиця Миколи Лєскова, 9",70,2016-12-14,286,Банківські послуги,Інші витрати,365698,Камʼянська районна організація,35051991,Черкаська область,Комісія,26005500138,current,20.00,"АТ ""Райффайзен банк Аваль""",14305909,юридична особа
АПУ,"Київ, вулиця Михайла Грушевського, 1Д",70,2016-12-14,1214Ь1Т3РУ,Банківські послуги,Інші витрати,365410,Центральний офіс,34763401,Україна,"Інші не заборонені законом витрати (Комісія за виконання платежів в національній валюті, згідно з відкритою офертою банку N б/н від 20.01.2015 та тарифів банку, без ПДВ.)",26009052641121,current,3.00,"ПАТ КБ ""Приватбанк""",14360570,юридична особа
АПУ,"Київ, вулиця Михайла Грушевського, 1Д",70,2016-12-14,1214Ь0О20У,Банківські послуги,Інші витрати,365409,Рівненська районна організація,35038970,Рівненська область,"утримання місцевих організацій партії Комісія за виконання платежів в національній валюті, згідно з відкритою офертою банку N б/н від 28.11.2016 та тарифів банку, без ПДВ",26002054724863,current,3.00,"ПАТ КБ ""Приватбанк""",14360570,юридична особа
АПУ,"Київ, вулиця Михайла Грушевського, 1Д",60,2016-12-13,989,Інші податки,Податкові платежі,368242,Центральний офіс,34763401,Україна,"сплачені податки і збори (Адмін збір за проведення держ. реєстр. юр. осіб, фіз.осіб-підпр. та громадських формувань)",26009052641121,current,480.00,"ПАТ КБ ""Приватбанк""",14360570,юридична особа
АПУ,"Харківська область, Харків",79,2016-12-13,,"Оренда будинків і приміщень та експлуатаційні витрати (прибирання, страхування орендованих будинків, охорона, сигналізація, ремонт, вивіз сміття, тощо)",Оренда нерухомості,367212,Чугуївська районна організація,33867150,Харківська область,оренда приміщення,26004052209164,current,2774.62,"ТОВ ""Побутелектроніка""",24136939,юридична особа
АПУ,"Полтавська область, Полтава",80,2016-12-13,,"Транспортні послуги (квитки, пасажирські перевезення і т.д.)","Транспортні послуги (квитки, пасажирські перевезення і т.д.)",366721,Полтавська обласна організація,34874174,Полтавська область,"організація перевезень, відправлень",26009054622601,current,1949.00,"ТОВ ""Нова пошта""",31316718,юридична особа
АПУ,"Київ, вулиця Михайла Грушевського, 1Д",80,2016-12-13,988,"Транспортні послуги (квитки, пасажирські перевезення і т.д.)","Транспортні послуги (квитки, пасажирські перевезення і т.д.)",366714,Центральний офіс,34763401,Україна,матеріальні витрати та оплата послуг (за транспортні послуги зг.рах.Ш1/16-18 від 30.11.2016р.),26009052641121,current,11200.00,"ПАТ КБ ""Приватбанк""",14360570,юридична особа
АПУ,"Полтавська область, Полтава",49,2016-12-13,,Публікування матеріалів у друкованих ЗМІ,Реклама в друкованих ЗМІ,366615,Полтавська обласна організація,34874174,Полтавська область,розм реклами у друкованих ЗМІ,26009054622601,current,4860.00,"РГ ""Село Полтавське""",13956310,юридична особа
АПУ,"Полтавська область, Полтава, вулиця Раїси Кириченко, 1",51,2016-12-13,260,Оплата ефірного часу на ТБ,Телереклама,366339,Полтавська обласна організація,34874174,Полтавська область,"розміщення реклами на телебаченні (розміщн сюжет на телеканал (вітан) по рах.№639 віт 12.12.16, без ПДВ)",26009054622601,current,1500.00,"Філія ПАТ ""НТСУ ""Лтава""",40020640,юридична особа
АПУ,"Полтавська область, Полтава, вулиця Раїси Кириченко, 1",51,2016-12-13,259,Оплата ефірного часу на ТБ,Телереклама,366338,Полтавська обласна організація,34874174,Полтавська область,"розміщення реклами на телебаченні (розміщн сюжет на телеканал по рах.№638 від 12.12.16, без ПДВ)",26009054622601,current,1190.96,"Філія ПАТ ""НТСУ ""Лтава""",40020640,юридична особа
АПУ,"Чернівецька область, Чернівці",58,2016-12-13,63243580,"Виготовлення друкованих матеріалів (плакатів, листівок, буклетів та інших агітаційних матеріалів)",Друкована агітація,366122,Сторожинецька районна організація,35132766,Чернівецька область,Виготовлення друкованих матеріалів агітації,811111,current,2036.00,Місікевич С А,2304012576,фізична особа
АПУ,"Київ, вулиця Михайла Грушевського, 1Д",70,2016-12-13,35,Банківські послуги,Інші витрати,365729,Полтавська обласна організація,34874174,Полтавська область,Комісія,26009054622601,current,3.00,"ПАТ КБ ""Приватбанк""",14360570,юридична особа
АПУ,"Київ, вулиця Михайла Грушевського, 1Д",70,2016-12-13,213ЬШУС,Банківські послуги,Інші витрати,365629,Полтавська обласна організація,34874174,Полтавська область,інші не заборонені законом витрати (Комісія за виконання шатежів в національній валюті згідно з відкритою офертою банку б/н від 07.09.2015 та тарифів банку.Без ПДВ.),26009054622601,current,3.00,"ПАТ КБ ""Приватбанк""",14360570,юридична особа
АПУ,"Київ, вулиця Михайла Грушевського, 1Д",70,2016-12-13,1213ЬЮУНУ,Банківські послуги,Інші витрати,365408,Полтавська обласна організація,34874174,Полтавська область,інші не заборонені законом витрати (Комісія за виконання платежів в національній валюті згідно з відкритою офертою банку б/н від 07.09.2015 та тарифів банку.Без ПДВ.),26009054622601,current,3.00,"ПАТ КБ ""Приватбанк""",14360570,юридична особа
АПУ,"Київ, вулиця Михайла Грушевського, 1Д",70,2016-12-13,1213ЬШУРУ,Банківські послуги,Інші витрати,365407,Полтавська обласна організація,34874174,Полтавська область,інші не заборонені законом витрати (Комісія за виконання платежів в національній валюті згідно з відкритою офертою банку б/н від 07.09.2015 та тарифів банку.Без ПДВ.),26009054622601,current,3.00,"ПАТ КБ ""Приватбанк""",14360570,юридична особа
АПУ,"Київ, вулиця Михайла Грушевського, 1Д",70,2016-12-13,1213Ь393РУ,Банківські послуги,Інші витрати,365406,Центральний офіс,34763401,Україна,"Інші не заборонені законом витрати (Комісія за виконання платежів в національній валюті, згідно з відкритою офертою банку N б/н від 20.01.2015 та тарифів банку, без ПДВ.)",26009052641121,current,3.00,"ПАТ КБ ""Приватбанк""",14360570,юридична особа
АПУ,"Запорізька область, Мелітополь, вулиця Університетська, 11",69,2016-12-12,716,Організація заходів та інші організаційні послуги,Організація заходів та інші організаційні послуги,367595,Запорізька обласна організація,34975613,Запорізька область,"Проведення з’їздів,партконфер., загльних зборів (за посл.з прож.,зг.рах.№613 від 09/12/16р.)",26006055720257,current,375.00,Левченко С Л,2649115613,фізична особа
АПУ,"Рівненська область, Гощанський район, Гоща",79,2016-12-12,,"Оренда будинків і приміщень та експлуатаційні витрати (прибирання, страхування орендованих будинків, охорона, сигналізація, ремонт, вивіз сміття, тощо)",Оренда нерухомості,367209,Рівненська обласна організація,35103253,Рівненська область,оренда приміщення,26002054724863-2,current,1222.00,Гощанське районне споживче товариство,01764366,юридична особа
АПУ,"Рівненська область, Рівне",49,2016-12-12,,Публікування матеріалів у друкованих ЗМІ,Реклама в друкованих ЗМІ,366626,Рівненська обласна організація,35103253,Рівненська область,розм. Реклами,26002054724863-2,current,8050.00,"РГ ""Вісті Рівненщини""",13981137,юридична особа
АПУ,"Чернівецька область, Вижницький район, Вижниця",49,2016-12-12,№2,Публікування матеріалів у друкованих ЗМІ,Реклама в друкованих ЗМІ,366611,Вижницька районна організація,35166549,Чернівецька область,Публікація агітаційних матеріалів,811112,current,7650.00,"РГ ""Вижницькі обрії""",02476327,юридична особа
АПУ,"Чернігівська область, Бахмацький район, Бахмач, вул. Дружби, 2, 54",49,2016-12-12,34,Публікування матеріалів у друкованих ЗМІ,Реклама в друкованих ЗМІ,366505,Бахмацька районна організація,39979341,Чернігівська область,розміщення реклами у друкованих засобах масової інформації (Публікація статті в газеті згідно рахунку N337 від 06.12.16р.),26000300021430,current,1800.00,"РГ ""ГОЛОС ПРИСЕЙМІВʼЯ""",02476103,юридична особа
АПУ,"Чернівецька область, Чернівці",58,2016-12-12,№4,"Виготовлення друкованих матеріалів (плакатів, листівок, буклетів та інших агітаційних матеріалів)",Друкована агітація,366161,Вижницька районна організація,35166549,Чернівецька область,Виготовлення друкованих матеріалів,811112,current,6760.00,Варвус В В,3167513552,фізична особа
АПУ,"Сумська область, Суми, проспект Тараса Шевченка, 24, 17",58,2016-12-12,157,"Виготовлення друкованих матеріалів (плакатів, листівок, буклетів та інших агітаційних матеріалів)",Друкована агітація,366078,Сумська обласна організація,34932761,Сумська область,матеріальні витрати та оплата послуг/за формат А4/,26001055008647,current,9806.00,Курʼякова Н О,2960411780,фізична особа
АПУ,"Київ, вулиця Михайла Грушевського, 1Д",70,2016-12-12,Ш2илт,Банківські послуги,Інші витрати,366031,Запорізька обласна організація,34975613,Запорізька область,Інші не заборонені законом витрати(коміс.за викон.банк.платеж),26006055720257,current,3.00,"ПАТ КБ ""Приватбанк""",14360570,юридична особа
АПУ,"Київ, вулиця Михайла Грушевського, 1Д",70,2016-12-12,1212Ь0КРНУ,Банківські послуги,Інші витрати,365405,Сумська обласна організація,34932761,Сумська область,інші незаборонені законом виграти /комісія за виконання платежів /,26001055008647,current,3.00,"ПАТ КБ ""Приватбанк""",14360570,юридична особа
АПУ,"Запорізька область, Мелітополь, вулиця Університетська, 11",69,2016-12-09,713,Організація заходів та інші організаційні послуги,Організація заходів та інші організаційні послуги,367594,Запорізька обласна організація,34975613,Запорізька область,"ровсдсння з’їздів.нартконфер., загльних зборів (за ІІОСЛ .3 прож.,зг.рах.№61від 09/12/16)",26006055720257,current,2095.00,Левченко С Л,2649115613,фізична особа
АПУ,"Хмельницька область, Хмельницький, проспект Миру, 59",49,2016-12-09,462,Публікування матеріалів у друкованих ЗМІ,Реклама в друкованих ЗМІ,366549,Хмельницька обласна організація,38968240,Хмельницька область,"розміщення реклами у друкованих засобах масової інформації (За вітання до дня вчителя зг рах \г""оз8л ріпП7 п н; втипіш",26003010007435,current,4440.00,"ПП ""Медіа-центр ""Подільські вісті""",21313714,юридична особа
АПУ,"Запорізька область, Мелітополь, площа Перемоги",51,2016-12-09,712,Оплата ефірного часу на ТБ,Телереклама,366370,Запорізька обласна організація,34975613,Запорізька область,Розміщення реклами на телсбаченні(за вигот.та прокат відеофільму.зг.рах.,26006055720257,current,5000.00,"КП ""ТРК""Мелітополь""",22159095,юридична особа
АПУ,,51,2016-12-09,463,Оплата ефірного часу на ТБ,Телереклама,366356,Хмельницька обласна організація,38968240,Хмельницька область,розміщення реклами на телебаченні (За виготовлення та трансляцію сюжетів про АПУ зг рах №222 від 07.12.16р),26003010007435,current,5000.00,"ДП ""Дитяче телевізійне агентство""",23843362,юридична особа
АПУ,,51,2016-12-09,461,Оплата ефірного часу на ТБ,Телереклама,366355,Хмельницька обласна організація,38968240,Хмельницька область,"розміщення реклами на телебаченні (За трансляцію сюжету на телебаченні зграх СФ-101, від 07,12,16 та Без ПДВ)",26003010007435,current,2736.00,Малий Володимир Іванович,,фізична особа
АПУ,"Одеська область, Ширяївський район, Ширяєве",51,2016-12-09,36,Оплата ефірного часу на ТБ,Телереклама,366346,Ширяївська районна організація,36909245,Одеська область,пропагандистська діяльність (за розробку і трансляцію рекламного ролика),26005495447,current,3460.00,"ПП ТРК ""СВЕВА-ТВ""",34269357,юридична особа
АПУ,"Запорізька область, Приморський район, Приморськ, вулиця Жукова",66,2016-12-09,715,Повернення внесків приватних внесків (донорам),Повернення приватних внесків (донорам),366309,Запорізька обласна організація,34975613,Запорізька область,Інші не заборонені законом витрати (повернення помилково перер.коштів на підтримку партії),26006055720257,current,5000.00,ФГ Олена (Шептій Олени Михайлівни),31322150,юридична особа
АПУ,"Запорізька область, Приморський район, Маринівка",66,2016-12-09,714,Повернення внесків приватних внесків (донорам),Повернення приватних внесків (донорам),366308,Запорізька обласна організація,34975613,Запорізька область,№130 від 09/12/16) Інші не заборонені законом витрати (повернення помилково перер.коштів на підтримку партії),26006055720257,current,5000.00,Селянське (фермерське) господарство Стойчева Івана Васильовича,31334978,юридична особа
АПУ,"Житомирська область, Житомир, вулиця Небесної Сотні, 63В, 2",58,2016-12-09,12,"Виготовлення друкованих матеріалів (плакатів, листівок, буклетів та інших агітаційних матеріалів)",Друкована агітація,366062,Житомирська обласна організація,35021328,Житомирська область,видавнича діяльність (За друковану продукцію по рах.ІМ 216 від 09.12.2016 р. Без ПДВ),26001060520970,current,3000.00,Сліпчук Вікторія Миколаївна,3193519466,фізична особа
АПУ,"Київ, вулиця Михайла Грушевського, 1Д",70,2016-12-09,І209Ь26УСУ,Банківські послуги,Інші витрати,365975,Запорізька обласна організація,34975613,Запорізька область,Інші не заборонені законом витрати(коміс.за викон.банк.платеж),26006055720257,current,3.00,"ПАТ КБ ""Приватбанк""",14360570,юридична особа
АПУ,"Київ, вулиця Михайла Грушевського, 1Д",70,2016-12-09,І209І.ШГНУ,Банківські послуги,Інші витрати,365974,Запорізька обласна організація,34975613,Запорізька область,Інші не -заборонені законом витрати(коміс.за викон.банк.платеж),26006055720257,current,3.00,"ПАТ КБ ""Приватбанк""",14360570,юридична особа
АПУ,"Одеська область, Одеса, вулиця Жуковського. 39, 1",79,2016-12-08,пд03,"Оренда будинків і приміщень та експлуатаційні витрати (прибирання, страхування орендованих будинків, охорона, сигналізація, ремонт, вивіз сміття, тощо)",Оренда нерухомості,367355,Одеська міська організація,40560001,Одеська область,матеріальні витрати та оплата послуг (за комунальні послуги за листопад 2016),26007010020883,current,853.00,Гнатюк Юрій Юрійович,2006101555,фізична особа
АПУ,"Одеська область, Одеса, вулиця Жуковського. 39, 1",79,2016-12-08,пд04,"Оренда будинків і приміщень та експлуатаційні витрати (прибирання, страхування орендованих будинків, охорона, сигналізація, ремонт, вивіз сміття, тощо)",Оренда нерухомості,367183,Одеська міська організація,40560001,Одеська область,оренда приміщення (за оренду офіса за грудень 2016),26007010020883,current,13010.00,Гнатюк Юрій Юрійович,2006101555,фізична особа
АПУ,"Одеська область, Ширяївський район, Ширяєве",49,2016-12-08,35,Публікування матеріалів у друкованих ЗМІ,Реклама в друкованих ЗМІ,366506,Ширяївська районна організація,36909245,Одеська область,пропагандистська діяльність (за розміщення інформації),26005495447,current,8718.00,"РГ ""Промінь""",02474280,юридична особа
АПУ,"Харківська область, Харків",51,2016-12-08,,Оплата ефірного часу на ТБ,Телереклама,366404,Чугуївська районна організація,33867150,Харківська область,розм. Реклами на телебаченні,26004052209164,current,10000.00,"ТОВ ТРК ""Регіон""",32780971,юридична особа
АПУ,"Одеська область, Ширяївський район, Ширяєве",74,2016-12-08,11,"Придбання канцтоварів, паперу, інших предметів і матеріалів, а також госп товари",Придбання канцтоварів та госп. товарів,366214,Ширяївська районна організація,36909245,Одеська область,"інші не заборонені законом витрати (заправка картріджу, канцтовари)",26005495447,current,390.00,Мартинова В Г,2333605541,фізична особа
АПУ,"Рівненська область, Рівне",74,2016-12-07,,"Придбання канцтоварів, паперу, інших предметів і матеріалів, а також госп товари",Придбання канцтоварів та госп. товарів,368770,Рівненська обласна організація,35103253,Рівненська область,за інструмент,26002054724863-2,current,6400.00,Йосифчук Наталія Володимирівна,2968309462,юридична особа
АПУ,"Рівненська область, Рівне",69,2016-12-07,105,Організація заходів та інші організаційні послуги,Організація заходів та інші організаційні послуги,368563,Київська обласна організація,35032539,Київська область,матеріальні витрати та оплата послуг (за концерт Назарія Яремчука),26006052746076,current,12600.00,Яремчук Назар Назарович,,фізична особа
АПУ,"Рівненська область, Рівне",79,2016-12-07,2,"Оренда будинків і приміщень та експлуатаційні витрати (прибирання, страхування орендованих будинків, охорона, сигналізація, ремонт, вивіз сміття, тощо)",Оренда нерухомості,367349,Рівненська районна організація,35038970,Рівненська область,"утримання місцевих організацій партії, За відшкодування витрат на експлуатаційні послуги зг. акту N18/12-2 від 05.12.2016р. в т.ч. ПДВ 111,35 гри.",26002054724863,current,668.09,КП Управління майновим комплексом,35597574,юридична особа
АПУ,"Полтавська область, Полтава, проспект Миколи Вавилова, 3",76,2016-12-07,253,Послуги зв’язку,Послуги зв’язку,367274,Полтавська обласна організація,34874174,Полтавська область,послуги зв’язку (посл інтернет по рах№8214 відО 1.12.16 у т.ч.ПДВ ),26009054622601,current,200.00,"НВ ТОВ ""СОЛВЕР""",21042304,юридична особа
АПУ,"Полтавська область, Полтава, проспект Миколи Вавилова, 3",76,2016-12-07,252,Послуги зв’язку,Послуги зв’язку,367273,Полтавська обласна організація,34874174,Полтавська область,послуги зв’язку (посл абонем плат користтел по рах№8522 від 30.11.16 у т.ч.ПДВ),26009054622601,current,82.28,"НВ ТОВ ""СОЛВЕР""",21042304,юридична особа
АПУ,"Рівненська область, Рівне",76,2016-12-07,1,Послуги зв’язку,Послуги зв’язку,367246,Рівненська районна організація,35038970,Рівненська область,матеріальні витрати та оплата послуг партії за інтернет,26002054724863,current,100.00,Сіренко Максим Валерійович,2796006370,фізична особа
АПУ,"Рівненська область, Рівне",79,2016-12-07,,"Оренда будинків і приміщень та експлуатаційні витрати (прибирання, страхування орендованих будинків, охорона, сигналізація, ремонт, вивіз сміття, тощо)",Оренда нерухомості,367208,Рівненська обласна організація,35103253,Рівненська область,оренда приміщення,26002054724863-2,current,715.58,КП Управління майновим комплексом,35597574,юридична особа
АПУ,"Рівненська область, Рівне",79,2016-12-07,,"Оренда будинків і приміщень та експлуатаційні витрати (прибирання, страхування орендованих будинків, охорона, сигналізація, ремонт, вивіз сміття, тощо)",Оренда нерухомості,367207,Рівненська обласна організація,35103253,Рівненська область,оренда приміщення,26002054724863-2,current,668.09,КП Управління майновим комплексом,35597574,юридична особа
АПУ,"Рівненська область, Рівне",79,2016-12-07,,"Оренда будинків і приміщень та експлуатаційні витрати (прибирання, страхування орендованих будинків, охорона, сигналізація, ремонт, вивіз сміття, тощо)",Оренда нерухомості,367206,Рівненська обласна організація,35103253,Рівненська область,оренда приміщення,26002054724863-2,current,32.78,КП Управління майновим комплексом,35597574,юридична особа
АПУ,"Полтавська область, Полтава",79,2016-12-07,,"Оренда будинків і приміщень та експлуатаційні витрати (прибирання, страхування орендованих будинків, охорона, сигналізація, ремонт, вивіз сміття, тощо)",Оренда нерухомості,367188,Полтавська обласна організація,34874174,Полтавська область,оренда приміщення,26009054622601,current,2041.91,Департамент агропромислового розвитку Полтавської ОДА,00732619,юридична особа
АПУ,"Рівненська область, Рівне",79,2016-12-07,3,"Оренда будинків і приміщень та експлуатаційні витрати (прибирання, страхування орендованих будинків, охорона, сигналізація, ремонт, вивіз сміття, тощо)",Оренда нерухомості,367038,Рівненська районна організація,35038970,Рівненська область,"утримання місцевих організацій партії, За оренду примішеннь зг. акту ""18/12-3 від 05.12.2016 р. в т.ч. ПДВ 0,17 грн.",26002054724863,current,1.00,КП Управління майновим комплексом,35597574,юридична особа
АПУ,"Полтавська область, Полтава, вулиця Міщенка, 2",79,2016-12-07,249,"Оренда будинків і приміщень та експлуатаційні витрати (прибирання, страхування орендованих будинків, охорона, сигналізація, ремонт, вивіз сміття, тощо)",Оренда нерухомості,367019,Полтавська обласна організація,34874174,Полтавська область,"оренда приміщення (будинку, офіса, квартири)(оренда приміщення(код 25010300)062016 по рах№332 від 25.10.16, без ПДВ)",26009054622601,current,4195.54,Департамент агропромислового розвитку Полтавської ОДА,00732619,юридична особа
АПУ,"Київ, вулиця Михайла Грушевського, 1Д",43,2016-12-07,987,Інші витрати,Інші витрати,366905,Центральний офіс,34763401,Україна,матеріальні витрати та оплата послуг (Оплата за статути зг. рах. N380 від 07.12.2016р.),26009052641121,current,12216.00,"ПАТ КБ ""Приватбанк""",14360570,юридична особа
АПУ,"Сумська область, Суми, Покровська площа, 6",49,2016-12-07,155,Публікування матеріалів у друкованих ЗМІ,Реклама в друкованих ЗМІ,366756,Сумська обласна організація,34932761,Сумська область,матеріальні витрати та оплата послуг /за рекламні послуги /,26001055008647,current,2500.00,"ТОВ ""Всі Суми Панорама-Медіа""",36898197,юридична особа
АПУ,"Рівненська область, Рівне",80,2016-12-07,,"Транспортні послуги (квитки, пасажирські перевезення і т.д.)","Транспортні послуги (квитки, пасажирські перевезення і т.д.)",366728,Рівненська обласна організація,35103253,Рівненська область,транспортні послуги,26002054724863-2,current,3000.00,Рівненська ТТ Палата,02944739,юридична особа
АПУ,"Полтавська область, Полтава, вулиця Європейська, 57",80,2016-12-07,251,"Транспортні послуги (квитки, пасажирські перевезення і т.д.)","Транспортні послуги (квитки, пасажирські перевезення і т.д.)",366670,Полтавська обласна організація,34874174,Полтавська область,"матеріальні витрати та оплата послуг (організац перевезен відправлень по рах№/0-029552 від 30.11.2016, у т.ч. ПДВ)",26009054622601,current,811.20,"ТОВ ""Нова пошта""",31316718,юридична особа
АПУ,Київ,49,2016-12-07,,Публікування матеріалів у друкованих ЗМІ,Реклама в друкованих ЗМІ,366614,Полтавська обласна організація,34874174,Полтавська область,розм реклами у друкованих ЗМІ,26009054622601,current,400.00,Кулик А О,2835706396,фізична особа
АПУ,"Полтавська область, Полтава, вулиця Пушкіна, 115",49,2016-12-07,256,Публікування матеріалів у друкованих ЗМІ,Реклама в друкованих ЗМІ,366482,Полтавська обласна організація,34874174,Полтавська область,"розміщення реклами у друкованих засобах масової інформації ( опублікування стат(оголошен) в газеті по рах№12056 від 30.11.16,ут.ч. ПДВ)",26009054622601,current,2000.00,"ПП ""Зоря Полтавщини""",02474794,юридична особа
АПУ,"Полтавська область, Полтава, вулиця Пушкіна, 115",49,2016-12-07,255,Публікування матеріалів у друкованих ЗМІ,Реклама в друкованих ЗМІ,366481,Полтавська обласна організація,34874174,Полтавська область,"розміщення реклами у друкованих засобах масової інформації ( опублікування стат(оголошен) в газеті по рах№ 12053 від 29.11.16, ут.ч. ПДВ)",26009054622601,current,3835.10,"ПП ""Зоря Полтавщини""",02474794,юридична особа
АПУ,"Полтавська область, Полтава, вулиця Міщенка, 2",49,2016-12-07,254,Публікування матеріалів у друкованих ЗМІ,Реклама в друкованих ЗМІ,366480,Полтавська обласна організація,34874174,Полтавська область,"розміщення реклами у друкованих засобах масової інформації (за опублікув стат по рах№63 від 30.11.2016, без ПДВ.)",26009054622601,current,5850.00,"РГ ""Село Полтавське""",13956310,юридична особа
АПУ,"Дніпропетровська область, Дніпро́, вулиця Батумська, 11",49,2016-12-07,156,Публікування матеріалів у друкованих ЗМІ,Реклама в друкованих ЗМІ,366455,Сумська обласна організація,34932761,Сумська область,матеріальні витрати та оплата послуг/за розміщення статті /,26001055008647,current,600.00,"АТ ""Акцент-банк""",14360080,юридична особа
АПУ,"Сумська область, Суми, Іллінська вулиця, 97",49,2016-12-07,154,Публікування матеріалів у друкованих ЗМІ,Реклама в друкованих ЗМІ,366454,Сумська обласна організація,34932761,Сумська область,матеріальні витрати та оплата послуг /за привітання в газеті /,26001055008647,current,260.00,"ТОВ ""Медіа-Центр ""Вперед""",02475173,юридична особа
АПУ,,49,2016-12-07,153,Публікування матеріалів у друкованих ЗМІ,Реклама в друкованих ЗМІ,366453,Сумська обласна організація,34932761,Сумська область,матеріальні витрати та оплата послуг/за інформаційнийм атеріал/,26001055008647,current,1802.00,"ТОВ ""Медіа-Центр ""Вперед""",02475173,юридична особа
АПУ,"Вінницька область, Вінниця, Хмельницьке шосе, 2",74,2016-12-07,312,"Придбання канцтоварів, паперу, інших предметів і матеріалів, а також госп товари",Придбання канцтоварів та госп. товарів,366248,Вінницька обласна організація,35111112,Вінницька область,матеріальні витрати та оплата послуг (Опла іа за канцтовари зг рах №935 від 06 12 16 без ПДВ],26003000249520,current,209.80,Бацальова Тетяна Юріївна,2646708325,фізична особа
АПУ,"Київ, вулиця Михайла Грушевського, 1Д",70,2016-12-07,1207Ю6ХКУ,Банківські послуги,Інші витрати,365403,Сумська обласна організація,34932761,Сумська область,інші незаборонені законом витрати/за комісію за виконання платежів /,26001055008647,current,3.00,"ПАТ КБ ""Приватбанк""",14360570,юридична особа
АПУ,"Київ, вулиця Михайла Грушевського, 1Д",70,2016-12-07,1207Ь06ХОУ,Банківські послуги,Інші витрати,365402,Сумська обласна організація,34932761,Сумська область,інші незаборонені законом витрати /комісія за виконання платежів /,26001055008647,current,3.00,"ПАТ КБ ""Приватбанк""",14360570,юридична особа
АПУ,"Київ, вулиця Михайла Грушевського, 1Д",70,2016-12-07,1207Ь06ХАУ,Банківські послуги,Інші витрати,365401,Сумська обласна організація,34932761,Сумська область,інші непередбачені законом витрати /комісія за переказ платежів/,26001055008647,current,3.00,"ПАТ КБ ""Приватбанк""",14360570,юридична особа
АПУ,"Київ, вулиця Михайла Грушевського, 1Д",70,2016-12-07,1207Ь06[МУ,Банківські послуги,Інші витрати,365400,Сумська обласна організація,34932761,Сумська область,інші незаборонені законом витрати /комісія за виконання платежів /,26001055008647,current,3.00,"ПАТ КБ ""Приватбанк""",14360570,юридична особа
АПУ,"Київ, вулиця Михайла Грушевського, 1Д",70,2016-12-07,1207НРР1У,Банківські послуги,Інші витрати,365399,Полтавська обласна організація,34874174,Полтавська область,інші не заборонені законом витрати (Комісія за виконання платежів в національній валюті згідно з відкритою офертою банку б/н від 07.09.2015 та тарифів банку.Без ПДВ.),26009054622601,current,3.00,"ПАТ КБ ""Приватбанк""",14360570,юридична особа
АПУ,"Київ, вулиця Михайла Грушевського, 1Д",70,2016-12-07,1207НРИК.У,Банківські послуги,Інші витрати,365398,Полтавська обласна організація,34874174,Полтавська область,інші не заборонені законом витрати (Комісія за виконання платежів в національній валюті згідно з відкритою офертою банку б/н від 07.09.2015 та тарифів банку.Без ПДВ.),26009054622601,current,3.00,"ПАТ КБ ""Приватбанк""",14360570,юридична особа
АПУ,"Київ, вулиця Михайла Грушевського, 1Д",70,2016-12-07,1207ІЛРМСУ,Банківські послуги,Інші витрати,365397,Полтавська обласна організація,34874174,Полтавська область,інші не заборонені законом витрати (Комісія за виконання платежів в національній валюті згідно з відкритою офертою банку б/н від 07.09.2015 та тарифів банку.Без ПДВ.),26009054622601,current,3.00,"ПАТ КБ ""Приватбанк""",14360570,юридична особа
АПУ,"Київ, вулиця Михайла Грушевського, 1Д",70,2016-12-07,1207ІЛРК9V,Банківські послуги,Інші витрати,365396,Полтавська обласна організація,34874174,Полтавська область,інші не заборонені законом витрати (Комісія за виконання платежів в національній валюті згідно з відкритою офертою банку б/н від 07.09.2015 та тарифів банку.Без ПДВ.),26009054622601,current,3.00,"ПАТ КБ ""Приватбанк""",14360570,юридична особа
АПУ,"Київ, вулиця Михайла Грушевського, 1Д",70,2016-12-07,1207ІЛР1МР,Банківські послуги,Інші витрати,365395,Полтавська обласна організація,34874174,Полтавська область,інші не заборонені законом витрати (Комісія за виконання їлатежів в національній валюті згідно з відкритою офертою банку б/н від 07.09.2015 та тарифів банку.Без ПДВ.),26009054622601,current,3.00,"ПАТ КБ ""Приватбанк""",14360570,юридична особа
АПУ,"Київ, вулиця Михайла Грушевського, 1Д",70,2016-12-07,1207ІЛЕМХУ,Банківські послуги,Інші витрати,365394,Полтавська обласна організація,34874174,Полтавська область,інші не заборонені законом витрати (Комісія за виконання платежів в національній валюті згідно з відкритою офертою банку б/н від 07.09.2015 та тарифів банку.Без ПДВ.),26009054622601,current,3.00,"ПАТ КБ ""Приватбанк""",14360570,юридична особа
АПУ,"Київ, вулиця Михайла Грушевського, 1Д",70,2016-12-07,12071ЛРШУ,Банківські послуги,Інші витрати,365393,Полтавська обласна організація,34874174,Полтавська область,інші не заборонені законом витрати (Комісія за виконання платежів в національній валюті згідно з відкритою офертою банку б/н від 07.09.2015 та тарифів банку.Без ПДВ.),26009054622601,current,3.00,"ПАТ КБ ""Приватбанк""",14360570,юридична особа
АПУ,"Київ, вулиця Михайла Грушевського, 1Д",70,2016-12-07,1206Ь4ААС¥,Банківські послуги,Інші витрати,365392,Київська обласна організація,35032539,Київська область,"інші не заборонені законом витрати (Комісія за виконання платежів в національній валюті, згідно з відкритою офертою банку N б/н від 02.09.2015 та тарифів банку, без ПДВ.)",26006052746076,current,3.00,"ПАТ КБ ""Приватбанк""",14360570,юридична особа
АПУ,"Київ, вулиця Михайла Грушевського, 1Д",43,2016-12-06,984,Інші витрати,Інші витрати,368745,Центральний офіс,34763401,Україна,матеріальні витрати та оплата послуг (за товари зг.рах. N73965/55 від 06.12.2016),26009052641121,current,3449.80,"ПАТ КБ ""Приватбанк""",14360570,юридична особа
АПУ,"Чернігівська область, Чернігів",53,2016-12-06,90,Витрати на розміщення зовнішньої реклами,Зовнішня реклама,367704,Чернігівська обласна організація,35030222,Чернігівська область,"розміщення зовнішньої політичної реклами (Плата за оренду розміщення трьох спеціальних конструкцій за листопад 2016р, згідно рахунку 14УА-0001363 від ЗО листопада 2016р,в т.ч. ПДВ 51,44 грн.)",26006051410803,current,308.64,"КП ""Діловий центр""",33469496,юридична особа
АПУ,"Київ, вулиця Михайла Грушевського, 1Д",69,2016-12-06,986,Організація заходів та інші організаційні послуги,Організація заходів та інші організаційні послуги,367612,Центральний офіс,34763401,Україна,"проведення з’їздів, партійних конференцій, загальних зборів (Доплата за послуги оренди зг. договору N66/2016 від 15.09.2016, рах. №Ф-0220 від",26009052641121,current,44500.00,"ПАТ КБ ""Приватбанк""",14360570,юридична особа
АПУ,"Київ, вулиця Михайла Грушевського, 1Д",70,2016-12-06,304484,Банківські послуги,Інші витрати,367487,Тальнівська районна організація,40294721,Черкаська область,Банківська коміссія,26001051521204,current,3.00,"ПАТ КБ ""Приватбанк""",14360570,юридична особа
АПУ,"Київ, вулиця Михайла Грушевського, 1Д",78,2016-12-06,985,Оренда обладнання та технічних засобів,Оренда обладнання та технічних засобів,367243,Центральний офіс,34763401,Україна,матеріальні витрати та оплата послуг (за оренду куллера зг.рах/М 73865/55-А від 06.12.2016),26009052641121,current,130.00,"ПАТ КБ ""Приватбанк""",14360570,юридична особа
АПУ,"Чернігівська область, Чернігів",79,2016-12-06,89,"Оренда будинків і приміщень та експлуатаційні витрати (прибирання, страхування орендованих будинків, охорона, сигналізація, ремонт, вивіз сміття, тощо)",Оренда нерухомості,367160,Чернігівська обласна організація,35030222,Чернігівська область,"оренда приміщення (Відшкодування витрат на утримання приміщень, ел.енергії, опалення за листопад зг рахунка фактури ИСФ-0001885 від ЗО листопада 2016р, в т.ч. ПДВ 271,67 грн.)",26006051410803,current,1630.01,"КП ""Діловий центр""",33469496,юридична особа
АПУ,"Чернігівська область, Чернігів",79,2016-12-06,88,"Оренда будинків і приміщень та експлуатаційні витрати (прибирання, страхування орендованих будинків, охорона, сигналізація, ремонт, вивіз сміття, тощо)",Оренда нерухомості,367156,Чернігівська обласна організація,35030222,Чернігівська область,"оренда приміщення (Плата за оренду приміщення пр-т Миру,49а(№304-306) за листопад 2016р згідно рахунку ИУА-0001478, УА-0001479 від ЗО листопада 2016р, в т.ч. ПДВ 802,45грн)",26006051410803,current,4814.68,"КП ""Діловий центр""",33469496,юридична особа
АПУ,"Запорізька область, Запоріжжя, проспект Соборний, 152",79,2016-12-06,711,"Оренда будинків і приміщень та експлуатаційні витрати (прибирання, страхування орендованих будинків, охорона, сигналізація, ремонт, вивіз сміття, тощо)",Оренда нерухомості,367128,Запорізька обласна організація,34975613,Запорізька область,"Оренда приміщення (оренда приміщення та відш.ком.носл.,зг.р ах.№СФ-689 від 30/11/16)",26006055720257,current,7002.00,"ТОВ ""Агро-Консалтінг Груп""",31398324,юридична особа
АПУ,"Київ, вулиця Михайла Грушевського, 1Д",60,2016-12-06,983,Інші податки,Податкові платежі,366904,Центральний офіс,34763401,Україна,матеріальні витрати та оплата послуг (за обробку куллера зг.рах.Ш3865/56 від 06.12.2016),26009052641121,current,162.00,"ПАТ КБ ""Приватбанк""",14360570,юридична особа
АПУ,,51,2016-12-06,460,Оплата ефірного часу на ТБ,Телереклама,366354,Хмельницька обласна організація,38968240,Хмельницька область,сюжет на телебаченні зграх СФ- ЛГПЗ 38 оіп 33 ПЙ 1 А ті,26003010007435,current,736.00,Малий Володимир Іванович,,фізична особа
АПУ,"Київ, вулиця Михайла Грушевського, 1Д",70,2016-12-06,1206Ь2Ь86У,Банківські послуги,Інші витрати,365391,Центральний офіс,34763401,Україна,"Інші не заборонені законом витрати (Комісія за виконання платежів в національній валюті, згідно з відкритою офертою банку N б/н від 20.01.2015 та тарифів банку, без ПДВ.)",26009052641121,current,3.00,"ПАТ КБ ""Приватбанк""",14360570,юридична особа
АПУ,"Київ, вулиця Михайла Грушевського, 1Д",70,2016-12-06,1206Б389КУ,Банківські послуги,Інші витрати,365390,Запорізька обласна організація,34975613,Запорізька область,Інші не заборонені законом витратні коміс.за викон.банк.платеж),26006055720257,current,3.00,"ПАТ КБ ""Приватбанк""",14360570,юридична особа
АПУ,"Київ, вулиця Михайла Грушевського, 1Д",70,2016-12-06,1206Б2В0УУ,Банківські послуги,Інші витрати,365389,Чернігівська обласна організація,35030222,Чернігівська область,"інші не заборонені законом витрати (Комісія за виконання платежів в національній валюті, згідно з відкритою офертою банку N б/н від 15.04.2015 та тарифів банку, без ПДВ.)",26006051410803,current,3.00,"ПАТ КБ ""Приватбанк""",14360570,юридична особа
АПУ,"Київ, вулиця Михайла Грушевського, 1Д",70,2016-12-06,1206Б29УОУ,Банківські послуги,Інші витрати,365388,Чернігівська обласна організація,35030222,Чернігівська область,"інші не заборонені законом витрати (Комісія за виконання платежів в національній валюті, згідно з відкритою офертою банку N б/н від 15.04.2015 та тарифів банку, без ПДВ.)",26006051410803,current,3.00,"ПАТ КБ ""Приватбанк""",14360570,юридична особа
АПУ,"Київ, вулиця Михайла Грушевського, 1Д",70,2016-12-06,1206Б29К8У,Банківські послуги,Інші витрати,365387,Чернігівська обласна організація,35030222,Чернігівська область,"інші не заборонені законом витрати (Комісія за виконання платежів в національній валюті, згідно з відкритою офертою банку N б/н від 15.04.2015 та тарифів банку, без ПДВ.)",26006051410803,current,3.00,"ПАТ КБ ""Приватбанк""",14360570,юридична особа
АПУ,"Київ, вулиця Михайла Грушевського, 1Д",61,2016-12-05,982,Військовий збір,Податкові платежі,368224,Центральний офіс,34763401,Україна,"сплачені податки і збори (101;34763401;сплата військового збору 1,5 % за листопад 2016р.;;;)",26009052641121,current,165.00,"ПАТ КБ ""Приватбанк""",14360570,юридична особа
АПУ,"Київ, вулиця Михайла Грушевського, 1Д",62,2016-12-05,981,Сплата ЄСВ,Податкові платежі,368158,Центральний офіс,34763401,Україна,сплачені податки та збори (101;34763401;сплата нарахування ЄСВ 22% за листопад 2016р.;;;),26009052641121,current,2530.00,"ПАТ КБ ""Приватбанк""",14360570,юридична особа
АПУ,"Київ, вулиця Михайла Грушевського, 1Д",63,2016-12-05,980,Податок на доходи,Податкові платежі,368086,Центральний офіс,34763401,Україна,сплачені податки і збори (101;34763401;сплата ПДФО за листопад 2016р.;;;),26009052641121,current,2030.00,"ПАТ КБ ""Приватбанк""",14360570,юридична особа
АПУ,"Київ, вулиця Михайла Грушевського, 1Д",84,2016-12-05,978,"Заробітна плата, премії","Заробітна плата, лікарняні, вагітності, відрядження, компенсації",367992,Центральний офіс,34763401,Україна,заробітна плата (Зарплата за ноябрь 2016г.),26009052641121,current,1306.72,"ПАТ КБ ""Приватбанк""",14360570,юридична особа
АПУ,"Київ, вулиця Михайла Грушевського, 1Д",84,2016-12-05,978,"Заробітна плата, премії","Заробітна плата, лікарняні, вагітності, відрядження, компенсації",367991,Центральний офіс,34763401,Україна,заробітна плата (Зарплата за ноябрь 2016г.),26009052641121,current,1755.78,"ПАТ КБ ""Приватбанк""",14360570,юридична особа
АПУ,"Київ, вулиця Михайла Грушевського, 1Д",84,2016-12-05,978_1,"Заробітна плата, премії","Заробітна плата, лікарняні, вагітності, відрядження, компенсації",367990,Центральний офіс,34763401,Україна,заробітна плата (Зарплата за ноябрь 2016г.),26009052641121,current,1506.68,"ПАТ КБ ""Приватбанк""",14360570,юридична особа
АПУ,"Київ, вулиця Михайла Грушевського, 1Д",84,2016-12-05,978,"Заробітна плата, премії","Заробітна плата, лікарняні, вагітності, відрядження, компенсації",367989,Центральний офіс,34763401,Україна,заробітна плата (Зарплата за ноябрь 2016г.),26009052641121,current,1435.21,"ПАТ КБ ""Приватбанк""",14360570,юридична особа
АПУ,"Київ, вулиця Михайла Грушевського, 1Д",84,2016-12-05,978,"Заробітна плата, премії","Заробітна плата, лікарняні, вагітності, відрядження, компенсації",367988,Центральний офіс,34763401,Україна,заробітна плата (Зарплата за ноябрь 2016г.),26009052641121,current,1501.53,"ПАТ КБ ""Приватбанк""",14360570,юридична особа
АПУ,"Київ, вулиця Михайла Грушевського, 1Д",84,2016-12-05,978,"Заробітна плата, премії","Заробітна плата, лікарняні, вагітності, відрядження, компенсації",367987,Центральний офіс,34763401,Україна,заробітна плата (Зарплата за ноябрь 2016г.),26009052641121,current,1506.68,"ПАТ КБ ""Приватбанк""",14360570,юридична особа
АПУ,м. Кропивницький,43,2016-12-05,122,Інші витрати,Інші витрати,366741,Кіровоградська обласна організація,36978104,Кіровоградська область,За послуги,26007052918872,current,700.00,"ТОВ ""ПРАЙМ-ТАЙМ""",32967832,юридична особа
АПУ,"Одеська область, Ширяївський район, Ширяєве",72,2016-12-05,10,"Придбання, ремонт офісної техніки та програмного забезпечення (Бухгалтерські програми, Ліга.закон, домени)",Придбання офісної техніки та програмного забезпечення,366731,Ширяївська районна організація,36909245,Одеська область,інші не заборонені законом витрати (ремонт орг. Техніки),26005495447,current,2600.00,Єсавелюк О П,2108510276,фізична особа
АПУ,"Одеська область, Ширяївський район, Ширяєве",49,2016-12-05,9,Публікування матеріалів у друкованих ЗМІ,Реклама в друкованих ЗМІ,366599,Ширяївська районна організація,36909245,Одеська область,"пропагандистська діяльність (за розміщення інформації на сторінках газети ""Промінь"")",26005495447,current,4422.00,"РГ ""Промінь""",02474280,юридична особа
АПУ,,58,2016-12-05,,"Виготовлення друкованих матеріалів (плакатів, листівок, буклетів та інших агітаційних матеріалів)",Друкована агітація,366170,Ширяївська районна організація,36909245,Одеська область,пропагандистська діяльність (виготовлення агітаційних матеріалів),26005495447,current,787.20,Штембуляк Анатолій Романович,,фізична особа
АПУ,,58,2016-12-05,,"Виготовлення друкованих матеріалів (плакатів, листівок, буклетів та інших агітаційних матеріалів)",Друкована агітація,366169,Ширяївська районна організація,36909245,Одеська область,пропагандистська діяльність (виготовлення агітаційних матеріалів),26005495447,current,787.20,Невріна Тетяна Андріївна,,фізична особа
АПУ,,58,2016-12-05,,"Виготовлення друкованих матеріалів (плакатів, листівок, буклетів та інших агітаційних матеріалів)",Друкована агітація,366168,Ширяївська районна організація,36909245,Одеська область,пропагандистська діяльність (виготовлення агітаційних матеріалів),26005495447,current,787.20,Коваль Віктор Захарович,,фізична особа
АПУ,,58,2016-12-05,,"Виготовлення друкованих матеріалів (плакатів, листівок, буклетів та інших агітаційних матеріалів)",Друкована агітація,366167,Ширяївська районна організація,36909245,Одеська область,пропагандистська діяльність (виготовлення агітаційних матеріалів),26005495447,current,787.20,Клімчук Іван Леонідович,,фізична особа
АПУ,,58,2016-12-05,,"Виготовлення друкованих матеріалів (плакатів, листівок, буклетів та інших агітаційних матеріалів)",Друкована агітація,366166,Ширяївська районна організація,36909245,Одеська область,пропагандистська діяльність (виготовлення агітаційних матеріалів),26005495447,current,787.20,Жукова Наталія Іванівна,,фізична особа
АПУ,,58,2016-12-05,,"Виготовлення друкованих матеріалів (плакатів, листівок, буклетів та інших агітаційних матеріалів)",Друкована агітація,366165,Ширяївська районна організація,36909245,Одеська область,пропагандистська діяльність (виготовлення агітаційних матеріалів),26005495447,current,787.20,Драган Юлія Юріївна,,фізична особа
АПУ,,58,2016-12-05,,"Виготовлення друкованих матеріалів (плакатів, листівок, буклетів та інших агітаційних матеріалів)",Друкована агітація,366164,Ширяївська районна організація,36909245,Одеська область,пропагандистська діяльність (виготовлення агітаційних матеріалів),26005495447,current,787.20,Годун Оксана Степанівна,,фізична особа
АПУ,,58,2016-12-05,,"Виготовлення друкованих матеріалів (плакатів, листівок, буклетів та інших агітаційних матеріалів)",Друкована агітація,366163,Ширяївська районна організація,36909245,Одеська область,пропагандистська діяльність (виготовлення агітаційних матеріалів),26005495447,current,787.20,Білокамінський Микола Антонович,,фізична особа
АПУ,,58,2016-12-05,,"Виготовлення друкованих матеріалів (плакатів, листівок, буклетів та інших агітаційних матеріалів)",Друкована агітація,366162,Ширяївська районна організація,36909245,Одеська область,пропагандистська діяльність (виготовлення агітаційних матеріалів),26005495447,current,787.20,Барбус Тетяна Андріївна,,фізична особа
АПУ,,58,2016-12-05,9,"Виготовлення друкованих матеріалів (плакатів, листівок, буклетів та інших агітаційних матеріалів)",Друкована агітація,366145,Ширяївська районна організація,36909245,Одеська область,пропагандистська діяльність (виготовлення агітаційних матеріалів),26005495447,current,787.20,Волкова Ольга Миколаївна,,фізична особа
АПУ,,58,2016-12-05,8,"Виготовлення друкованих матеріалів (плакатів, листівок, буклетів та інших агітаційних матеріалів)",Друкована агітація,366138,Ширяївська районна організація,36909245,Одеська область,пропагандистська діяльність (виготовлення агітаційних матеріалів),26005495447,current,787.20,Герасименко Сергій Петрович,,фізична особа
АПУ,,58,2016-12-05,22,"Виготовлення друкованих матеріалів (плакатів, листівок, буклетів та інших агітаційних матеріалів)",Друкована агітація,366099,Ширяївська районна організація,36909245,Одеська область,пропагандистська діяльність (виготовлення агітаційних матеріалів),26005495447,current,787.20,Семенишин Ігор Анатолійович,,фізична особа
АПУ,,58,2016-12-05,21,"Виготовлення друкованих матеріалів (плакатів, листівок, буклетів та інших агітаційних матеріалів)",Друкована агітація,366098,Ширяївська районна організація,36909245,Одеська область,пропагандистська діяльність (виготовлення агітаційних матеріалів),26005495447,current,787.20,Сянський Олександр Євстафійович,,фізична особа
АПУ,,58,2016-12-05,20,"Виготовлення друкованих матеріалів (плакатів, листівок, буклетів та інших агітаційних матеріалів)",Друкована агітація,366097,Ширяївська районна організація,36909245,Одеська область,пропагандистська діяльність (виготовлення агітаційних матеріалів),26005495447,current,787.20,Ілінчук Анатолій Павлович,,фізична особа
АПУ,,58,2016-12-05,19,"Виготовлення друкованих матеріалів (плакатів, листівок, буклетів та інших агітаційних матеріалів)",Друкована агітація,366096,Ширяївська районна організація,36909245,Одеська область,пропагандистська діяльність (виготовлення агітаційних матеріалів),26005495447,current,787.20,Рогозін Микола Анатолійович,,фізична особа
АПУ,,58,2016-12-05,18,"Виготовлення друкованих матеріалів (плакатів, листівок, буклетів та інших агітаційних матеріалів)",Друкована агітація,366093,Ширяївська районна організація,36909245,Одеська область,пропагандистська діяльність (виготовлення агітаційних матеріалів),26005495447,current,787.20,Погорєлова Тетяна Іванівна,,фізична особа
АПУ,,58,2016-12-05,17,"Виготовлення друкованих матеріалів (плакатів, листівок, буклетів та інших агітаційних матеріалів)",Друкована агітація,366091,Ширяївська районна організація,36909245,Одеська область,пропагандистська діяльність (виготовлення агітаційних матеріалів),26005495447,current,787.20,Харченко Олександр Володимирович,,фізична особа
АПУ,,58,2016-12-05,16,"Виготовлення друкованих матеріалів (плакатів, листівок, буклетів та інших агітаційних матеріалів)",Друкована агітація,366083,Ширяївська районна організація,36909245,Одеська область,пропагандистська діяльність (виготовлення агітаційних матеріалів),26005495447,current,787.20,Ілінчук Віталій Анатолійович,,фізична особа
АПУ,,58,2016-12-05,15,"Виготовлення друкованих матеріалів (плакатів, листівок, буклетів та інших агітаційних матеріалів)",Друкована агітація,366075,Ширяївська районна організація,36909245,Одеська область,пропагандистська діяльність (виготовлення агітаційних матеріалів),26005495447,current,787.20,Брайловський Сергій Андрійович,,фізична особа
АПУ,,58,2016-12-05,14,"Виготовлення друкованих матеріалів (плакатів, листівок, буклетів та інших агітаційних матеріалів)",Друкована агітація,366072,Ширяївська районна організація,36909245,Одеська область,пропагандистська діяльність (виготовлення,26005495447,current,787.20,Григорашенко Ольга Олександрівна,,фізична особа
АПУ,,58,2016-12-05,13,"Виготовлення друкованих матеріалів (плакатів, листівок, буклетів та інших агітаційних матеріалів)",Друкована агітація,366069,Ширяївська районна організація,36909245,Одеська область,пропагандистська діяльність (виготовлення агітаційних матеріалів),26005495447,current,787.20,Браславський Володимир Вікторович,,фізична особа
АПУ,,58,2016-12-05,12,"Виготовлення друкованих матеріалів (плакатів, листівок, буклетів та інших агітаційних матеріалів)",Друкована агітація,366063,Ширяївська районна організація,36909245,Одеська область,пропагандистська діяльність (виготовлення агітаційних матеріалів),26005495447,current,787.20,Сороченко Віктор Павлович,,фізична особа
АПУ,,58,2016-12-05,11,"Виготовлення друкованих матеріалів (плакатів, листівок, буклетів та інших агітаційних матеріалів)",Друкована агітація,366055,Ширяївська районна організація,36909245,Одеська область,пропагандистська діяльність (виготовлення агітаційних матеріалів),26005495447,current,787.20,Бурдюжа Микола Петрович,,фізична особа
АПУ,,58,2016-12-05,10,"Виготовлення друкованих матеріалів (плакатів, листівок, буклетів та інших агітаційних матеріалів)",Друкована агітація,366050,Ширяївська районна організація,36909245,Одеська область,пропагандистська діяльність (виготовлення агітаційних матеріалів),26005495447,current,787.20,Теплійчук Олександр Миколайович,,фізична особа
АПУ,"Київ, вулиця Михайла Грушевського, 1Д",70,2016-12-05,979,Банківські послуги,Інші витрати,365853,Центральний офіс,34763401,Україна,Інші не заборонені законом витрати (Комиссия РКО от зарплати за ноябрь 2016г.),26009052641121,current,22.53,"ПАТ КБ ""Приватбанк""",14360570,юридична особа
АПУ,"Київ, вулиця Михайла Грушевського, 1Д",70,2016-12-05,318,Банківські послуги,Інші витрати,365725,Козелецька районна організація,35030238,Чернігівська область,інші не заборонені законом витрати (Погашення заборгованості за розрахунково-касове обслуговування згідно угоди РКО N б/н від 27.07.2015),26005051419225,current,83.00,"ПАТ КБ ""Приватбанк""",14360570,юридична особа
АПУ,"Київ, вулиця Михайла Грушевського, 1Д",70,2016-12-05,1205Б3БМК.У,Банківські послуги,Інші витрати,365386,Центральний офіс,34763401,Україна,"Інші не заборонені законом витрати (Комісія за виконання платежів в національній валюті, згідно з відкритою офертою банку N б/н від 20.01.2015 та тарифів банку, без ПДВ.)",26009052641121,current,3.00,"ПАТ КБ ""Приватбанк""",14360570,юридична особа
АПУ,"Київ, вулиця Михайла Грушевського, 1Д",70,2016-12-05,1205Б3БМ8У,Банківські послуги,Інші витрати,365385,Центральний офіс,34763401,Україна,"Інші не заборонені законом витрати (Комісія за виконання платежів в національній валюті, згідно з відкритою офертою банку N б/н від 20.01.2015 та тарифів банку, без ПДВ.)",26009052641121,current,3.00,"ПАТ КБ ""Приватбанк""",14360570,юридична особа
АПУ,"Київ, вулиця Михайла Грушевського, 1Д",70,2016-12-05,1205Б3Б01У,Банківські послуги,Інші витрати,365384,Центральний офіс,34763401,Україна,"Інші не заборонені законом витрати (Комісія за виконання платежів в національній валюті, згідно з відкритою офертою банку N б/н від 20.01.2015 та тарифів банку, без ПДВ.)",26009052641121,current,3.00,"ПАТ КБ ""Приватбанк""",14360570,юридична особа
АПУ,"Київ, вулиця Михайла Грушевського, 1Д",70,2016-12-03,254325,Банківські послуги,Інші витрати,367477,Чугуївська районна організація,33867150,Харківська область,інші не заборонені законом витрати,26004052209164,current,3.00,"ПАТ КБ ""Приватбанк""",14360570,юридична особа
АПУ,"Київ, вулиця Михайла Грушевського, 1Д",70,2016-12-03,202281,Банківські послуги,Інші витрати,367457,Рівненська обласна організація,35103253,Рівненська область,комісія,26002054724863-2,current,2.98,"ПАТ КБ ""Приватбанк""",14360570,юридична особа
АПУ,"Київ, вулиця Михайла Грушевського, 1Д",70,2016-12-03,256,Банківські послуги,Інші витрати,365668,Чугуївська районна організація,33867150,Харківська область,інші не заборонені законом витрати,26004052209164,current,20.00,"ПАТ КБ ""Приватбанк""",14360570,юридична особа
АПУ,"Київ, вулиця Михайла Грушевського, 1Д",70,2016-12-03,255,Банківські послуги,Інші витрати,365667,Чугуївська районна організація,33867150,Харківська область,інші не заборонені законом витрати,26004052209164,current,3.00,"ПАТ КБ ""Приватбанк""",14360570,юридична особа
АПУ,"Чернігівська область, Чернігів",77,2016-12-02,29,"Оренда, ремонт та обслуговування автомобілів","Оренда, ремонт та обслуговування автомобілів",368613,Бахмацька районна організація,39979341,Чернігівська область,"матеріальні витрати та оплата послуг (За бензин А-92, А-95)",26000300021430,current,4000.00,"ПП ""ТТ-НАФТА""",37021932,юридична особа
АПУ,"Рівненська область, Рівне",83,2016-12-02,162,"Виплати працівникам (не зарплата): лікарняні, вагітності, відрядження, компенсації ","Заробітна плата, лікарняні, вагітності, відрядження, компенсації",368006,Рівненська обласна організація,35103253,Рівненська область,відрядження,26002054724863-2,current,500.00,Подорожній Юрій Анатолійович,,фізична особа
АПУ,"Рівненська область, Рівне",84,2016-12-02,161,"Заробітна плата, премії","Заробітна плата, лікарняні, вагітності, відрядження, компенсації",367755,Рівненська обласна організація,35103253,Рівненська область,зарплата за листопад 2016,26002054724863-2,current,693.34,Форсюк Інна Леонідівна,,фізична особа
АПУ,м. Кропивницький,53,2016-12-02,121,Витрати на розміщення зовнішньої реклами,Зовнішня реклама,367648,Кіровоградська обласна організація,36978104,Кіровоградська область,Зовнішня політична реклама,26007052918872,current,380.00,"ТОВ ""Імекс ЛТД""",13768524,юридична особа
АПУ,"Київ, вулиця Михайла Грушевського, 1Д",69,2016-12-02,978,Організація заходів та інші організаційні послуги,Організація заходів та інші організаційні послуги,367611,Центральний офіс,34763401,Україна,"проведення з їздів, партійних конференцій, загальних зборів (Доплата за послуги оренди зг. договору N66/2016 від 15.09.2016, рах. №Ф-0220 від 28.11 20'6р)",26009052641121,current,56604.00,"ПАТ КБ ""Приватбанк""",14360570,юридична особа
АПУ,"Київ, вулиця Михайла Грушевського, 1Д",69,2016-12-02,977,Організація заходів та інші організаційні послуги,Організація заходів та інші організаційні послуги,367610,Центральний офіс,34763401,Україна,"проведення ' з' їздів, партійних конференцій, загальних зборів (Оплата за послуги по залученню пожежного автомобіля зг. дог. ПП/2/2/412 від",26009052641121,current,1308.76,"ПАТ КБ ""Приватбанк""",14360570,юридична особа
АПУ,"Київ, вулиця Михайла Грушевського, 1Д",69,2016-12-02,976,Організація заходів та інші організаційні послуги,Організація заходів та інші організаційні послуги,367609,Центральний офіс,34763401,Україна,"проведення з’їздів, партійних конференцій, загальних зборів (Оплата по послуги охорони зг. дог. N 151-Д/2016 від 02.12.2016р.)",26009052641121,current,3000.00,"ПАТ КБ ""Приватбанк""",14360570,юридична особа
АПУ,"Київ, вулиця Михайла Грушевського, 1Д",69,2016-12-02,975,Організація заходів та інші організаційні послуги,Організація заходів та інші організаційні послуги,367608,Центральний офіс,34763401,Україна,"проведення з'їздів, партійних конференцій, загальних зборів (за оренду залу зг. договору N66/2016 від 15.09.2016)",26009052641121,current,275200.00,"ПАТ КБ ""Приватбанк""",14360570,юридична особа
АПУ,"Київ, вулиця Михайла Грушевського, 1Д",70,2016-12-02,15А1200094213,Банківські послуги,Інші витрати,367434,Полтавська обласна організація,34874174,Полтавська область,інші не заборонені законом витрати (оплата комісії за касове обслуговування по Полтавська обл. ПО АПУ. без ПДВ.),26009054622601,current,6.79,"ПАТ КБ ""Приватбанк""",14360570,юридична особа
АПУ,"Одеська область, Одеса, вулиця Базарна, 17",70,2016-12-02,1.76006603E+085,Банківські послуги,Інші витрати,367362,Овідіопольська районна організація,39909834,Одеська область,інші не заборонені законом витрати (Списання щомісячної плати за обслуговування тарифного пакету),26000300084521,current,31.26,"Одеська обласна філія АТ ""Ощадбанк""",00328845,юридична особа
АПУ,"Київ, вулиця Михайла Грушевського, 1Д",76,2016-12-02,977,Послуги зв’язку,Послуги зв’язку,367328,Центральний офіс,34763401,Україна,послуги зв'язку (за телекомунікаційні послуги зг.рах. N33955 від 31.10.16),26009052641121,current,1728.00,"ПАТ КБ ""Приватбанк""",14360570,юридична особа
АПУ,"Дніпропетровська область, Кривий Ріг, Паркова вулиця",76,2016-12-02,85,Послуги зв’язку,Послуги зв’язку,367320,Криворізька районна організація,40267750,Дніпропетровська область,послуги зв'язку (оплата за інтернет),26005300544524,current,180.00,"ТОВ ""ДКМ""",32633944,юридична особа
АПУ,"Чернігівська область, Бахмацький район, Бахмач, вулиця Соборності, 42",79,2016-12-02,32,"Оренда будинків і приміщень та експлуатаційні витрати (прибирання, страхування орендованих будинків, охорона, сигналізація, ремонт, вивіз сміття, тощо)",Оренда нерухомості,367052,Бахмацька районна організація,39979341,Чернігівська область,"оренда приміщення (За електроенергію-536,39грн., тепло-1670,95грн. за 2016р. Без ПДВ)",26000300021430,current,2207.34,БАХМАЦЬКА РАЙОННА РАДА,24843252,юридична особа
АПУ,"Вінницька область, Вінниця, вулиця Генерала Арабея, 3",79,2016-12-02,310,"Оренда будинків і приміщень та експлуатаційні витрати (прибирання, страхування орендованих будинків, охорона, сигналізація, ремонт, вивіз сміття, тощо)",Оренда нерухомості,367049,Вінницька обласна організація,35111112,Вінницька область,"матеріальні витрати та оплата послуг (оплата за оренду офісу щ дог 0""'2016 від 08 1 1 2016р]",26003000249520,current,1715.28,"РГ ""Колос""",70097757,юридична особа
АПУ,"Чернігівська область, Бахмацький район, Бахмач, вулиця Соборності, 42",79,2016-12-02,31,"Оренда будинків і приміщень та експлуатаційні витрати (прибирання, страхування орендованих будинків, охорона, сигналізація, ремонт, вивіз сміття, тощо)",Оренда нерухомості,367047,Бахмацька районна організація,39979341,Чернігівська область,оренда приміщення (За оренду приміщення за 2016р. Без ПДВ),26000300021430,current,792.66,БАХМАЦЬКА РАЙОННА РАДА,24843252,юридична особа
АПУ,,79,2016-12-02,152,"Оренда будинків і приміщень та експлуатаційні витрати (прибирання, страхування орендованих будинків, охорона, сигналізація, ремонт, вивіз сміття, тощо)",Оренда нерухомості,366980,Сумська обласна організація,34932761,Сумська область,матеріальні витрати та оплата послуг/орендна плата за приміщення/,26001055008647,current,141.49,Дружбівська міська Рада,04058054,юридична особа
АПУ,"Чернігівська область, Бахмацький район, Бахмач, вулиця Соборності, 43, 13",72,2016-12-02,33,"Придбання, ремонт офісної техніки та програмного забезпечення (Бухгалтерські програми, Ліга.закон, домени)",Придбання офісної техніки та програмного забезпечення,366771,Бахмацька районна організація,39979341,Чернігівська область,"матеріальні витрати та оплата послуг (Заправка катриджів, придбання фарби)",26000300021430,current,3000.00,Мерзлікін Дмитро Сергійович,3087603993,фізична особа
АПУ,м. Кропивницький,74,2016-12-02,0122056КЛ,"Придбання канцтоварів, паперу, інших предметів і матеріалів, а також госп товари",Придбання канцтоварів та госп. товарів,366730,Кропивницька міська організація,40628111,Кіровоградська область,матеріальні витрати,26004052926232,current,1134.72,"ТОВ ""Епіцентр К""",32490244,юридична особа
АПУ,"Чернігівська область, Бахмацький район, Бахмач, вул. Дружби, 2, 54",74,2016-12-02,ЗО,"Придбання канцтоварів, паперу, інших предметів і матеріалів, а також госп товари",Придбання канцтоварів та госп. товарів,366292,Бахмацька районна організація,39979341,Чернігівська область,матеріальні витрати та оплата послуг (за канцелярські товари),26000300021430,current,8000.00,Гнідченко Володимир Вікторович,3423602630,фізична особа
АПУ,"Вінницька область, Вінниця, Хмельницьке шосе, 2",74,2016-12-02,309,"Придбання канцтоварів, паперу, інших предметів і матеріалів, а також госп товари",Придбання канцтоварів та госп. товарів,366247,Вінницька обласна організація,35111112,Вінницька область,матеріальні витрати та оплата послуг (оплата та канцтовари ),26003000249520,current,795.85,"ТОВ ""Скрєпка""",37489783,юридична особа
АПУ,,49,2016-12-02,ОІ202У52ПЕ,Публікування матеріалів у друкованих ЗМІ,Реклама в друкованих ЗМІ,366150,Білокуракинська районна організація,40366125,Луганська область,"пропагандистська діяльність (інформаційна, рекламна, видавнича, поліграфічна), у тому числі: розміщення оеклами у друкованих засобах масової інформації (видача готівки з банкомату 21.08.2016 09:34:34 по картці 51693305020335061",26001053717348,current,3000.00,Кияшенко В В,,фізична особа
АПУ,"Вінницька область, Вінниця, вулиця Чехова, 12",58,2016-12-02,16,"Виготовлення друкованих матеріалів (плакатів, листівок, буклетів та інших агітаційних матеріалів)",Друкована агітація,366082,Овідіопольська районна організація,39909834,Одеська область,видавнича діяльність (поліграфічна продукція згідно рахунка),26000300084521,current,4830.10,"ТОВ ""Прес корпорейшн лімітед""",32168763,юридична особа
АПУ,"Київ, вулиця Михайла Грушевського, 1Д",70,2016-12-02,С1202УО2Е1,Банківські послуги,Інші витрати,366026,Білокуракинська районна організація,40366125,Луганська область,інші не заборонені законом витрати,26001053717348,current,22.50,"ПАТ КБ ""Приватбанк""",14360570,юридична особа
АПУ,"Київ, вулиця Михайла Грушевського, 1Д",70,2016-12-02,Р36Ьи6х2Ір,Банківські послуги,Інші витрати,366021,Волноваська районна організація,34974967,Донецька область,"Комісія за обслуговування рахунку, листопад 2016, згідно договору банкуівського рахунку від 08.10.2015, без ПДВ",26004051817798,current,100.00,"ПАТ КБ ""Приватбанк""",14360570,юридична особа
АПУ,"Київ, вулиця Михайла Грушевського, 1Д",70,2016-12-02,Л86Ьиб2с4р,Банківські послуги,Інші витрати,366002,Біляївська районна організація,34784437,Одеська область,інші не заборонені законом витрати (комісія за обслуговування рахунку),26005054336552,current,100.00,"ПАТ КБ ""Приватбанк""",14360570,юридична особа
АПУ,"Київ, вулиця Михайла Грушевського, 1Д",70,2016-12-02,А86Ьи5торІр,Банківські послуги,Інші витрати,365962,Чернігівська обласна організація,35030222,Чернігівська область,"інші не заборонені законом витрати (Комісія за обслуговування рахунку листопад 2016р. згідно договору банківського рахункувід 15.04.2015, без ПДВ)",26006051410803,current,100.00,"ПАТ КБ ""Приватбанк""",14360570,юридична особа
АПУ,"Київ, вулиця Михайла Грушевського, 1Д",70,2016-12-02,А56Ьи7аз2р,Банківські послуги,Інші витрати,365895,Рівненська районна організація,35038970,Рівненська область,"утримання місцевих організацій Комісія за обслуговування рахунку листопад 2016 р. згідно договору банківського рахунку від 28.11.2016, без ПДВ.",26002054724863,current,100.00,"ПАТ КБ ""Приватбанк""",14360570,юридична особа
АПУ,"Київ, вулиця Михайла Грушевського, 1Д",70,2016-12-02,А56Ьи6|с1ґр,Банківські послуги,Інші витрати,365894,Луганська обласна організація,37287520,Луганська область,Інші не заборонені законом витрати (комісія за обслуговування рахунку листопад 2016р Згідно договору банківського рахунку від 04 02.2016 без ПДВ),26007053717461,current,100.00,"ПАТ КБ ""Приватбанк""",14360570,юридична особа
АПУ,"Київ, вулиця Михайла Грушевського, 1Д",70,2016-12-02,303,Банківські послуги,Інші витрати,365715,Тальнівська районна організація,40294721,Черкаська область,Банківська коміссія,26001051521204,current,100.00,"ПАТ КБ ""Приватбанк""",14360570,юридична особа
АПУ,"Київ, вулиця Михайла Грушевського, 1Д",70,2016-12-02,201,Банківські послуги,Інші витрати,365622,Рівненська обласна організація,35103253,Рівненська область,комісія,26002054724863-2,current,9.36,"ПАТ КБ ""Приватбанк""",14360570,юридична особа
АПУ,"Київ, вулиця Михайла Грушевського, 1Д",70,2016-12-02,200,Банківські послуги,Інші витрати,365621,Рівненська обласна організація,35103253,Рівненська область,комісія,26002054724863-2,current,1.73,"ПАТ КБ ""Приватбанк""",14360570,юридична особа
АПУ,"Київ, вулиця Михайла Грушевського, 1Д",70,2016-12-02,199,Банківські послуги,Інші витрати,365610,Рівненська обласна організація,35103253,Рівненська область,комісія,26002054724863-2,current,1.25,"ПАТ КБ ""Приватбанк""",14360570,юридична особа
АПУ,"Київ, вулиця Михайла Грушевського, 1Д",70,2016-12-02,1202ЬШ96У,Банківські послуги,Інші витрати,365383,Центральний офіс,34763401,Україна,"Інші не заборонені законом витрати (Комісія за виконання платежів в національній валюті, згідно з відкритою офертою банку N б/н від 20.01.2015 та тарифів банку, без ПДВ.)",26009052641121,current,3.00,"ПАТ КБ ""Приватбанк""",14360570,юридична особа
АПУ,"Київ, вулиця Михайла Грушевського, 1Д",70,2016-12-02,1202Ь0Р01У,Банківські послуги,Інші витрати,365382,Центральний офіс,34763401,Україна,"Інші не заборонені законом витрати (Комісія за виконання платежів в національній валюті, згідно з відкритою офертою банку N б/н від 20.01.2015 та тарифів банку, без ПДВ.)",26009052641121,current,3.00,"ПАТ КБ ""Приватбанк""",14360570,юридична особа
АПУ,"Київ, вулиця Михайла Грушевського, 1Д",70,2016-12-02,1202Ь0М9ЬУ,Банківські послуги,Інші витрати,365381,Центральний офіс,34763401,Україна,"Інші не заборонені законом витрати (Комісія за виконання платежів в національній валюті, згідно з відкритою офертою банку N б/н від 20.01.2015 та тарифів банку, без ПДВ.)",26009052641121,current,3.00,"ПАТ КБ ""Приватбанк""",14360570,юридична особа
АПУ,"Київ, вулиця Михайла Грушевського, 1Д",70,2016-12-02,1202Ь01ХОУ,Банківські послуги,Інші витрати,365380,Сумська обласна організація,34932761,Сумська область,інші незаборонені Закрном витрати /комісія за переказ платежів/,26001055008647,current,3.00,"ПАТ КБ ""Приватбанк""",14360570,юридична особа
АПУ,"Київ, вулиця Михайла Грушевського, 1Д",70,2016-12-02,1202Б0ЄМБУ,Банківські послуги,Інші витрати,365379,Центральний офіс,34763401,Україна,"Інші не заборонені законом витрати (Комісія за виконання платежів в національній валюті, згідно з відкритою офертою банку N б/н від 20.01.2015 та тарифів банку, без ПДВ.)",26009052641121,current,3.00,"ПАТ КБ ""Приватбанк""",14360570,юридична особа
АПУ,"Київ, вулиця Михайла Грушевського, 1Д",70,2016-12-02,1202Б07БМУ,Банківські послуги,Інші витрати,365378,Центральний офіс,34763401,Україна,"Інші не заборонені законом витрати (Комісія за виконання платежів в національній валюті, згідно з відкритою офертою банку N б/н від 20.01.2015 та тарифів банку, без ПДВ.)",26009052641121,current,3.00,"ПАТ КБ ""Приватбанк""",14360570,юридична особа
АПУ,"Харківська область, Чугуїв",43,2016-12-01,,Інші витрати,Інші витрати,368776,Чугуївська районна організація,33867150,Харківська область,матеріальні витрати та оплата послуг,26004052209164,current,32000.00,Бережний В І,2297306236,фізична особа
АПУ,,43,2016-12-01,,Інші витрати,Інші витрати,368775,Чугуївська районна організація,33867150,Харківська область,матеріальні витрати та оплата послуг,26004052209164,current,5000.00,ФГ Міраж,40383664,юридична особа
АПУ,"Луганська область, Сєвєродонецьк, вулиця Донецька, 35, А"""" кв",79,2016-12-01,16,"Оренда будинків і приміщень та експлуатаційні витрати (прибирання, страхування орендованих будинків, охорона, сигналізація, ремонт, вивіз сміття, тощо)",Оренда нерухомості,368588,Луганська обласна організація,37287520,Луганська область,"Витрати на здійснення статутної діяльності, усього, у тому числі: оренда приміщення (будинку, офіса, квартири) Оплата діяльність ресторанного господарства зг Рах№ 76 від 24 11 2016р БЕЗ ПДВ",26007053717461,current,1114.00,Семенюков Анатолій Ілліч,1718009654,фізична особа
АПУ,"Луганська область, Сєвєродонецьк, вулиця Лисичанська, 1",79,2016-12-01,15,"Оренда будинків і приміщень та експлуатаційні витрати (прибирання, страхування орендованих будинків, охорона, сигналізація, ремонт, вивіз сміття, тощо)",Оренда нерухомості,368585,Луганська обласна організація,37287520,Луганська область,"Витрати на здійснення статутної діяльності, усього, у тому числі оренда приміщення (будинку, офіса, квартири) Оплата за товари для кофе паузи Ра\№СФ 0-01 103 від 24 1 1 20 Ібр У сумі 1308,33грн ПДВ 20% 261,67грн",26007053717461,current,1570.00,"ТОВ ""Готельний комплекс ""Mиp""",33503107,юридична особа
АПУ,"Рівненська область, Рівне",74,2016-12-01,111,"Придбання канцтоварів, паперу, інших предметів і матеріалів, а також госп товари",Придбання канцтоварів та госп. товарів,368568,Рівненська обласна організація,35103253,Рівненська область,госпвитрати,26002054724863-2,current,55.00,Стретович Світлана Юріївна,,фізична особа
АПУ,"Рівненська область, Рівне, вулиця Яворницького, 34",63,2016-12-01,,Податок на доходи,Податкові платежі,368295,Рівненська обласна організація,35103253,Рівненська область,податки та збори,26002054724863-2,current,991.82,ГУ ДКСУ у Рівненській області,38012714,юридична особа
АПУ,"Рівненська область, Рівне, вулиця Яворницького, 34",63,2016-12-01,,Податок на доходи,Податкові платежі,368294,Рівненська обласна організація,35103253,Рівненська область,податки та збори,26002054724863-2,current,82.66,ГУ ДКСУ у Рівненській області,38012714,юридична особа
АПУ,"Рівненська область, Рівне",62,2016-12-01,,Сплата ЄСВ,Податкові платежі,368293,Рівненська обласна організація,35103253,Рівненська область,податки та збори,26002054724863-2,current,1212.23,ДПІ у м. Рівне ГУ ДФС в Рівненській області,39550744,юридична особа
АПУ,,84,2016-12-01,244,"Заробітна плата, премії","Заробітна плата, лікарняні, вагітності, відрядження, компенсації",367797,Полтавська обласна організація,34874174,Полтавська область,"Заробітна плата Зарплата за 11,2016р., податки сплачені повністю)",26009054622601,current,611.80,Срібна Ірина Сергіївна,,фізична особа
АПУ,,84,2016-12-01,244,"Заробітна плата, премії","Заробітна плата, лікарняні, вагітності, відрядження, компенсації",367796,Полтавська обласна організація,34874174,Полтавська область,"Заробітна плата Зарплата за 11 2016р., податки сплачені повністю)",26009054622601,current,811.04,Луценко Олена Іванівна,,фізична особа
АПУ,,84,2016-12-01,244,"Заробітна плата, премії","Заробітна плата, лікарняні, вагітності, відрядження, компенсації",367795,Полтавська обласна організація,34874174,Полтавська область,"Заробітна плата Зарплата за 11,2016р., податки сплачені повністю)",26009054622601,current,813.85,Дружиніна Любов Володимирівна,,фізична особа
АПУ,"Рівненська область, Рівне",84,2016-12-01,160,"Заробітна плата, премії","Заробітна плата, лікарняні, вагітності, відрядження, компенсації",367754,Рівненська обласна організація,35103253,Рівненська область,зарплата за листопад 2016,26002054724863-2,current,771.00,Стретович Світлана Юріївна,,фізична особа
АПУ,"Рівненська область, Рівне",84,2016-12-01,160,"Заробітна плата, премії","Заробітна плата, лікарняні, вагітності, відрядження, компенсації",367753,Рівненська обласна організація,35103253,Рівненська область,зарплата за листопад 2016,26002054724863-2,current,1120.08,Подорожній Юрій Анатолійович,,фізична особа
АПУ,"Рівненська область, Рівне",84,2016-12-01,160,"Заробітна плата, премії","Заробітна плата, лікарняні, вагітності, відрядження, компенсації",367752,Рівненська обласна організація,35103253,Рівненська область,зарплата за листопад 2016,26002054724863-2,current,425.75,Панащук Микола Васильович,,фізична особа
АПУ,"Рівненська область, Рівне",84,2016-12-01,160,"Заробітна плата, премії","Заробітна плата, лікарняні, вагітності, відрядження, компенсації",367751,Рівненська обласна організація,35103253,Рівненська область,зарплата за листопад 2016,26002054724863-2,current,708.20,Козачук Наталія Євгенівна,,фізична особа
АПУ,"Рівненська область, Рівне",84,2016-12-01,160,"Заробітна плата, премії","Заробітна плата, лікарняні, вагітності, відрядження, компенсації",367750,Рівненська обласна організація,35103253,Рівненська область,зарплата за листопад 2016,26002054724863-2,current,717.27,Динік Світлана Анатоліївна,,фізична особа
АПУ,"Сумська область, Суми, вулиця Козацький Вал, 1",53,2016-12-01,148,Витрати на розміщення зовнішньої реклами,Зовнішня реклама,367625,Сумська обласна організація,34932761,Сумська область,матеріальні витрати та оі і лага послуг/за банер /,26001055008647,current,425.00,Скиба О О,2931114622,фізична особа
АПУ,,69,2016-12-01,245-2,Організація заходів та інші організаційні послуги,Організація заходів та інші організаційні послуги,367586,Полтавська обласна організація,34874174,Полтавська область,"проведення з’їздів, партійних конференцій, загальних зборів (Відрядні Дружиніна відповідно до наказу)",26009054622601,current,240.00,Дружиніна Любов Володимирівна,,фізична особа
АПУ,,69,2016-12-01,245,Організація заходів та інші організаційні послуги,Організація заходів та інші організаційні послуги,367585,Полтавська обласна організація,34874174,Полтавська область,"проведення з’їздів, партійних конференцій, загальних зборів (Відрядні Дружиніна відповідно до наказу)",26009054622601,current,240.00,Дружиніна Любов Володимирівна,,фізична особа
АПУ,"Київ, вулиця Михайла Грушевського, 1Д",70,2016-12-01,253323,Банківські послуги,Інші витрати,367476,Чугуївська районна організація,33867150,Харківська область,інші не заборонені законом витрати,26004052209164,current,100.00,"ПАТ КБ ""Приватбанк""",14360570,юридична особа
АПУ,"Київ, вулиця Михайла Грушевського, 1Д",70,2016-12-01,252321,Банківські послуги,Інші витрати,367475,Чугуївська районна організація,33867150,Харківська область,інші не заборонені законом витрати,26004052209164,current,3.00,"ПАТ КБ ""Приватбанк""",14360570,юридична особа
АПУ,"Київ, вулиця Михайла Грушевського, 1Д",70,2016-12-01,198275,Банківські послуги,Інші витрати,367454,Рівненська обласна організація,35103253,Рівненська область,комісія,26002054724863-2,current,100.00,"ПАТ КБ ""Приватбанк""",14360570,юридична особа
АПУ,"Київ, вулиця Михайла Грушевського, 1Д",70,2016-12-01,197273,Банківські послуги,Інші витрати,367453,Рівненська обласна організація,35103253,Рівненська область,комісія,26002054724863-2,current,3.00,"ПАТ КБ ""Приватбанк""",14360570,юридична особа
АПУ,"Київ, вулиця Михайла Грушевського, 1Д",70,2016-12-01,196271,Банківські послуги,Інші витрати,367452,Рівненська обласна організація,35103253,Рівненська область,комісія,26002054724863-2,current,3.00,"ПАТ КБ ""Приватбанк""",14360570,юридична особа
АПУ,"Київ, вулиця Михайла Грушевського, 1Д",70,2016-12-01,194262,Банківські послуги,Інші витрати,367451,Рівненська обласна організація,35103253,Рівненська область,комісія,26002054724863-2,current,0.14,"ПАТ КБ ""Приватбанк""",14360570,юридична особа
АПУ,"Хмельницька область, Хмельницький, вулиця Свободи, 70",79,2016-12-01,459,"Оренда будинків і приміщень та експлуатаційні витрати (прибирання, страхування орендованих будинків, охорона, сигналізація, ремонт, вивіз сміття, тощо)",Оренда нерухомості,367084,Хмельницька обласна організація,38968240,Хмельницька область,"оренда приміщення (будинку,офіса)(Орендна плата за червень 2016р зг рах №180 від 11.08.2016П. Без ПЛВ'І",26003010007435,current,7793.90,"Департамент агропромислового розвитку, екології та природних ресурсів Хмельницької обласної державної адміністрації",33709631,юридична особа
АПУ,"Хмельницька область, Хмельницький, вулиця Свободи, 70",79,2016-12-01,458,"Оренда будинків і приміщень та експлуатаційні витрати (прибирання, страхування орендованих будинків, охорона, сигналізація, ремонт, вивіз сміття, тощо)",Оренда нерухомості,367083,Хмельницька обласна організація,38968240,Хмельницька область,"оренда приміщення (будинку,офіса) (За комунальні послуги в червні 2016р зг пяуКГо'т піл 1/1 ГЮ ТОІбп Км ППР",26003010007435,current,712.60,"Департамент агропромислового розвитку, екології та природних ресурсів Хмельницької обласної державної адміністрації",33709631,юридична особа
АПУ,"Одеська область, Одеса, Миколаївська дорога, 187",79,2016-12-01,158,"Оренда будинків і приміщень та експлуатаційні витрати (прибирання, страхування орендованих будинків, охорона, сигналізація, ремонт, вивіз сміття, тощо)",Оренда нерухомості,366982,Одеська обласна організація,37279902,Одеська область,"оренда приміщення (будинку, офіса, квартири)",26005054325961,current,2400.00,"ТОВ ""Балтаінтерсервіс""",25050909,юридична особа
АПУ,"Сумська область, Сумський район, вулиця Набережна",49,2016-12-01,146,Публікування матеріалів у друкованих ЗМІ,Реклама в друкованих ЗМІ,366750,Сумська обласна організація,34932761,Сумська область,матеріальні витрати та оплата послуг/за інформаційнийм атеріал/,26001055008647,current,2000.00,Валевська А В,3232824488,фізична особа
АПУ,"Рівненська область, Рівне",80,2016-12-01,,"Транспортні послуги (квитки, пасажирські перевезення і т.д.)","Транспортні послуги (квитки, пасажирські перевезення і т.д.)",366727,Рівненська обласна організація,35103253,Рівненська область,транспортні послуги,26002054724863-2,current,12000.00,Мартинюк Олександр Петрович,2795914172,юридична особа
АПУ,"Київ, вулиця Михайла Грушевського, 1Д",80,2016-12-01,С120188ККВ,"Транспортні послуги (квитки, пасажирські перевезення і т.д.)","Транспортні послуги (квитки, пасажирські перевезення і т.д.)",366716,Луганська обласна організація,37287520,Луганська область,матеріальні витрати та оплата послуг ( покупка ЖД билетов 01 /12/2016. зая вка в платежной системе 662092654 5 1),26007053717461,current,724.89,"ПАТ КБ ""Приватбанк""",14360570,юридична особа
АПУ,"Полтавська область, Полтава, вулиця Пушкіна, 4",80,2016-12-01,247,"Транспортні послуги (квитки, пасажирські перевезення і т.д.)","Транспортні послуги (квитки, пасажирські перевезення і т.д.)",366669,Полтавська обласна організація,34874174,Полтавська область,"матеріальні витрати та оплата послуг (транспортні послуги ( перевезен пасажир (делегац Полт обл АПУ) по рах№566 від 01.1.20.2016,ут.ч. ПДВ)",26009054622601,current,51000.00,"ПП""Арсенал 2009""",36613282,юридична особа
АПУ,"Сумська область, Суми, вулиця Горького, 40, 88",80,2016-12-01,147,"Транспортні послуги (квитки, пасажирські перевезення і т.д.)","Транспортні послуги (квитки, пасажирські перевезення і т.д.)",366656,Сумська обласна організація,34932761,Сумська область,матеріальні витрати та оплата послуг/за транспортні послуги/,26001055008647,current,10058.00,Козаченко В А,2608711837,фізична особа
АПУ,"Одеська область, Одеса, Фонтанська дорога, 3",51,2016-12-01,159,Оплата ефірного часу на ТБ,Телереклама,366328,Одеська обласна організація,37279902,Одеська область,розміщення реклами на телебаченні (За розміщення ролика на ТБ),26005054325961,current,3500.00,"Філія ПАТ ""НСТУ"" ""Одеська регіональна дирекція""",40020635,юридична особа
АПУ,"Вінницька область, Вінниця, Хмельницьке шосе, 2",74,2016-12-01,307,"Придбання канцтоварів, паперу, інших предметів і матеріалів, а також госп товари",Придбання канцтоварів та госп. товарів,366246,Вінницька обласна організація,35111112,Вінницька область,"матеріальні витрати та оплата послуг (оплата за канцтовари згідно рахунку №7796. від 23 1 1 2016р., втч ПДВ)",26003000249520,current,159.90,"ТОВ ""Скрєпка""",37489783,юридична особа
АПУ,"Луганська область, Сєвєродонецьк, вулиця Ломоносова, 3",53,2016-12-01,14,Витрати на розміщення зовнішньої реклами,Зовнішня реклама,366070,Луганська обласна організація,37287520,Луганська область,"Пропагандистська діяльність (інформаційна, рекламна, видавнича, поліграфічна), у тому числі: розміщення зовнішньої політичної реклами Оплата за оренду рекламних щитів за жовтень 20 і 6р Зі рах лД і 0 від і 1 1 0 20 1 6р У сумі 3000,00грн. ПДВ-20% 600грн",26007053717461,current,3600.00,"ТОВ ""НАФТО ХІМІНВЕСТ",31845423,юридична особа
АПУ,"Київ, вулиця Михайла Грушевського, 1Д",70,2016-12-01,Л869и00ур,Банківські послуги,Інші витрати,365998,Токмацька районна організація,40080008,Запорізька область,Комісія за обслуговування рахунку,26003055728296,current,100.00,"ПАТ КБ ""Приватбанк""",14360570,юридична особа
АПУ,"Київ, вулиця Михайла Грушевського, 1Д",70,2016-12-01,Аз6Ьи1ф9р,Банківські послуги,Інші витрати,365967,Чернівецька обласна організація,35096655,Чернівецька область,Інші не заборонені витрати,26002051503022,current,100.00,"ПАТ КБ ""Приватбанк""",14360570,юридична особа
АПУ,"Київ, вулиця Михайла Грушевського, 1Д",70,2016-12-01,А86Ьи5с2ор,Банківські послуги,Інші витрати,365961,Запорізька обласна організація,34975613,Запорізька область,Інші не заборонені законом витрати(Комісія за обслуг.рах. листопад 2016р),26006055720257,current,100.00,"ПАТ КБ ""Приватбанк""",14360570,юридична особа
АПУ,"Київ, вулиця Михайла Грушевського, 1Д",70,2016-12-01,А86Ьи350ур,Банківські послуги,Інші витрати,365960,Центральний офіс,34763401,Україна,"Інші не заборонені законом витрати (Комісія за обслуговування рахунку листопад 2016р. згідно договору банківського рахунку від 20.01.2015, без ПДВ)",26009052641121,current,100.00,"ПАТ КБ ""Приватбанк""",14360570,юридична особа
АПУ,"Київ, вулиця Михайла Грушевського, 1Д",70,2016-12-01,А86Ьи349]р,Банківські послуги,Інші витрати,365959,Київська обласна організація,35032539,Київська область,"інші не заборонені законом витрати (Комісія за обслуговування рахунку листопад 2016р. згідно договору банківського рахунку від 02.09.2015, без ПДВ)",26006052746076,current,100.00,"ПАТ КБ ""Приватбанк""",14360570,юридична особа
АПУ,"Київ, вулиця Михайла Грушевського, 1Д",70,2016-12-01,А36Ьи5рЬ9р,Банківські послуги,Інші витрати,365882,Сумська обласна організація,34932761,Сумська область,інші виграти незаборонені Законом витрати /комісія за обслуговування рахунку/,26001055008647,current,100.00,"ПАТ КБ ""Приватбанк""",14360570,юридична особа
АПУ,"Київ, вулиця Михайла Грушевського, 1Д",70,2016-12-01,А36Ьи5оорр,Банківські послуги,Інші витрати,365881,Козелецька районна організація,35030238,Чернігівська область,"інші не заборонені законом витрати (Комісія за обслуговування рахунку листопад 2016р. згідно договору банківського рахункувід 27.07.2015, без ПДВ.)",26005051419225,current,17.00,"ПАТ КБ ""Приватбанк""",14360570,юридична особа
АПУ,"Київ, вулиця Михайла Грушевського, 1Д",70,2016-12-01,А£бЬи4и0пр,Банківські послуги,Інші витрати,365869,Білокуракинська районна організація,40366125,Луганська область,інші не заборонені законом витрати,26001053717348,current,100.00,"ПАТ КБ ""Приватбанк""",14360570,юридична особа
АПУ,"Київ, вулиця Михайла Грушевського, 1Д",70,2016-12-01,А$6Ьи248кр,Банківські послуги,Інші витрати,365868,Житомирська обласна організація,35021328,Житомирська область,"інші не заборонені законом витрати (Комісія за обслуговування рахунку листопад 2016р. згідно договору банківського рахунку від 12.01.2010, без ПДВ)",26001060520970,current,100.00,"ПАТ КБ ""Приватбанк""",14360570,юридична особа
АПУ,"Київ, вулиця Михайла Грушевського, 1Д",70,2016-12-01,а§6Ьи4783р,Банківські послуги,Інші витрати,365861,Одеська обласна організація,37279902,Одеська область,інші не заборонені законом витрати (комісія за виконання платежів в національній валюті),26005054325961,current,100.00,"ПАТ КБ ""Приватбанк""",14360570,юридична особа
АПУ,"Київ, вулиця Михайла Грушевського, 1Д",70,2016-12-01,251,Банківські послуги,Інші витрати,365666,Чугуївська районна організація,33867150,Харківська область,інші не заборонені законом витрати,26004052209164,current,3.00,"ПАТ КБ ""Приватбанк""",14360570,юридична особа
АПУ,"Київ, вулиця Михайла Грушевського, 1Д",70,2016-12-01,195,Банківські послуги,Інші витрати,365609,Рівненська обласна організація,35103253,Рівненська область,комісія,26002054724863-2,current,3.00,"ПАТ КБ ""Приватбанк""",14360570,юридична особа
АПУ,"Київ, вулиця Михайла Грушевського, 1Д",70,2016-12-01,16,Банківські послуги,Інші витрати,365583,Кіровоградська обласна організація,36978104,Кіровоградська область,інші витрати не заборонені законом,26007052918872,current,118.00,"ПАТ КБ ""Приватбанк""",14360570,юридична особа
АПУ,"Київ, вулиця Михайла Грушевського, 1Д",70,2016-12-01,120ІЕ2591V,Банківські послуги,Інші витрати,365404,Луганська обласна організація,37287520,Луганська область,"Інші не заборонені законом витрати (комісія за виконання платежів в національній валюті,згідно з відкритою офертою банку № б/н від 04 02 2016 та тарифів банку без ПДВ)",26007053717461,current,3.00,"ПАТ КБ ""Приватбанк""",14360570,юридична особа
АПУ,"Київ, вулиця Михайла Грушевського, 1Д",70,2016-12-01,1201Ь259ІУ,Банківські послуги,Інші витрати,365377,Луганська обласна організація,37287520,Луганська область,"Інші не заборонені законом витрати (комісія за виконання платежів в національній валюті,згідно з відкритою офертою банку № б/н від 04 02 2016 та тарифів банку без ПДВ)",26007053717461,current,3.00,"ПАТ КБ ""Приватбанк""",14360570,юридична особа
АПУ,"Київ, вулиця Михайла Грушевського, 1Д",70,2016-12-01,12011ЮШ'і,Банківські послуги,Інші витрати,365376,Луганська обласна організація,37287520,Луганська область,"Інші не заборонені законом витрати (комісія за виконання платежів в національній валюті,згідно з відкритою офертою банку № б/н від 04 02 2016 та тарифів банку без ПДВ)",26007053717461,current,3.00,"ПАТ КБ ""Приватбанк""",14360570,юридична особа
АПУ,"Київ, вулиця Михайла Грушевського, 1Д",70,2016-12-01,12011001ІУ,Банківські послуги,Інші витрати,365375,Одеська обласна організація,37279902,Одеська область,інші не заборонені законом витрати (комісія за виконання платежів в національній валюті),26005054325961,current,3.00,"ПАТ КБ ""Приватбанк""",14360570,юридична особа
АПУ,"Київ, вулиця Михайла Грушевського, 1Д",70,2016-12-01,12011,Банківські послуги,Інші витрати,365374,Одеська обласна організація,37279902,Одеська область,інші не заборонені законом витрати (комісія за виконання платежів в національній валюті),26005054325961,current,3.00,"ПАТ КБ ""Приватбанк""",14360570,юридична особа
АПУ,"Запорізька область, Запоріжжя, проспект Маяковського, 11",58,2016-11-30,710,"Виготовлення друкованих матеріалів (плакатів, листівок, буклетів та інших агітаційних матеріалів)",Друкована агітація,367641,Запорізька обласна організація,34975613,Запорізька область,"Матср.витрати за оплата послуг (продукція цифрового друку на папері, зг.рах.№СФ-0000255 від 2/11/Ібр)",26006055720257,current,1200.00,"ТОВ ""Прогресдизайн""",37408196,юридична особа
АПУ,"Одеська область, Одеса, вулиця Краснова, 6/1",70,2016-11-30,рко861,Банківські послуги,Інші витрати,367565,Хмельницька обласна організація,38968240,Хмельницька область,інші незаборонені законом втрати (Послуги банку),26003010007435,current,227.20,"АБ ""Південний""",20953647,юридична особа
АПУ,"Київ, вулиця Михайла Грушевського, 1Д",70,2016-11-30,АС6Ьи5зрур661,Банківські послуги,Інші витрати,367540,Монастирищенська районна організація,36778362,Черкаська область,інші не заборонені законом витрати(оплата банківських послуг),26000051527470,current,100.00,"ПАТ КБ ""Приватбанк""",14360570,юридична особа
АПУ,"Київ, вулиця Ковпака, 29",70,2016-11-30,6580,Банківські послуги,Інші витрати,367510,Чернігівська районна організація,34851005,Запорізька область,банківстка комісія,26000011704132,current,150.00,"ПАТ ""Укрсоцбанк""",00039019,юридична особа
АПУ,"Київ, вулиця Михайла Грушевського, 1Д",70,2016-11-30,193260,Банківські послуги,Інші витрати,367450,Рівненська обласна організація,35103253,Рівненська область,комісія,26002054724863-2,current,3.00,"ПАТ КБ ""Приватбанк""",14360570,юридична особа
АПУ,"Київ, вулиця Михайла Грушевського, 1Д",70,2016-11-30,15120,Банківські послуги,Інші витрати,367407,Кіровоградська обласна організація,36978104,Кіровоградська область,інші витрати не заборонені законом,26007052918872,current,130.00,"ПАТ КБ ""Приватбанк""",14360570,юридична особа
АПУ,"Дніпропетровська область, Кривий Ріг, Паркова вулиця",76,2016-11-30,83,Послуги зв’язку,Послуги зв’язку,367317,Криворізька районна організація,40267750,Дніпропетровська область,послуги зв'язку (оплата за інтернет),26005300544524,current,180.00,"ТОВ ""ДКМ""",32633944,юридична особа
АПУ,"Київ, вулиця Михайла Грушевського, 1Д",79,2016-11-30,974,"Оренда будинків і приміщень та експлуатаційні витрати (прибирання, страхування орендованих будинків, охорона, сигналізація, ремонт, вивіз сміття, тощо)",Оренда нерухомості,367179,Центральний офіс,34763401,Україна,"оренда приміщення (будинку, офіса, квартири) (оренда за жовтень зг.рах.№08 від 23.09.16)",26009052641121,current,27052.00,"ПАТ КБ ""Приватбанк""",14360570,юридична особа
АПУ,"Дніпропетровська область, Дніпро́, Челябінська вулиця, 1",79,2016-11-30,81,"Оренда будинків і приміщень та експлуатаційні витрати (прибирання, страхування орендованих будинків, охорона, сигналізація, ремонт, вивіз сміття, тощо)",Оренда нерухомості,367145,Криворізька районна організація,40267750,Дніпропетровська область,оренда приміщення,26005300544524,current,3803.00,"ТОВ ""АБВ-КОМБІ""",30816192,юридична особа
АПУ,"Рівненська область, Рівне",43,2016-11-30,,Інші витрати,Інші витрати,366921,Рівненська обласна організація,35103253,Рівненська область,інформаційні послуги,26002054724863-2,current,200.00,Матвійчук Людмила Олександрівна,2704806463,юридична особа
АПУ,"Сумська область, Суми, Покровська площа, 6",49,2016-11-30,145,Публікування матеріалів у друкованих ЗМІ,Реклама в друкованих ЗМІ,366749,Сумська обласна організація,34932761,Сумська область,матеріальні витрати та оплата послуг/за рекламні послуги/,26001055008647,current,3750.00,"ТОВ ""Всі Суми Панорама-Медіа""",36898197,юридична особа
АПУ,,80,2016-11-30,456,"Транспортні послуги (квитки, пасажирські перевезення і т.д.)","Транспортні послуги (квитки, пасажирські перевезення і т.д.)",366677,Хмельницька обласна організація,38968240,Хмельницька область,"матеріальні витрати та оплата послуг ((За пасажирські перевезення зг рах №3011 від 30,1 1.16 )",26003010007435,current,11300.00,Лопапок Олександр Ілліч,,фізична особа
АПУ,,49,2016-11-30,457,Публікування матеріалів у друкованих ЗМІ,Реклама в друкованих ЗМІ,366548,Хмельницька обласна організація,38968240,Хмельницька область,розміщення реклами у друкованих засобах масової інформації (За розміщення вітального банера зг рах. № 1503 від 16.11.16),26003010007435,current,600.00,"РГ ""Нове життя""",02475606,юридична особа
АПУ,"Херсонська область, Великоолександрівський район, Велика Олександрівка, провулок Сергія Лазо",58,2016-11-30,82,"Виготовлення друкованих матеріалів (плакатів, листівок, буклетів та інших агітаційних матеріалів)",Друкована агітація,366140,Криворізька районна організація,40267750,Дніпропетровська область,матеріальні витрати та оплата послуг (розробка та друк поліграфічної продукції),26005300544524,current,4500.00,Маринченко Сергій Володимирович,3086200550,фізична особа
АПУ,"Полтавська область, Полтава, вулиця Соборності, 63",70,2016-11-30,78873914,Банківські послуги,Інші витрати,365813,Хорольська районна організація,34170816,Полтавська область,інші не заборонені законом витрати (комісія за розрахункове обслуговування з 01.11.16 по 30.11.16. без ПДВ.),26008010880172,current,10.00,"Полтавська обласна філія АТ ""Ощадбанк""",09331508,юридична особа
АПУ,"Полтавська область, Полтава, вулиця Соборності, 63",70,2016-11-30,78871388,Банківські послуги,Інші витрати,365812,Хорольська районна організація,34170816,Полтавська область,інші не заборонені законом витрати (Списання щомісячної плати за обслуговування за листопад 2016 без пдв.),26008010880172,current,49.00,"Полтавська обласна філія АТ ""Ощадбанк""",09331508,юридична особа
АПУ,"Одеська область, Одеса, вулиця Краснова, 6/1",70,2016-11-30,6375790,Банківські послуги,Інші витрати,365780,Одеська міська організація,40560001,Одеська область,матеріальні витрати та оплата послуг (Оплата ведення рахунку),26007010020883,current,50.00,"АБ ""Південний""",20953647,юридична особа
АПУ,"Одеська область, Одеса, вулиця Краснова, 6/1",70,2016-11-30,6375746,Банківські послуги,Інші витрати,365779,Одеська міська організація,40560001,Одеська область,матеріальні витрати та оплата послуг (Оплата РКО),26007010020883,current,10.00,"АБ ""Південний""",20953647,юридична особа
АПУ,"Київ, вулиця Михайла Грушевського, 1Д",70,2016-11-30,34,Банківські послуги,Інші витрати,365727,Полтавська обласна організація,34874174,Полтавська область,Комісія,26009054622601,current,0.60,"ПАТ КБ ""Приватбанк""",14360570,юридична особа
АПУ,"Київ, вулиця Михайла Грушевського, 1Д",70,2016-11-30,192,Банківські послуги,Інші витрати,365608,Рівненська обласна організація,35103253,Рівненська область,комісія,26002054724863-2,current,0.14,"ПАТ КБ ""Приватбанк""",14360570,юридична особа
АПУ,"Київ, вулиця Ковпака, 29",70,2016-11-30,1397556495,Банківські послуги,Інші витрати,365510,Вінницька обласна організація,35111112,Вінницька область,Інші не забороиенці законом витрати (погашення абонплати за листопад 2016),26003000249520,current,150.00,"ПАТ ""Укрсоцбанк""",00039019,юридична особа
АПУ,"Київ, вулиця Михайла Грушевського, 1Д",70,2016-11-30,1130Ь492ЯУ,Банківські послуги,Інші витрати,365367,Запорізька обласна організація,34975613,Запорізька область,Інші не заборонені законом витрати(коміс.за викон.банк.платеж),26006055720257,current,3.00,"ПАТ КБ ""Приватбанк""",14360570,юридична особа
АПУ,"Київ, вулиця Михайла Грушевського, 1Д",70,2016-11-30,1130Ь3Г№У,Банківські послуги,Інші витрати,365366,Центральний офіс,34763401,Україна,"Інші не заборонені законом витрати (Комісія за виконання платежів в національній валюті, згідно з відкритою офертою банку N б/н від 20.01.2015 та тарифів банку, без ПДВ)",26009052641121,current,3.00,"ПАТ КБ ""Приватбанк""",14360570,юридична особа
АПУ,"Київ, вулиця Михайла Грушевського, 1Д",70,2016-11-30,1130Е0138У,Банківські послуги,Інші витрати,365365,Сумська обласна організація,34932761,Сумська область,інші незаборонені законом витрати /комісія за виконання платежів /,26001055008647,current,3.00,"ПАТ КБ ""Приватбанк""",14360570,юридична особа
АПУ,"Чернігівська область, Чернігів, проспект Миру, 19",70,2016-11-30,102527085,Банківські послуги,Інші витрати,365259,Бахмацька районна організація,39979341,Чернігівська область,інші не заборонені законом витрати (Коміс. за розрах.обсл.рахунку з 01-11-2016 по 30-11-2016. Без НДС.),26000300021430,current,10.00,"Чернігівська обласна філія АТ ""Ощадбанк""",09353504,юридична особа
АПУ,"Дніпропетровська область, Дніпро́",43,2016-11-29,,Інші витрати,Інші витрати,368756,Полтавська обласна організація,34874174,Полтавська область,матеріальні витрати та оплата послуг,26009054622601,current,1199.00,"ТОВ ""АЛЛО""",30012848,юридична особа
АПУ,,83,2016-11-29,238,"Виплати працівникам (не зарплата): лікарняні, вагітності, відрядження, компенсації ","Заробітна плата, лікарняні, вагітності, відрядження, компенсації",368605,Полтавська обласна організація,34874174,Полтавська область,інші не заборонені законом витрати (Відрядні Дружиніна відповідно.до наказу),26009054622601,current,240.00,Дружиніна Любов Володимирівна,,фізична особа
АПУ,,61,2016-11-29,455,Військовий збір,Податкові платежі,368193,Хмельницька обласна організація,38968240,Хмельницька область,"сплачені податки та збори (Сплата 1,5% військового збору з ЗП за листопад 2016р)",26003010007435,current,46.50,УДКСУ у м. Хмельницькому,38045529,юридична особа
АПУ,"Хмельницька область, Хмельницький, вулиця Героїв Майдану, 12",62,2016-11-29,453,Сплата ЄСВ,Податкові платежі,368127,Хмельницька обласна організація,38968240,Хмельницька область,сплачені податки та збори (Сплата 22%ЄСВ з ЗП за листопад 2016р),26003010007435,current,682.00,ДПІ у м. Хмельницькому,39564228,юридична особа
АПУ,,63,2016-11-29,454,Податок на доходи,Податкові платежі,368055,Хмельницька обласна організація,38968240,Хмельницька область,сплачені податки та збори ( Сплата ПДФО 18% з ЗІ І за листопад 2016р),26003010007435,current,433.90,УДКСУ у м. Хмельницькому,38045529,юридична особа
АПУ,"Київ, вулиця Михайла Грушевського, 1Д",69,2016-11-29,973,Організація заходів та інші організаційні послуги,Організація заходів та інші організаційні послуги,367607,Центральний офіс,34763401,Україна,"проведення з’їздів, партійних конференцій, загальних зборів (за оренду приміщення зг.договору N23/11-16-1",26009052641121,current,44500.00,"ПАТ КБ ""Приватбанк""",14360570,юридична особа
АПУ,"Київ, вулиця Миколи Лєскова, 9",70,2016-11-29,бн685,Банківські послуги,Інші витрати,367551,Ширяївська районна організація,36909245,Одеська область,інші не заборонені законом витрати (комісія за користування пакетом послуг),26005495447,current,100.00,"АТ ""Райффайзен банк Аваль""",14305909,юридична особа
АПУ,"Київ, вулиця Михайла Грушевського, 1Д",70,2016-11-29,32498,Банківські послуги,Інші витрати,367493,Полтавська обласна організація,34874174,Полтавська область,Комісія,26009054622601,current,3.00,"ПАТ КБ ""Приватбанк""",14360570,юридична особа
